DEPARTMENT,ENTITY,DATE OF PAYMENT,EXPENSE TYPE,EXPENSE AREA,SUPPLIER,TRANSACTION NUMBER,AMOUNT
UNITED KINGDOM ATOMIC ENERGY AUTHORITY,UNITED KINGDOM ATOMIC ENERGY AUTHORITY,24/02/2016,TRAINING COURSE FEES,FUSION,2020 BUSINESS INSIGHT,1900061351,"1,590.00"
UNITED KINGDOM ATOMIC ENERGY AUTHORITY,UNITED KINGDOM ATOMIC ENERGY AUTHORITY,09/03/2016,IT EQUIPMENT: NON CAPITAL,FUSION,3D PRINT WORLD ,1900061372,"1,149.16"
UNITED KINGDOM ATOMIC ENERGY AUTHORITY,UNITED KINGDOM ATOMIC ENERGY AUTHORITY,23/03/2016,PLANT & EQUIPMENT,PROPERTY,A & B INDUSTRIAL SERVICES,5100334343,"2,305.39"
UNITED KINGDOM ATOMIC ENERGY AUTHORITY,UNITED KINGDOM ATOMIC ENERGY AUTHORITY,22/02/2016,PLANT SPARES,FUSION,A D INSTALLATION LTD,5100332798,"1,340.00"
UNITED KINGDOM ATOMIC ENERGY AUTHORITY,UNITED KINGDOM ATOMIC ENERGY AUTHORITY,21/03/2016,PLANT SPARES,FUSION,A D INSTALLATION LTD,5100334153,670.00
UNITED KINGDOM ATOMIC ENERGY AUTHORITY,UNITED KINGDOM ATOMIC ENERGY AUTHORITY,14/03/2016,PLANT SPARES,FUSION,A W CLARKE,5100332977,"3,000.00"
UNITED KINGDOM ATOMIC ENERGY AUTHORITY,UNITED KINGDOM ATOMIC ENERGY AUTHORITY,29/03/2016,PLANT SPARES,FUSION,A W CLARKE,5100334290,"2,714.00"
UNITED KINGDOM ATOMIC ENERGY AUTHORITY,UNITED KINGDOM ATOMIC ENERGY AUTHORITY,22/02/2016,PLANT SPARES,FUSION,A W CLARKE,5100332389,78.75
UNITED KINGDOM ATOMIC ENERGY AUTHORITY,UNITED KINGDOM ATOMIC ENERGY AUTHORITY,23/03/2016,MATERIALS & SPARES,FUSION,A.L.M.T CORPORATION,5100333044,"9,549.20"
UNITED KINGDOM ATOMIC ENERGY AUTHORITY,UNITED KINGDOM ATOMIC ENERGY AUTHORITY,24/02/2016,MATERIALS & SPARES,FUSION,A.L.M.T CORPORATION,5100333042,"1,091.34"
UNITED KINGDOM ATOMIC ENERGY AUTHORITY,UNITED KINGDOM ATOMIC ENERGY AUTHORITY,21/03/2016,PLANT & EQUIPMENT,FUSION,AALCO LIMITED,5100334016,108.00
UNITED KINGDOM ATOMIC ENERGY AUTHORITY,UNITED KINGDOM ATOMIC ENERGY AUTHORITY,02/03/2016,PLANT & EQUIPMENT,FUSION,AALCO LIMITED,5100333248,81.00
UNITED KINGDOM ATOMIC ENERGY AUTHORITY,UNITED KINGDOM ATOMIC ENERGY AUTHORITY,29/02/2016,MATERIALS & SPARES,FUSION,ABB LIMITED,5100331349,"16,061.50"
UNITED KINGDOM ATOMIC ENERGY AUTHORITY,UNITED KINGDOM ATOMIC ENERGY AUTHORITY,29/02/2016,MATERIALS & SPARES,FUSION,ABB LIMITED,5100332071,"9,178.00"
UNITED KINGDOM ATOMIC ENERGY AUTHORITY,UNITED KINGDOM ATOMIC ENERGY AUTHORITY,09/03/2016,MATERIALS & SPARES,FUSION,ABB LIMITED,5100332680,"2,028.00"
UNITED KINGDOM ATOMIC ENERGY AUTHORITY,UNITED KINGDOM ATOMIC ENERGY AUTHORITY,29/02/2016,MATERIALS & SPARES,FUSION,ABB LIMITED,5100333236,"1,334.00"
UNITED KINGDOM ATOMIC ENERGY AUTHORITY,UNITED KINGDOM ATOMIC ENERGY AUTHORITY,14/03/2016,CONSUMABLES,SUPPORT SERVICES,ABLOY SECURITY,5100333489,303.76
UNITED KINGDOM ATOMIC ENERGY AUTHORITY,UNITED KINGDOM ATOMIC ENERGY AUTHORITY,14/03/2016,CONSUMABLES,PROPERTY,ABLOY SECURITY,5100333445,107.56
UNITED KINGDOM ATOMIC ENERGY AUTHORITY,UNITED KINGDOM ATOMIC ENERGY AUTHORITY,18/03/2016,PLANT & EQUIPMENT,FUSION,ABSOLUTE DATA SERVICES LTD,1900061408,"3,284.95"
UNITED KINGDOM ATOMIC ENERGY AUTHORITY,UNITED KINGDOM ATOMIC ENERGY AUTHORITY,09/03/2016,MATERIALS & SPARES,FUSION,ACAL TECHNOLOGY LTD,5100333017,"6,066.00"
UNITED KINGDOM ATOMIC ENERGY AUTHORITY,UNITED KINGDOM ATOMIC ENERGY AUTHORITY,14/03/2016,MATERIALS & SPARES,FUSION,ACRONA ENGINEERING LTD,5100333815,"6,636.48"
UNITED KINGDOM ATOMIC ENERGY AUTHORITY,UNITED KINGDOM ATOMIC ENERGY AUTHORITY,16/03/2016,MATERIALS & SPARES,FUSION,ACRONA ENGINEERING LTD,5100334083,"3,386.60"
UNITED KINGDOM ATOMIC ENERGY AUTHORITY,UNITED KINGDOM ATOMIC ENERGY AUTHORITY,07/03/2016,MATERIALS & SPARES,FUSION,ACRONA ENGINEERING LTD,5100333287,"1,923.16"
UNITED KINGDOM ATOMIC ENERGY AUTHORITY,UNITED KINGDOM ATOMIC ENERGY AUTHORITY,24/02/2016,MATERIALS & SPARES,FUSION,ACRONA ENGINEERING LTD,5100332967,"1,777.36"
UNITED KINGDOM ATOMIC ENERGY AUTHORITY,UNITED KINGDOM ATOMIC ENERGY AUTHORITY,07/03/2016,MATERIALS & SPARES,FUSION,ACRONA ENGINEERING LTD,5100333288,"1,765.80"
UNITED KINGDOM ATOMIC ENERGY AUTHORITY,UNITED KINGDOM ATOMIC ENERGY AUTHORITY,02/03/2016,MATERIALS & SPARES,FUSION,ACRONA ENGINEERING LTD,5100333473,"1,626.65"
UNITED KINGDOM ATOMIC ENERGY AUTHORITY,UNITED KINGDOM ATOMIC ENERGY AUTHORITY,29/03/2016,MATERIALS & SPARES,FUSION,ACRONA ENGINEERING LTD,5100334454,"1,473.27"
UNITED KINGDOM ATOMIC ENERGY AUTHORITY,UNITED KINGDOM ATOMIC ENERGY AUTHORITY,21/03/2016,MATERIALS & SPARES,FUSION,ACRONA ENGINEERING LTD,5100334008,"1,448.89"
UNITED KINGDOM ATOMIC ENERGY AUTHORITY,UNITED KINGDOM ATOMIC ENERGY AUTHORITY,07/03/2016,MATERIALS & SPARES,FUSION,ACRONA ENGINEERING LTD,5100333289,"1,436.20"
UNITED KINGDOM ATOMIC ENERGY AUTHORITY,UNITED KINGDOM ATOMIC ENERGY AUTHORITY,14/03/2016,MATERIALS & SPARES,FUSION,ACRONA ENGINEERING LTD,5100333816,597.56
UNITED KINGDOM ATOMIC ENERGY AUTHORITY,UNITED KINGDOM ATOMIC ENERGY AUTHORITY,14/03/2016,MATERIALS & SPARES,FUSION,ACRONA ENGINEERING LTD,5100333813,372.13
UNITED KINGDOM ATOMIC ENERGY AUTHORITY,UNITED KINGDOM ATOMIC ENERGY AUTHORITY,14/03/2016,MATERIALS & SPARES,FUSION,ACRONA ENGINEERING LTD,5100333768,323.44
UNITED KINGDOM ATOMIC ENERGY AUTHORITY,UNITED KINGDOM ATOMIC ENERGY AUTHORITY,29/02/2016,SECURITY AND EMERGENCY,PROPERTY,ADT FIRE & SECURITY PLC,5100333006,781.75
UNITED KINGDOM ATOMIC ENERGY AUTHORITY,UNITED KINGDOM ATOMIC ENERGY AUTHORITY,09/03/2016,SECURITY AND EMERGENCY,PROPERTY,ADT FIRE & SECURITY PLC,5100333005,543.97
UNITED KINGDOM ATOMIC ENERGY AUTHORITY,UNITED KINGDOM ATOMIC ENERGY AUTHORITY,21/03/2016,PLANT SPARES,FUSION,AIREDALE SPRINGS LTD,5100334201,580.00
UNITED KINGDOM ATOMIC ENERGY AUTHORITY,UNITED KINGDOM ATOMIC ENERGY AUTHORITY,21/03/2016,MATERIALS & SPARES,SUPPORT SERVICES,ALFASOFT  AB,5100334023,"2,784.50"
UNITED KINGDOM ATOMIC ENERGY AUTHORITY,UNITED KINGDOM ATOMIC ENERGY AUTHORITY,21/03/2016,MATERIALS & SPARES,FUSION,ALLECTRA LTD,5100333447,"3,762.00"
UNITED KINGDOM ATOMIC ENERGY AUTHORITY,UNITED KINGDOM ATOMIC ENERGY AUTHORITY,02/03/2016,CONFERENCES/MEETINGS,FUSION,EMPLOYEE EXPENSES,1900061361,76.50
UNITED KINGDOM ATOMIC ENERGY AUTHORITY,UNITED KINGDOM ATOMIC ENERGY AUTHORITY,29/03/2016,MATERIALS & SPARES,FUSION,ALPHA ENGINEERING SUPPLIES,5100334468,190.35
UNITED KINGDOM ATOMIC ENERGY AUTHORITY,UNITED KINGDOM ATOMIC ENERGY AUTHORITY,29/03/2016,MATERIALS & SPARES,FUSION,ALPHA ENGINEERING SUPPLIES,5100334465,50.76
UNITED KINGDOM ATOMIC ENERGY AUTHORITY,UNITED KINGDOM ATOMIC ENERGY AUTHORITY,23/03/2016,MATERIALS & SPARES,FUSION,ALPHA ENGINEERING SUPPLIES,5100334467,46.90
UNITED KINGDOM ATOMIC ENERGY AUTHORITY,UNITED KINGDOM ATOMIC ENERGY AUTHORITY,23/03/2016,MATERIALS & SPARES,FUSION,ALPHA ENGINEERING SUPPLIES,5100334461,40.00
UNITED KINGDOM ATOMIC ENERGY AUTHORITY,UNITED KINGDOM ATOMIC ENERGY AUTHORITY,23/03/2016,MATERIALS & SPARES,FUSION,ALPHA ENGINEERING SUPPLIES,5100334469,40.00
UNITED KINGDOM ATOMIC ENERGY AUTHORITY,UNITED KINGDOM ATOMIC ENERGY AUTHORITY,29/03/2016,PLANT & EQUIPMENT,FUSION,ALPHA LABORATORIES,5100334497,185.40
UNITED KINGDOM ATOMIC ENERGY AUTHORITY,UNITED KINGDOM ATOMIC ENERGY AUTHORITY,24/02/2016,PLANT & EQUIPMENT,FUSION,ALPHA LABORATORIES,5100332904,101.97
UNITED KINGDOM ATOMIC ENERGY AUTHORITY,UNITED KINGDOM ATOMIC ENERGY AUTHORITY,29/02/2016,MATERIALS & SPARES,FUSION,ALPHA PACKAGING,5100332978,930.75
UNITED KINGDOM ATOMIC ENERGY AUTHORITY,UNITED KINGDOM ATOMIC ENERGY AUTHORITY,07/03/2016,MATERIALS & SPARES,FUSION,ALPHA PACKAGING,5100333303,481.57
UNITED KINGDOM ATOMIC ENERGY AUTHORITY,UNITED KINGDOM ATOMIC ENERGY AUTHORITY,07/03/2016,MATERIALS & SPARES,FUSION,ALPHA PACKAGING,5100333450,239.90
UNITED KINGDOM ATOMIC ENERGY AUTHORITY,UNITED KINGDOM ATOMIC ENERGY AUTHORITY,14/03/2016,MATERIALS & SPARES,FUSION,ALR SERVICES,5100333721,166.60
UNITED KINGDOM ATOMIC ENERGY AUTHORITY,UNITED KINGDOM ATOMIC ENERGY AUTHORITY,09/03/2016,MATERIALS & SPARES,FUSION,AMDALE LTD,5100333491,"9,180.00"
UNITED KINGDOM ATOMIC ENERGY AUTHORITY,UNITED KINGDOM ATOMIC ENERGY AUTHORITY,24/02/2016,MATERIALS & SPARES,FUSION,AMDALE LTD,5100332905,"1,172.50"
UNITED KINGDOM ATOMIC ENERGY AUTHORITY,UNITED KINGDOM ATOMIC ENERGY AUTHORITY,29/03/2016,MATERIALS & SPARES,FUSION,AMDALE LTD,5100334526,260.50
UNITED KINGDOM ATOMIC ENERGY AUTHORITY,UNITED KINGDOM ATOMIC ENERGY AUTHORITY,18/03/2016,CONFERENCES/MEETINGS,FUSION,AMERICAN NUCLEAR SOCIETY,1900061407,737.51
UNITED KINGDOM ATOMIC ENERGY AUTHORITY,UNITED KINGDOM ATOMIC ENERGY AUTHORITY,16/03/2016,PLANT SPARES,FUSION,AMETEK ADVANCE MEASUREMENT,5100333962,"26,195.00"
UNITED KINGDOM ATOMIC ENERGY AUTHORITY,UNITED KINGDOM ATOMIC ENERGY AUTHORITY,07/03/2016,MATERIALS & SPARES,FUSION,AMPLICON LIVELINE LTD,5100333448,270.00
UNITED KINGDOM ATOMIC ENERGY AUTHORITY,UNITED KINGDOM ATOMIC ENERGY AUTHORITY,29/03/2016,MATERIALS & SPARES,FUSION,ANIXTER (UK) LTD,5100334430,"2,590.00"
UNITED KINGDOM ATOMIC ENERGY AUTHORITY,UNITED KINGDOM ATOMIC ENERGY AUTHORITY,21/03/2016,MATERIALS & SPARES,FUSION,ANIXTER (UK) LTD,5100334152,845.00
UNITED KINGDOM ATOMIC ENERGY AUTHORITY,UNITED KINGDOM ATOMIC ENERGY AUTHORITY,29/02/2016,MATERIALS & SPARES,FUSION,ANIXTER (UK) LTD,5100333016,813.75
UNITED KINGDOM ATOMIC ENERGY AUTHORITY,UNITED KINGDOM ATOMIC ENERGY AUTHORITY,14/03/2016,MATERIALS & SPARES,FUSION,ANIXTER (UK) LTD,5100333723,478.80
UNITED KINGDOM ATOMIC ENERGY AUTHORITY,UNITED KINGDOM ATOMIC ENERGY AUTHORITY,29/02/2016,MATERIALS & SPARES,FUSION,ANIXTER (UK) LTD,5100333101,356.00
UNITED KINGDOM ATOMIC ENERGY AUTHORITY,UNITED KINGDOM ATOMIC ENERGY AUTHORITY,07/03/2016,MATERIALS & SPARES,FUSION,ANIXTER (UK) LTD,5100333207,283.00
UNITED KINGDOM ATOMIC ENERGY AUTHORITY,UNITED KINGDOM ATOMIC ENERGY AUTHORITY,07/03/2016,MATERIALS & SPARES,FUSION,ANIXTER (UK) LTD,5100333208,220.00
UNITED KINGDOM ATOMIC ENERGY AUTHORITY,UNITED KINGDOM ATOMIC ENERGY AUTHORITY,14/03/2016,MATERIALS & SPARES,FUSION,ANIXTER (UK) LTD,5100333724,173.00
UNITED KINGDOM ATOMIC ENERGY AUTHORITY,UNITED KINGDOM ATOMIC ENERGY AUTHORITY,16/03/2016,MATERIALS & SPARES,FUSION,ANIXTER (UK) LTD,5100333948,164.51
UNITED KINGDOM ATOMIC ENERGY AUTHORITY,UNITED KINGDOM ATOMIC ENERGY AUTHORITY,07/03/2016,MATERIALS & SPARES,FUSION,ANIXTER (UK) LTD,5100333455,158.58
UNITED KINGDOM ATOMIC ENERGY AUTHORITY,UNITED KINGDOM ATOMIC ENERGY AUTHORITY,14/03/2016,MATERIALS & SPARES,FUSION,ANIXTER (UK) LTD,5100333897,91.00
UNITED KINGDOM ATOMIC ENERGY AUTHORITY,UNITED KINGDOM ATOMIC ENERGY AUTHORITY,21/03/2016,OPERATING LEASE,FUSION,ANNODATA BUSINESS COMMUNICATIONS,5100334129,"34,855.59"
UNITED KINGDOM ATOMIC ENERGY AUTHORITY,UNITED KINGDOM ATOMIC ENERGY AUTHORITY,23/03/2016,OPERATING LEASE,FUSION,ANNODATA BUSINESS COMMUNICATIONS,5100334339,"2,778.30"
UNITED KINGDOM ATOMIC ENERGY AUTHORITY,UNITED KINGDOM ATOMIC ENERGY AUTHORITY,21/03/2016,OPERATING LEASE,FUSION,ANNODATA BUSINESS COMMUNICATIONS,5100334130,"2,775.45"
UNITED KINGDOM ATOMIC ENERGY AUTHORITY,UNITED KINGDOM ATOMIC ENERGY AUTHORITY,21/03/2016,OPERATING LEASE,FUSION,ANNODATA BUSINESS COMMUNICATIONS,5100330534,"1,184.45"
UNITED KINGDOM ATOMIC ENERGY AUTHORITY,UNITED KINGDOM ATOMIC ENERGY AUTHORITY,29/03/2016,OPERATING LEASE,FUSION,ANNODATA BUSINESS COMMUNICATIONS,5100333501,159.00
UNITED KINGDOM ATOMIC ENERGY AUTHORITY,UNITED KINGDOM ATOMIC ENERGY AUTHORITY,29/02/2016,PROFESSIONAL SERVICES,SUPPORT SERVICES,AON HEWITT LTD,5100333047,"164,388.52"
UNITED KINGDOM ATOMIC ENERGY AUTHORITY,UNITED KINGDOM ATOMIC ENERGY AUTHORITY,29/02/2016,PROFESSIONAL SERVICES,SUPPORT SERVICES,AON HEWITT LTD,5100333069,"156,436.31"
UNITED KINGDOM ATOMIC ENERGY AUTHORITY,UNITED KINGDOM ATOMIC ENERGY AUTHORITY,21/03/2016,PROFESSIONAL SERVICES,SUPPORT SERVICES,AON HEWITT LTD,5100334301,"41,528.23"
UNITED KINGDOM ATOMIC ENERGY AUTHORITY,UNITED KINGDOM ATOMIC ENERGY AUTHORITY,24/02/2016,PROFESSIONAL SERVICES,FUSION,APPLUS AEROSPACE UK LTD,5100332733,"1,257.98"
UNITED KINGDOM ATOMIC ENERGY AUTHORITY,UNITED KINGDOM ATOMIC ENERGY AUTHORITY,24/02/2016,PROFESSIONAL SERVICES,FUSION,APPLUS AEROSPACE UK LTD,5100332734,"1,244.04"
UNITED KINGDOM ATOMIC ENERGY AUTHORITY,UNITED KINGDOM ATOMIC ENERGY AUTHORITY,24/02/2016,PROFESSIONAL SERVICES,FUSION,APPLUS AEROSPACE UK LTD,5100332821,493.17
UNITED KINGDOM ATOMIC ENERGY AUTHORITY,UNITED KINGDOM ATOMIC ENERGY AUTHORITY,24/02/2016,PROFESSIONAL SERVICES,FUSION,APPLUS AEROSPACE UK LTD,5100332736,408.63
UNITED KINGDOM ATOMIC ENERGY AUTHORITY,UNITED KINGDOM ATOMIC ENERGY AUTHORITY,29/02/2016,PROFESSIONAL SERVICES,FUSION,APPLUS AEROSPACE UK LTD,5100332953,401.27
UNITED KINGDOM ATOMIC ENERGY AUTHORITY,UNITED KINGDOM ATOMIC ENERGY AUTHORITY,24/02/2016,PROFESSIONAL SERVICES,FUSION,APPLUS AEROSPACE UK LTD,5100332822,351.38
UNITED KINGDOM ATOMIC ENERGY AUTHORITY,UNITED KINGDOM ATOMIC ENERGY AUTHORITY,21/03/2016,PROFESSIONAL SERVICES,FUSION,APPLUS AEROSPACE UK LTD,5100333996,283.21
UNITED KINGDOM ATOMIC ENERGY AUTHORITY,UNITED KINGDOM ATOMIC ENERGY AUTHORITY,21/03/2016,PROFESSIONAL SERVICES,FUSION,APPLUS AEROSPACE UK LTD,5100333998,253.50
UNITED KINGDOM ATOMIC ENERGY AUTHORITY,UNITED KINGDOM ATOMIC ENERGY AUTHORITY,09/03/2016,PROFESSIONAL SERVICES,FUSION,APPLUS AEROSPACE UK LTD,5100333477,228.93
UNITED KINGDOM ATOMIC ENERGY AUTHORITY,UNITED KINGDOM ATOMIC ENERGY AUTHORITY,24/02/2016,PROFESSIONAL SERVICES,FUSION,APPLUS AEROSPACE UK LTD,5100332737,210.40
UNITED KINGDOM ATOMIC ENERGY AUTHORITY,UNITED KINGDOM ATOMIC ENERGY AUTHORITY,14/03/2016,PROFESSIONAL SERVICES,FUSION,APPLUS AEROSPACE UK LTD,5100333469,209.78
UNITED KINGDOM ATOMIC ENERGY AUTHORITY,UNITED KINGDOM ATOMIC ENERGY AUTHORITY,21/03/2016,PROFESSIONAL SERVICES,FUSION,APPLUS AEROSPACE UK LTD,5100333997,108.18
UNITED KINGDOM ATOMIC ENERGY AUTHORITY,UNITED KINGDOM ATOMIC ENERGY AUTHORITY,14/03/2016,PROFESSIONAL SERVICES,FUSION,APPLUS AEROSPACE UK LTD,5100333933,97.25
UNITED KINGDOM ATOMIC ENERGY AUTHORITY,UNITED KINGDOM ATOMIC ENERGY AUTHORITY,24/02/2016,PROFESSIONAL SERVICES,FUSION,APPLUS AEROSPACE UK LTD,5100332735,90.47
UNITED KINGDOM ATOMIC ENERGY AUTHORITY,UNITED KINGDOM ATOMIC ENERGY AUTHORITY,09/03/2016,PLANT & EQUIPMENT,FUSION,APTEX LTD,5100333766,"13,266.88"
UNITED KINGDOM ATOMIC ENERGY AUTHORITY,UNITED KINGDOM ATOMIC ENERGY AUTHORITY,29/02/2016,PERSONAL PROTECTIVE EQUIPMENT,FUSION,ARCO LTD,5100333108,"1,806.00"
UNITED KINGDOM ATOMIC ENERGY AUTHORITY,UNITED KINGDOM ATOMIC ENERGY AUTHORITY,22/02/2016,PERSONAL PROTECTIVE EQUIPMENT,FUSION,ARCO LTD,5100332958,691.20
UNITED KINGDOM ATOMIC ENERGY AUTHORITY,UNITED KINGDOM ATOMIC ENERGY AUTHORITY,29/02/2016,PERSONAL PROTECTIVE EQUIPMENT,FUSION,ARCO LTD,5100333059,682.20
UNITED KINGDOM ATOMIC ENERGY AUTHORITY,UNITED KINGDOM ATOMIC ENERGY AUTHORITY,22/02/2016,PERSONAL PROTECTIVE EQUIPMENT,FUSION,ARCO LTD,5100332855,609.60
UNITED KINGDOM ATOMIC ENERGY AUTHORITY,UNITED KINGDOM ATOMIC ENERGY AUTHORITY,29/02/2016,PERSONAL PROTECTIVE EQUIPMENT,FUSION,ARCO LTD,5100333018,599.80
UNITED KINGDOM ATOMIC ENERGY AUTHORITY,UNITED KINGDOM ATOMIC ENERGY AUTHORITY,29/02/2016,PERSONAL PROTECTIVE EQUIPMENT,SUPPORT SERVICES,ARCO LTD,5100333058,589.29
UNITED KINGDOM ATOMIC ENERGY AUTHORITY,UNITED KINGDOM ATOMIC ENERGY AUTHORITY,21/03/2016,PERSONAL PROTECTIVE EQUIPMENT,FUSION,ARCO LTD,5100334030,536.16
UNITED KINGDOM ATOMIC ENERGY AUTHORITY,UNITED KINGDOM ATOMIC ENERGY AUTHORITY,21/03/2016,PERSONAL PROTECTIVE EQUIPMENT,SUPPORT SERVICES,ARCO LTD,5100334237,521.41
UNITED KINGDOM ATOMIC ENERGY AUTHORITY,UNITED KINGDOM ATOMIC ENERGY AUTHORITY,29/02/2016,PERSONAL PROTECTIVE EQUIPMENT,FUSION,ARCO LTD,5100333105,457.20
UNITED KINGDOM ATOMIC ENERGY AUTHORITY,UNITED KINGDOM ATOMIC ENERGY AUTHORITY,29/02/2016,PERSONAL PROTECTIVE EQUIPMENT,FUSION,ARCO LTD,5100333103,440.28
UNITED KINGDOM ATOMIC ENERGY AUTHORITY,UNITED KINGDOM ATOMIC ENERGY AUTHORITY,22/02/2016,PERSONAL PROTECTIVE EQUIPMENT,FUSION,ARCO LTD,5100332816,304.80
UNITED KINGDOM ATOMIC ENERGY AUTHORITY,UNITED KINGDOM ATOMIC ENERGY AUTHORITY,22/02/2016,PERSONAL PROTECTIVE EQUIPMENT,FUSION,ARCO LTD,5100332354,294.55
UNITED KINGDOM ATOMIC ENERGY AUTHORITY,UNITED KINGDOM ATOMIC ENERGY AUTHORITY,21/03/2016,PERSONAL PROTECTIVE EQUIPMENT,FUSION,ARCO LTD,5100334027,271.96
UNITED KINGDOM ATOMIC ENERGY AUTHORITY,UNITED KINGDOM ATOMIC ENERGY AUTHORITY,22/02/2016,PERSONAL PROTECTIVE EQUIPMENT,FUSION,ARCO LTD,5100332815,219.98
UNITED KINGDOM ATOMIC ENERGY AUTHORITY,UNITED KINGDOM ATOMIC ENERGY AUTHORITY,07/03/2016,PERSONAL PROTECTIVE EQUIPMENT,FUSION,ARCO LTD,5100333258,207.96
UNITED KINGDOM ATOMIC ENERGY AUTHORITY,UNITED KINGDOM ATOMIC ENERGY AUTHORITY,29/03/2016,PERSONAL PROTECTIVE EQUIPMENT,FUSION,ARCO LTD,5100334214,196.00
UNITED KINGDOM ATOMIC ENERGY AUTHORITY,UNITED KINGDOM ATOMIC ENERGY AUTHORITY,22/02/2016,PERSONAL PROTECTIVE EQUIPMENT,FUSION,ARCO LTD,5100332404,187.11
UNITED KINGDOM ATOMIC ENERGY AUTHORITY,UNITED KINGDOM ATOMIC ENERGY AUTHORITY,29/02/2016,PERSONAL PROTECTIVE EQUIPMENT,FUSION,ARCO LTD,5100333213,176.65
UNITED KINGDOM ATOMIC ENERGY AUTHORITY,UNITED KINGDOM ATOMIC ENERGY AUTHORITY,07/03/2016,PERSONAL PROTECTIVE EQUIPMENT,FUSION,ARCO LTD,5100333359,148.64
UNITED KINGDOM ATOMIC ENERGY AUTHORITY,UNITED KINGDOM ATOMIC ENERGY AUTHORITY,22/02/2016,PERSONAL PROTECTIVE EQUIPMENT,FUSION,ARCO LTD,5100332814,140.78
UNITED KINGDOM ATOMIC ENERGY AUTHORITY,UNITED KINGDOM ATOMIC ENERGY AUTHORITY,22/02/2016,PERSONAL PROTECTIVE EQUIPMENT,FUSION,ARCO LTD,5100332362,132.60
UNITED KINGDOM ATOMIC ENERGY AUTHORITY,UNITED KINGDOM ATOMIC ENERGY AUTHORITY,09/03/2016,PERSONAL PROTECTIVE EQUIPMENT,FUSION,ARCO LTD,5100333573,120.96
UNITED KINGDOM ATOMIC ENERGY AUTHORITY,UNITED KINGDOM ATOMIC ENERGY AUTHORITY,14/03/2016,PERSONAL PROTECTIVE EQUIPMENT,FUSION,ARCO LTD,5100333710,119.50
UNITED KINGDOM ATOMIC ENERGY AUTHORITY,UNITED KINGDOM ATOMIC ENERGY AUTHORITY,22/02/2016,PERSONAL PROTECTIVE EQUIPMENT,FUSION,ARCO LTD,5100332805,114.94
UNITED KINGDOM ATOMIC ENERGY AUTHORITY,UNITED KINGDOM ATOMIC ENERGY AUTHORITY,14/03/2016,PERSONAL PROTECTIVE EQUIPMENT,FUSION,ARCO LTD,5100333685,110.49
UNITED KINGDOM ATOMIC ENERGY AUTHORITY,UNITED KINGDOM ATOMIC ENERGY AUTHORITY,29/03/2016,PERSONAL PROTECTIVE EQUIPMENT,FUSION,ARCO LTD,5100334213,109.00
UNITED KINGDOM ATOMIC ENERGY AUTHORITY,UNITED KINGDOM ATOMIC ENERGY AUTHORITY,14/03/2016,PERSONAL PROTECTIVE EQUIPMENT,FUSION,ARCO LTD,5100333691,108.33
UNITED KINGDOM ATOMIC ENERGY AUTHORITY,UNITED KINGDOM ATOMIC ENERGY AUTHORITY,21/03/2016,PERSONAL PROTECTIVE EQUIPMENT,FUSION,ARCO LTD,5100334028,90.60
UNITED KINGDOM ATOMIC ENERGY AUTHORITY,UNITED KINGDOM ATOMIC ENERGY AUTHORITY,22/02/2016,PERSONAL PROTECTIVE EQUIPMENT,FUSION,ARCO LTD,5100332405,76.20
UNITED KINGDOM ATOMIC ENERGY AUTHORITY,UNITED KINGDOM ATOMIC ENERGY AUTHORITY,22/02/2016,PERSONAL PROTECTIVE EQUIPMENT,FUSION,ARCO LTD,5100332959,76.20
UNITED KINGDOM ATOMIC ENERGY AUTHORITY,UNITED KINGDOM ATOMIC ENERGY AUTHORITY,29/03/2016,PERSONAL PROTECTIVE EQUIPMENT,FUSION,ARCO LTD,5100334239,75.18
UNITED KINGDOM ATOMIC ENERGY AUTHORITY,UNITED KINGDOM ATOMIC ENERGY AUTHORITY,22/02/2016,PERSONAL PROTECTIVE EQUIPMENT,FUSION,ARCO LTD,5100332856,69.97
UNITED KINGDOM ATOMIC ENERGY AUTHORITY,UNITED KINGDOM ATOMIC ENERGY AUTHORITY,14/03/2016,PERSONAL PROTECTIVE EQUIPMENT,FUSION,ARCO LTD,5100333718,62.39
UNITED KINGDOM ATOMIC ENERGY AUTHORITY,UNITED KINGDOM ATOMIC ENERGY AUTHORITY,29/02/2016,PERSONAL PROTECTIVE EQUIPMENT,FUSION,ARCO LTD,5100333107,60.78
UNITED KINGDOM ATOMIC ENERGY AUTHORITY,UNITED KINGDOM ATOMIC ENERGY AUTHORITY,29/02/2016,PERSONAL PROTECTIVE EQUIPMENT,FUSION,ARCO LTD,5100333153,52.78
UNITED KINGDOM ATOMIC ENERGY AUTHORITY,UNITED KINGDOM ATOMIC ENERGY AUTHORITY,14/03/2016,PERSONAL PROTECTIVE EQUIPMENT,FUSION,ARCO LTD,5100333709,50.20
UNITED KINGDOM ATOMIC ENERGY AUTHORITY,UNITED KINGDOM ATOMIC ENERGY AUTHORITY,14/03/2016,PERSONAL PROTECTIVE EQUIPMENT,FUSION,ARCO LTD,5100333689,48.62
UNITED KINGDOM ATOMIC ENERGY AUTHORITY,UNITED KINGDOM ATOMIC ENERGY AUTHORITY,29/02/2016,PERSONAL PROTECTIVE EQUIPMENT,FUSION,ARCO LTD,5100333106,48.40
UNITED KINGDOM ATOMIC ENERGY AUTHORITY,UNITED KINGDOM ATOMIC ENERGY AUTHORITY,21/03/2016,PERSONAL PROTECTIVE EQUIPMENT,FUSION,ARCO LTD,5100334032,46.32
UNITED KINGDOM ATOMIC ENERGY AUTHORITY,UNITED KINGDOM ATOMIC ENERGY AUTHORITY,21/03/2016,PERSONAL PROTECTIVE EQUIPMENT,FUSION,ARCO LTD,5100334296,45.59
UNITED KINGDOM ATOMIC ENERGY AUTHORITY,UNITED KINGDOM ATOMIC ENERGY AUTHORITY,29/02/2016,PERSONAL PROTECTIVE EQUIPMENT,SUPPORT SERVICES,ARCO LTD,5100333060,34.11
UNITED KINGDOM ATOMIC ENERGY AUTHORITY,UNITED KINGDOM ATOMIC ENERGY AUTHORITY,21/03/2016,PERSONAL PROTECTIVE EQUIPMENT,SUPPORT SERVICES,ARCO LTD,5100334238,34.11
UNITED KINGDOM ATOMIC ENERGY AUTHORITY,UNITED KINGDOM ATOMIC ENERGY AUTHORITY,29/02/2016,PERSONAL PROTECTIVE EQUIPMENT,FUSION,ARCO LTD,5100333104,31.82
UNITED KINGDOM ATOMIC ENERGY AUTHORITY,UNITED KINGDOM ATOMIC ENERGY AUTHORITY,22/02/2016,PERSONAL PROTECTIVE EQUIPMENT,FUSION,ARCO LTD,5100332813,25.74
UNITED KINGDOM ATOMIC ENERGY AUTHORITY,UNITED KINGDOM ATOMIC ENERGY AUTHORITY,29/02/2016,PERSONAL PROTECTIVE EQUIPMENT,FUSION,ARCO LTD,5100333154,24.79
UNITED KINGDOM ATOMIC ENERGY AUTHORITY,UNITED KINGDOM ATOMIC ENERGY AUTHORITY,14/03/2016,PERSONAL PROTECTIVE EQUIPMENT,FUSION,ARCO LTD,5100333687,23.98
UNITED KINGDOM ATOMIC ENERGY AUTHORITY,UNITED KINGDOM ATOMIC ENERGY AUTHORITY,09/03/2016,PERSONAL PROTECTIVE EQUIPMENT,FUSION,ARCO LTD,5100333575,16.40
UNITED KINGDOM ATOMIC ENERGY AUTHORITY,UNITED KINGDOM ATOMIC ENERGY AUTHORITY,14/03/2016,PERSONAL PROTECTIVE EQUIPMENT,FUSION,ARCO LTD,5100333719,16.30
UNITED KINGDOM ATOMIC ENERGY AUTHORITY,UNITED KINGDOM ATOMIC ENERGY AUTHORITY,29/02/2016,PERSONAL PROTECTIVE EQUIPMENT,FUSION,ARCO LTD,5100333061,14.86
UNITED KINGDOM ATOMIC ENERGY AUTHORITY,UNITED KINGDOM ATOMIC ENERGY AUTHORITY,29/03/2016,PERSONAL PROTECTIVE EQUIPMENT,FUSION,ARCO LTD,5100334384,13.02
UNITED KINGDOM ATOMIC ENERGY AUTHORITY,UNITED KINGDOM ATOMIC ENERGY AUTHORITY,09/03/2016,PERSONAL PROTECTIVE EQUIPMENT,FUSION,ARCO LTD,5100331893,10.49
UNITED KINGDOM ATOMIC ENERGY AUTHORITY,UNITED KINGDOM ATOMIC ENERGY AUTHORITY,21/03/2016,PERSONAL PROTECTIVE EQUIPMENT,FUSION,ARCO LTD,5100334295,4.46
UNITED KINGDOM ATOMIC ENERGY AUTHORITY,UNITED KINGDOM ATOMIC ENERGY AUTHORITY,21/03/2016,PERSONAL PROTECTIVE EQUIPMENT,FUSION,ARCO LTD,5100334240,2.27
UNITED KINGDOM ATOMIC ENERGY AUTHORITY,UNITED KINGDOM ATOMIC ENERGY AUTHORITY,29/02/2016,PERSONAL PROTECTIVE EQUIPMENT,FUSION,ARCO LTD,5100333102,0.54
UNITED KINGDOM ATOMIC ENERGY AUTHORITY,UNITED KINGDOM ATOMIC ENERGY AUTHORITY,09/03/2016,PERSONAL PROTECTIVE EQUIPMENT,FUSION,ARCO LTD,5100333744,-7.89
UNITED KINGDOM ATOMIC ENERGY AUTHORITY,UNITED KINGDOM ATOMIC ENERGY AUTHORITY,14/03/2016,PLANT & EQUIPMENT,FUSION,ARVAL UK LIMITED,5100333827,239.11
UNITED KINGDOM ATOMIC ENERGY AUTHORITY,UNITED KINGDOM ATOMIC ENERGY AUTHORITY,21/03/2016,PLANT & EQUIPMENT,FUSION,ARVAL UK LIMITED,5100333881,239.11
UNITED KINGDOM ATOMIC ENERGY AUTHORITY,UNITED KINGDOM ATOMIC ENERGY AUTHORITY,17/03/2016,COMPENSATION & LEGAL FEES,SUPPORT SERVICES,ASONS SOLICITORS,1900061401,"8,000.00"
UNITED KINGDOM ATOMIC ENERGY AUTHORITY,UNITED KINGDOM ATOMIC ENERGY AUTHORITY,14/03/2016,REPAIRS & MAINTENANCE,FUSION,ASTEC IT SOLUTIONS LTD,5100333556,720.00
UNITED KINGDOM ATOMIC ENERGY AUTHORITY,UNITED KINGDOM ATOMIC ENERGY AUTHORITY,22/02/2016,PLANT SPARES,FUSION,AURIGA EUROPE PLC,5100332782,320.00
UNITED KINGDOM ATOMIC ENERGY AUTHORITY,UNITED KINGDOM ATOMIC ENERGY AUTHORITY,09/03/2016,PLANT SPARES,FUSION,AURIGA EUROPE PLC,5100333608,294.00
UNITED KINGDOM ATOMIC ENERGY AUTHORITY,UNITED KINGDOM ATOMIC ENERGY AUTHORITY,29/03/2016,PLANT SPARES,FUSION,AURIGA EUROPE PLC,5100334601,293.36
UNITED KINGDOM ATOMIC ENERGY AUTHORITY,UNITED KINGDOM ATOMIC ENERGY AUTHORITY,23/03/2016,CATERING,PROPERTY,AVENANCE PLC,5100334340,"19,125.40"
UNITED KINGDOM ATOMIC ENERGY AUTHORITY,UNITED KINGDOM ATOMIC ENERGY AUTHORITY,23/03/2016,CATERING,PROPERTY,AVENANCE PLC,5100333618,"1,610.25"
UNITED KINGDOM ATOMIC ENERGY AUTHORITY,UNITED KINGDOM ATOMIC ENERGY AUTHORITY,23/03/2016,CATERING,PROPERTY,AVENANCE PLC,5100334079,"1,073.44"
UNITED KINGDOM ATOMIC ENERGY AUTHORITY,UNITED KINGDOM ATOMIC ENERGY AUTHORITY,23/03/2016,CATERING,PROPERTY,AVENANCE PLC,5100333197,696.50
UNITED KINGDOM ATOMIC ENERGY AUTHORITY,UNITED KINGDOM ATOMIC ENERGY AUTHORITY,23/03/2016,CATERING,FUSION,AVENANCE PLC,5100333200,613.99
UNITED KINGDOM ATOMIC ENERGY AUTHORITY,UNITED KINGDOM ATOMIC ENERGY AUTHORITY,23/03/2016,CATERING,FUSION,AVENANCE PLC,5100334081,608.82
UNITED KINGDOM ATOMIC ENERGY AUTHORITY,UNITED KINGDOM ATOMIC ENERGY AUTHORITY,23/03/2016,CATERING,PROPERTY,AVENANCE PLC,5100334080,597.03
UNITED KINGDOM ATOMIC ENERGY AUTHORITY,UNITED KINGDOM ATOMIC ENERGY AUTHORITY,22/02/2016,CATERING,PROPERTY,AVENANCE PLC,5100332965,367.19
UNITED KINGDOM ATOMIC ENERGY AUTHORITY,UNITED KINGDOM ATOMIC ENERGY AUTHORITY,23/03/2016,CATERING,PROPERTY,AVENANCE PLC,5100333619,145.55
UNITED KINGDOM ATOMIC ENERGY AUTHORITY,UNITED KINGDOM ATOMIC ENERGY AUTHORITY,22/02/2016,CATERING,PROPERTY,AVENANCE PLC,5100332968,81.36
UNITED KINGDOM ATOMIC ENERGY AUTHORITY,UNITED KINGDOM ATOMIC ENERGY AUTHORITY,23/03/2016,CATERING,PROPERTY,AVENANCE PLC,5100334270,-41.60
UNITED KINGDOM ATOMIC ENERGY AUTHORITY,UNITED KINGDOM ATOMIC ENERGY AUTHORITY,22/02/2016,CATERING,PROPERTY,AVENANCE PLC,5100332375,-124.80
UNITED KINGDOM ATOMIC ENERGY AUTHORITY,UNITED KINGDOM ATOMIC ENERGY AUTHORITY,23/03/2016,CATERING,PROPERTY,AVENANCE PLC,5100333199,"-2,054.68"
UNITED KINGDOM ATOMIC ENERGY AUTHORITY,UNITED KINGDOM ATOMIC ENERGY AUTHORITY,14/03/2016,PLANT SPARES,FUSION,AVNET EMG LTD,5100333898,"1,465.83"
UNITED KINGDOM ATOMIC ENERGY AUTHORITY,UNITED KINGDOM ATOMIC ENERGY AUTHORITY,29/02/2016,PLANT SPARES,FUSION,AVNET EMG LTD,5100333014,75.90
UNITED KINGDOM ATOMIC ENERGY AUTHORITY,UNITED KINGDOM ATOMIC ENERGY AUTHORITY,24/02/2016,PLANT SPARES,FUSION,AW GRACE & SON,5100332957,"5,153.00"
UNITED KINGDOM ATOMIC ENERGY AUTHORITY,UNITED KINGDOM ATOMIC ENERGY AUTHORITY,21/03/2016,IT EQUIPMENT NON CAPITAL,FUSION,AZTEX SOLUTIONS LIMITED,5100333235,"4,631.74"
UNITED KINGDOM ATOMIC ENERGY AUTHORITY,UNITED KINGDOM ATOMIC ENERGY AUTHORITY,02/03/2016,IT EQUIPMENT NON CAPITAL,FUSION,AZTEX SOLUTIONS LIMITED,5100333012,"2,020.48"
UNITED KINGDOM ATOMIC ENERGY AUTHORITY,UNITED KINGDOM ATOMIC ENERGY AUTHORITY,21/03/2016,MATERIALS & SPARES,FUSION,B H BLACKMORE LTD,5100334216,"2,493.00"
UNITED KINGDOM ATOMIC ENERGY AUTHORITY,UNITED KINGDOM ATOMIC ENERGY AUTHORITY,07/03/2016,MATERIALS & SPARES,FUSION,B&M ENGINEERING LTD,5100333593,420.00
UNITED KINGDOM ATOMIC ENERGY AUTHORITY,UNITED KINGDOM ATOMIC ENERGY AUTHORITY,07/03/2016,MATERIALS & SPARES,FUSION,B&M ENGINEERING LTD,5100333594,280.00
UNITED KINGDOM ATOMIC ENERGY AUTHORITY,UNITED KINGDOM ATOMIC ENERGY AUTHORITY,07/03/2016,MATERIALS & SPARES,FUSION,B&M ENGINEERING LTD,5100333597,230.00
UNITED KINGDOM ATOMIC ENERGY AUTHORITY,UNITED KINGDOM ATOMIC ENERGY AUTHORITY,07/03/2016,MATERIALS & SPARES,FUSION,B&M ENGINEERING LTD,5100333596,225.00
UNITED KINGDOM ATOMIC ENERGY AUTHORITY,UNITED KINGDOM ATOMIC ENERGY AUTHORITY,07/03/2016,MATERIALS & SPARES,FUSION,B&M ENGINEERING LTD,5100333595,155.00
UNITED KINGDOM ATOMIC ENERGY AUTHORITY,UNITED KINGDOM ATOMIC ENERGY AUTHORITY,07/03/2016,MATERIALS & SPARES,FUSION,B&M ENGINEERING LTD,5100333598,100.00
UNITED KINGDOM ATOMIC ENERGY AUTHORITY,UNITED KINGDOM ATOMIC ENERGY AUTHORITY,23/03/2016,MATERIALS & SPARES,FUSION,B.S.T SUPPLIES & CO LTD,5100334394,"3,880.00"
UNITED KINGDOM ATOMIC ENERGY AUTHORITY,UNITED KINGDOM ATOMIC ENERGY AUTHORITY,23/03/2016,COMPUTER REPAIRS,FUSION,BCAS LTD,5100334382,"5,785.77"
UNITED KINGDOM ATOMIC ENERGY AUTHORITY,UNITED KINGDOM ATOMIC ENERGY AUTHORITY,22/02/2016,PROFESSIONAL SERVICES,SUPPORT SERVICES,BDO LLP,5100332107,"3,282.00"
UNITED KINGDOM ATOMIC ENERGY AUTHORITY,UNITED KINGDOM ATOMIC ENERGY AUTHORITY,21/03/2016,PLANT SPARES,FUSION,BEACON GROUP INTERNATIONAL LTD,5100334034,493.25
UNITED KINGDOM ATOMIC ENERGY AUTHORITY,UNITED KINGDOM ATOMIC ENERGY AUTHORITY,09/03/2016,MATERIALS & SPARES,FUSION,BELMOUNT FABRICATIONS,5100333630,"35,346.00"
UNITED KINGDOM ATOMIC ENERGY AUTHORITY,UNITED KINGDOM ATOMIC ENERGY AUTHORITY,14/03/2016,MATERIALS & SPARES,FUSION,BELMOUNT FABRICATIONS,5100333715,"2,230.00"
UNITED KINGDOM ATOMIC ENERGY AUTHORITY,UNITED KINGDOM ATOMIC ENERGY AUTHORITY,02/03/2016,LEGAL FEES,SUPPORT SERVICES,BIGGART BAILLIE,5100333372,370.00
UNITED KINGDOM ATOMIC ENERGY AUTHORITY,UNITED KINGDOM ATOMIC ENERGY AUTHORITY,02/03/2016,LEGAL FEES,SUPPORT SERVICES,BIGGART BAILLIE,5100333371,298.00
UNITED KINGDOM ATOMIC ENERGY AUTHORITY,UNITED KINGDOM ATOMIC ENERGY AUTHORITY,07/03/2016,PLANT & EQUIPMENT,FUSION,BLACK BOX UK LTD,5100333382,"1,472.00"
UNITED KINGDOM ATOMIC ENERGY AUTHORITY,UNITED KINGDOM ATOMIC ENERGY AUTHORITY,29/02/2016,PLANT & EQUIPMENT,FUSION,BLACK BOX UK LTD,5100333163,162.88
UNITED KINGDOM ATOMIC ENERGY AUTHORITY,UNITED KINGDOM ATOMIC ENERGY AUTHORITY,16/03/2016,HIRED STAFF,FUSION,BLACK DIAMOND UMBRELLA LTD,5100333625,"5,155.00"
UNITED KINGDOM ATOMIC ENERGY AUTHORITY,UNITED KINGDOM ATOMIC ENERGY AUTHORITY,23/03/2016,HIRED STAFF,FUSION,BLACK DIAMOND UMBRELLA LTD,5100334300,952.13
UNITED KINGDOM ATOMIC ENERGY AUTHORITY,UNITED KINGDOM ATOMIC ENERGY AUTHORITY,23/03/2016,HIRED STAFF,FUSION,BLACK DIAMOND UMBRELLA LTD,5100334303,901.35
UNITED KINGDOM ATOMIC ENERGY AUTHORITY,UNITED KINGDOM ATOMIC ENERGY AUTHORITY,16/03/2016,PLANT & EQUIPMENT,FUSION,BLAKLEY ELECTRICS LIMITED,1900061396,"1,475.04"
UNITED KINGDOM ATOMIC ENERGY AUTHORITY,UNITED KINGDOM ATOMIC ENERGY AUTHORITY,29/03/2016,CONSUMABLES,FUSION,B-LINE BUSINESS SUPPLIES LTD,5100334535,99.50
UNITED KINGDOM ATOMIC ENERGY AUTHORITY,UNITED KINGDOM ATOMIC ENERGY AUTHORITY,21/03/2016,LAUNDRY,FUSION,BLUEBELL LAUNDRY,5100334149,104.61
UNITED KINGDOM ATOMIC ENERGY AUTHORITY,UNITED KINGDOM ATOMIC ENERGY AUTHORITY,21/03/2016,IT EQUIPMENT NON CAPITAL,FUSION,BLUEFORT SECURITY,5100334139,"4,230.00"
UNITED KINGDOM ATOMIC ENERGY AUTHORITY,UNITED KINGDOM ATOMIC ENERGY AUTHORITY,29/02/2016,PROFESSIONAL SERVICES,FUSION,BNS NUCLEAR SERVICES,5100333032,"50,490.15"
UNITED KINGDOM ATOMIC ENERGY AUTHORITY,UNITED KINGDOM ATOMIC ENERGY AUTHORITY,21/03/2016,PROFESSIONAL SERVICES,FUSION,BNS NUCLEAR SERVICES,5100334204,"27,600.66"
UNITED KINGDOM ATOMIC ENERGY AUTHORITY,UNITED KINGDOM ATOMIC ENERGY AUTHORITY,07/03/2016,PROFESSIONAL SERVICES,FUSION,BNS NUCLEAR SERVICES,5100333387,"27,187.53"
UNITED KINGDOM ATOMIC ENERGY AUTHORITY,UNITED KINGDOM ATOMIC ENERGY AUTHORITY,21/03/2016,PROFESSIONAL SERVICES,FUSION,BNS NUCLEAR SERVICES,5100334156,"25,111.38"
UNITED KINGDOM ATOMIC ENERGY AUTHORITY,UNITED KINGDOM ATOMIC ENERGY AUTHORITY,29/03/2016,PROFESSIONAL SERVICES,FUSION,BNS NUCLEAR SERVICES,5100334566,"24,837.73"
UNITED KINGDOM ATOMIC ENERGY AUTHORITY,UNITED KINGDOM ATOMIC ENERGY AUTHORITY,21/03/2016,PROFESSIONAL SERVICES,FUSION,BNS NUCLEAR SERVICES,5100334205,"24,538.86"
UNITED KINGDOM ATOMIC ENERGY AUTHORITY,UNITED KINGDOM ATOMIC ENERGY AUTHORITY,09/03/2016,PROFESSIONAL SERVICES,FUSION,BNS NUCLEAR SERVICES,5100333620,"4,961.66"
UNITED KINGDOM ATOMIC ENERGY AUTHORITY,UNITED KINGDOM ATOMIC ENERGY AUTHORITY,24/02/2016,PROFESSIONAL SERVICES,FUSION,BNS NUCLEAR SERVICES,5100332364,"3,000.00"
UNITED KINGDOM ATOMIC ENERGY AUTHORITY,UNITED KINGDOM ATOMIC ENERGY AUTHORITY,29/03/2016,PLANT & EQUIPMENT,FUSION,BOARDMAN TRANSFORMERS LTD,1900061430,99.60
UNITED KINGDOM ATOMIC ENERGY AUTHORITY,UNITED KINGDOM ATOMIC ENERGY AUTHORITY,29/03/2016,GASES,FUSION,BOC LTD,5100334356,"31,288.90"
UNITED KINGDOM ATOMIC ENERGY AUTHORITY,UNITED KINGDOM ATOMIC ENERGY AUTHORITY,16/03/2016,GASES,FUSION,BOC LTD,5100333858,"18,752.93"
UNITED KINGDOM ATOMIC ENERGY AUTHORITY,UNITED KINGDOM ATOMIC ENERGY AUTHORITY,07/03/2016,GASES,FUSION,BOC LTD,5100333325,"3,183.82"
UNITED KINGDOM ATOMIC ENERGY AUTHORITY,UNITED KINGDOM ATOMIC ENERGY AUTHORITY,23/03/2016,GASES,FUSION,BOC LTD,5100333871,"3,183.82"
UNITED KINGDOM ATOMIC ENERGY AUTHORITY,UNITED KINGDOM ATOMIC ENERGY AUTHORITY,23/03/2016,GASES,FUSION,BOC LTD,5100333872,"2,569.26"
UNITED KINGDOM ATOMIC ENERGY AUTHORITY,UNITED KINGDOM ATOMIC ENERGY AUTHORITY,02/03/2016,GASES,FUSION,BOC LTD,5100333023,950.13
UNITED KINGDOM ATOMIC ENERGY AUTHORITY,UNITED KINGDOM ATOMIC ENERGY AUTHORITY,23/03/2016,GASES,FUSION,BOC LTD,5100334434,390.53
UNITED KINGDOM ATOMIC ENERGY AUTHORITY,UNITED KINGDOM ATOMIC ENERGY AUTHORITY,29/03/2016,GASES,FUSION,BOC LTD,5100334219,354.80
UNITED KINGDOM ATOMIC ENERGY AUTHORITY,UNITED KINGDOM ATOMIC ENERGY AUTHORITY,02/03/2016,GASES,FUSION,BOC LTD,5100333283,350.25
UNITED KINGDOM ATOMIC ENERGY AUTHORITY,UNITED KINGDOM ATOMIC ENERGY AUTHORITY,14/03/2016,GASES,FUSION,BOC LTD,5100333733,337.00
UNITED KINGDOM ATOMIC ENERGY AUTHORITY,UNITED KINGDOM ATOMIC ENERGY AUTHORITY,29/02/2016,GASES,FUSION,BOC LTD,5100332415,333.75
UNITED KINGDOM ATOMIC ENERGY AUTHORITY,UNITED KINGDOM ATOMIC ENERGY AUTHORITY,14/03/2016,GASES,FUSION,BOC LTD,5100333717,331.47
UNITED KINGDOM ATOMIC ENERGY AUTHORITY,UNITED KINGDOM ATOMIC ENERGY AUTHORITY,29/02/2016,GASES,FUSION,BOC LTD,5100332418,304.15
UNITED KINGDOM ATOMIC ENERGY AUTHORITY,UNITED KINGDOM ATOMIC ENERGY AUTHORITY,29/02/2016,GASES,FUSION,BOC LTD,5100331302,299.08
UNITED KINGDOM ATOMIC ENERGY AUTHORITY,UNITED KINGDOM ATOMIC ENERGY AUTHORITY,21/03/2016,GASES,FUSION,BOC LTD,5100334154,261.75
UNITED KINGDOM ATOMIC ENERGY AUTHORITY,UNITED KINGDOM ATOMIC ENERGY AUTHORITY,09/03/2016,GASES,FUSION,BOC LTD,5100333373,256.50
UNITED KINGDOM ATOMIC ENERGY AUTHORITY,UNITED KINGDOM ATOMIC ENERGY AUTHORITY,14/03/2016,GASES,FUSION,BOC LTD,5100333716,253.75
UNITED KINGDOM ATOMIC ENERGY AUTHORITY,UNITED KINGDOM ATOMIC ENERGY AUTHORITY,14/03/2016,GASES,FUSION,BOC LTD,5100333735,250.50
UNITED KINGDOM ATOMIC ENERGY AUTHORITY,UNITED KINGDOM ATOMIC ENERGY AUTHORITY,07/03/2016,GASES,FUSION,BOC LTD,5100333537,242.30
UNITED KINGDOM ATOMIC ENERGY AUTHORITY,UNITED KINGDOM ATOMIC ENERGY AUTHORITY,14/03/2016,GASES,FUSION,BOC LTD,5100333729,203.93
UNITED KINGDOM ATOMIC ENERGY AUTHORITY,UNITED KINGDOM ATOMIC ENERGY AUTHORITY,29/03/2016,GASES,FUSION,BOC LTD,5100333725,181.75
UNITED KINGDOM ATOMIC ENERGY AUTHORITY,UNITED KINGDOM ATOMIC ENERGY AUTHORITY,07/03/2016,GASES,FUSION,BOC LTD,5100331649,169.94
UNITED KINGDOM ATOMIC ENERGY AUTHORITY,UNITED KINGDOM ATOMIC ENERGY AUTHORITY,21/03/2016,GASES,FUSION,BOC LTD,5100333722,141.75
UNITED KINGDOM ATOMIC ENERGY AUTHORITY,UNITED KINGDOM ATOMIC ENERGY AUTHORITY,29/02/2016,GASES,FUSION,BOC LTD,5100332419,132.00
UNITED KINGDOM ATOMIC ENERGY AUTHORITY,UNITED KINGDOM ATOMIC ENERGY AUTHORITY,29/02/2016,GASES,FUSION,BOC LTD,5100332799,111.66
UNITED KINGDOM ATOMIC ENERGY AUTHORITY,UNITED KINGDOM ATOMIC ENERGY AUTHORITY,29/02/2016,GASES,FUSION,BOC LTD,5100332585,103.48
UNITED KINGDOM ATOMIC ENERGY AUTHORITY,UNITED KINGDOM ATOMIC ENERGY AUTHORITY,29/03/2016,GASES,FUSION,BOC LTD,5100333873,101.68
UNITED KINGDOM ATOMIC ENERGY AUTHORITY,UNITED KINGDOM ATOMIC ENERGY AUTHORITY,07/03/2016,GASES,FUSION,BOC LTD,5100332629,89.71
UNITED KINGDOM ATOMIC ENERGY AUTHORITY,UNITED KINGDOM ATOMIC ENERGY AUTHORITY,07/03/2016,GASES,FUSION,BOC LTD,5100333000,74.59
UNITED KINGDOM ATOMIC ENERGY AUTHORITY,UNITED KINGDOM ATOMIC ENERGY AUTHORITY,07/03/2016,GASES,FUSION,BOC LTD,5100332252,71.41
UNITED KINGDOM ATOMIC ENERGY AUTHORITY,UNITED KINGDOM ATOMIC ENERGY AUTHORITY,07/03/2016,GASES,FUSION,BOC LTD,5100333281,62.40
UNITED KINGDOM ATOMIC ENERGY AUTHORITY,UNITED KINGDOM ATOMIC ENERGY AUTHORITY,29/03/2016,GASES,FUSION,BOC LTD,5100334059,62.40
UNITED KINGDOM ATOMIC ENERGY AUTHORITY,UNITED KINGDOM ATOMIC ENERGY AUTHORITY,14/03/2016,GASES,FUSION,BOC LTD,5100333738,58.50
UNITED KINGDOM ATOMIC ENERGY AUTHORITY,UNITED KINGDOM ATOMIC ENERGY AUTHORITY,14/03/2016,GASES,FUSION,BOC LTD,5100333854,57.50
UNITED KINGDOM ATOMIC ENERGY AUTHORITY,UNITED KINGDOM ATOMIC ENERGY AUTHORITY,07/03/2016,GASES,FUSION,BOC LTD,5100333535,41.60
UNITED KINGDOM ATOMIC ENERGY AUTHORITY,UNITED KINGDOM ATOMIC ENERGY AUTHORITY,29/02/2016,GASES,FUSION,BOC LTD,5100332939,41.10
UNITED KINGDOM ATOMIC ENERGY AUTHORITY,UNITED KINGDOM ATOMIC ENERGY AUTHORITY,16/03/2016,GASES,FUSION,BOC LTD,5100333870,41.10
UNITED KINGDOM ATOMIC ENERGY AUTHORITY,UNITED KINGDOM ATOMIC ENERGY AUTHORITY,14/03/2016,GASES,FUSION,BOC LTD,5100333737,35.25
UNITED KINGDOM ATOMIC ENERGY AUTHORITY,UNITED KINGDOM ATOMIC ENERGY AUTHORITY,07/03/2016,GASES,FUSION,BOC LTD,5100332417,31.50
UNITED KINGDOM ATOMIC ENERGY AUTHORITY,UNITED KINGDOM ATOMIC ENERGY AUTHORITY,29/02/2016,GASES,FUSION,BOC LTD,5100331991,24.66
UNITED KINGDOM ATOMIC ENERGY AUTHORITY,UNITED KINGDOM ATOMIC ENERGY AUTHORITY,14/03/2016,GASES,FUSION,BOC LTD,5100333726,22.50
UNITED KINGDOM ATOMIC ENERGY AUTHORITY,UNITED KINGDOM ATOMIC ENERGY AUTHORITY,07/03/2016,GASES,FUSION,BOC LTD,5100332288,17.62
UNITED KINGDOM ATOMIC ENERGY AUTHORITY,UNITED KINGDOM ATOMIC ENERGY AUTHORITY,29/02/2016,GASES,FUSION,BOC LTD,5100333025,16.44
UNITED KINGDOM ATOMIC ENERGY AUTHORITY,UNITED KINGDOM ATOMIC ENERGY AUTHORITY,21/03/2016,GASES,FUSION,BOC LTD,5100334054,11.30
UNITED KINGDOM ATOMIC ENERGY AUTHORITY,UNITED KINGDOM ATOMIC ENERGY AUTHORITY,14/03/2016,GASES,FUSION,BOC LTD,5100333739,10.58
UNITED KINGDOM ATOMIC ENERGY AUTHORITY,UNITED KINGDOM ATOMIC ENERGY AUTHORITY,07/03/2016,GASES,FUSION,BOC LTD,5100333536,8.22
UNITED KINGDOM ATOMIC ENERGY AUTHORITY,UNITED KINGDOM ATOMIC ENERGY AUTHORITY,02/03/2016,GASES,FUSION,BOC LTD,5100332285,-21.36
UNITED KINGDOM ATOMIC ENERGY AUTHORITY,UNITED KINGDOM ATOMIC ENERGY AUTHORITY,02/03/2016,GASES,FUSION,BOC LTD,5100333295,-39.41
UNITED KINGDOM ATOMIC ENERGY AUTHORITY,UNITED KINGDOM ATOMIC ENERGY AUTHORITY,29/02/2016,GASES,FUSION,BOC LTD,5100333001,-45.98
UNITED KINGDOM ATOMIC ENERGY AUTHORITY,UNITED KINGDOM ATOMIC ENERGY AUTHORITY,29/02/2016,GASES,FUSION,BOC LTD,5100332425,-316.80
UNITED KINGDOM ATOMIC ENERGY AUTHORITY,UNITED KINGDOM ATOMIC ENERGY AUTHORITY,29/02/2016,GASES,FUSION,BOC LTD,5100333002,-792.00
UNITED KINGDOM ATOMIC ENERGY AUTHORITY,UNITED KINGDOM ATOMIC ENERGY AUTHORITY,21/03/2016,PROFESSIONAL SERVICES,FUSION,BODYCOTE HEAT LTD,5100334052,"1,508.80"
UNITED KINGDOM ATOMIC ENERGY AUTHORITY,UNITED KINGDOM ATOMIC ENERGY AUTHORITY,24/02/2016,MATERIALS & SPARES,FUSION,BORDER TECHNOLOGY & INNOVATIONS (UK) LTD,1900061350,313.00
UNITED KINGDOM ATOMIC ENERGY AUTHORITY,UNITED KINGDOM ATOMIC ENERGY AUTHORITY,29/02/2016,CONSUMABLES,FUSION,BOXER MACHINE TOOLS SERVICES,5100333212,"4,710.00"
UNITED KINGDOM ATOMIC ENERGY AUTHORITY,UNITED KINGDOM ATOMIC ENERGY AUTHORITY,23/03/2016,CONSUMABLES,FUSION,BOXER MACHINE TOOLS SERVICES,5100334324,"4,710.00"
UNITED KINGDOM ATOMIC ENERGY AUTHORITY,UNITED KINGDOM ATOMIC ENERGY AUTHORITY,17/03/2016,COMPENSATION & LEGAL FEES,SUPPORT SERVICES,BOYES TURNER LLP,1900061387,"3,700.00"
UNITED KINGDOM ATOMIC ENERGY AUTHORITY,UNITED KINGDOM ATOMIC ENERGY AUTHORITY,29/02/2016,PLANT SPARES,FUSION,BRITE PRECISION,5100333169,450.00
UNITED KINGDOM ATOMIC ENERGY AUTHORITY,UNITED KINGDOM ATOMIC ENERGY AUTHORITY,21/03/2016,UTILITIES/ELECTRICITY,PROPERTY,BRITISH GAS BUSINESS,5100334313,"1,566.80"
UNITED KINGDOM ATOMIC ENERGY AUTHORITY,UNITED KINGDOM ATOMIC ENERGY AUTHORITY,21/03/2016,UTILITIES/ELECTRICITY,PROPERTY,BRITISH GAS BUSINESS,5100333705,"1,015.93"
UNITED KINGDOM ATOMIC ENERGY AUTHORITY,UNITED KINGDOM ATOMIC ENERGY AUTHORITY,21/03/2016,UTILITIES/ELECTRICITY,PROPERTY,BRITISH GAS BUSINESS,5100334314,692.55
UNITED KINGDOM ATOMIC ENERGY AUTHORITY,UNITED KINGDOM ATOMIC ENERGY AUTHORITY,21/03/2016,UTILITIES/ELECTRICITY,PROPERTY,BRITISH GAS BUSINESS,5100334312,494.07
UNITED KINGDOM ATOMIC ENERGY AUTHORITY,UNITED KINGDOM ATOMIC ENERGY AUTHORITY,21/03/2016,UTILITIES/ELECTRICITY,PROPERTY,BRITISH GAS BUSINESS,5100334306,234.00
UNITED KINGDOM ATOMIC ENERGY AUTHORITY,UNITED KINGDOM ATOMIC ENERGY AUTHORITY,21/03/2016,UTILITIES/ELECTRICITY,PROPERTY,BRITISH GAS BUSINESS,5100334304,163.86
UNITED KINGDOM ATOMIC ENERGY AUTHORITY,UNITED KINGDOM ATOMIC ENERGY AUTHORITY,21/03/2016,UTILITIES/ELECTRICITY,PROPERTY,BRITISH GAS BUSINESS,5100334310,76.25
UNITED KINGDOM ATOMIC ENERGY AUTHORITY,UNITED KINGDOM ATOMIC ENERGY AUTHORITY,21/03/2016,UTILITIES/ELECTRICITY,PROPERTY,BRITISH GAS BUSINESS,5100334309,50.58
UNITED KINGDOM ATOMIC ENERGY AUTHORITY,UNITED KINGDOM ATOMIC ENERGY AUTHORITY,29/03/2016,CONSUMABLES,FUSION,BRITISH SALT LTD,5100334603,"2,888.34"
UNITED KINGDOM ATOMIC ENERGY AUTHORITY,UNITED KINGDOM ATOMIC ENERGY AUTHORITY,22/02/2016,BOOKS & PUBLICATIONS,FUSION,BRITISH STANDARDS INSTITUTION,5100332792,676.00
UNITED KINGDOM ATOMIC ENERGY AUTHORITY,UNITED KINGDOM ATOMIC ENERGY AUTHORITY,02/03/2016,F&F,FUSION,BROADSTOCK OFFICE FURNITURE LTD,5100333028,"14,009.00"
UNITED KINGDOM ATOMIC ENERGY AUTHORITY,UNITED KINGDOM ATOMIC ENERGY AUTHORITY,02/03/2016,F&F,FUSION,BROADSTOCK OFFICE FURNITURE LTD,5100333030,"13,723.00"
UNITED KINGDOM ATOMIC ENERGY AUTHORITY,UNITED KINGDOM ATOMIC ENERGY AUTHORITY,22/02/2016,F&F,FUSION,BROADSTOCK OFFICE FURNITURE LTD,5100332542,"13,347.00"
UNITED KINGDOM ATOMIC ENERGY AUTHORITY,UNITED KINGDOM ATOMIC ENERGY AUTHORITY,22/02/2016,F&F,FUSION,BROADSTOCK OFFICE FURNITURE LTD,5100332534,"11,617.00"
UNITED KINGDOM ATOMIC ENERGY AUTHORITY,UNITED KINGDOM ATOMIC ENERGY AUTHORITY,02/03/2016,F&F,FUSION,BROADSTOCK OFFICE FURNITURE LTD,5100333029,"6,550.00"
UNITED KINGDOM ATOMIC ENERGY AUTHORITY,UNITED KINGDOM ATOMIC ENERGY AUTHORITY,29/02/2016,F&F,FUSION,BROADSTOCK OFFICE FURNITURE LTD,5100333027,"5,896.00"
UNITED KINGDOM ATOMIC ENERGY AUTHORITY,UNITED KINGDOM ATOMIC ENERGY AUTHORITY,22/02/2016,F&F,FUSION,BROADSTOCK OFFICE FURNITURE LTD,5100332529,"5,619.00"
UNITED KINGDOM ATOMIC ENERGY AUTHORITY,UNITED KINGDOM ATOMIC ENERGY AUTHORITY,02/03/2016,F&F,FUSION,BROADSTOCK OFFICE FURNITURE LTD,5100333031,"5,298.00"
UNITED KINGDOM ATOMIC ENERGY AUTHORITY,UNITED KINGDOM ATOMIC ENERGY AUTHORITY,29/02/2016,F&F,FUSION,BROADSTOCK OFFICE FURNITURE LTD,5100333026,"4,671.00"
UNITED KINGDOM ATOMIC ENERGY AUTHORITY,UNITED KINGDOM ATOMIC ENERGY AUTHORITY,22/02/2016,F&F,FUSION,BROADSTOCK OFFICE FURNITURE LTD,5100332526,"4,530.00"
UNITED KINGDOM ATOMIC ENERGY AUTHORITY,UNITED KINGDOM ATOMIC ENERGY AUTHORITY,22/02/2016,F&F,FUSION,BROADSTOCK OFFICE FURNITURE LTD,5100332531,"4,285.00"
UNITED KINGDOM ATOMIC ENERGY AUTHORITY,UNITED KINGDOM ATOMIC ENERGY AUTHORITY,22/02/2016,F&F,FUSION,BROADSTOCK OFFICE FURNITURE LTD,5100332530,"3,746.00"
UNITED KINGDOM ATOMIC ENERGY AUTHORITY,UNITED KINGDOM ATOMIC ENERGY AUTHORITY,22/02/2016,F&F,FUSION,BROADSTOCK OFFICE FURNITURE LTD,5100332538,"3,522.00"
UNITED KINGDOM ATOMIC ENERGY AUTHORITY,UNITED KINGDOM ATOMIC ENERGY AUTHORITY,22/02/2016,F&F,FUSION,BROADSTOCK OFFICE FURNITURE LTD,5100332528,"2,748.00"
UNITED KINGDOM ATOMIC ENERGY AUTHORITY,UNITED KINGDOM ATOMIC ENERGY AUTHORITY,22/02/2016,F&F,FUSION,BROADSTOCK OFFICE FURNITURE LTD,5100332535,"2,736.00"
UNITED KINGDOM ATOMIC ENERGY AUTHORITY,UNITED KINGDOM ATOMIC ENERGY AUTHORITY,22/02/2016,F&F,FUSION,BROADSTOCK OFFICE FURNITURE LTD,5100332532,"2,710.00"
UNITED KINGDOM ATOMIC ENERGY AUTHORITY,UNITED KINGDOM ATOMIC ENERGY AUTHORITY,29/03/2016,F&F,FUSION,BROADSTOCK OFFICE FURNITURE LTD,5100334445,"1,728.00"
UNITED KINGDOM ATOMIC ENERGY AUTHORITY,UNITED KINGDOM ATOMIC ENERGY AUTHORITY,22/02/2016,F&F,FUSION,BROADSTOCK OFFICE FURNITURE LTD,5100332536,"1,592.00"
UNITED KINGDOM ATOMIC ENERGY AUTHORITY,UNITED KINGDOM ATOMIC ENERGY AUTHORITY,07/03/2016,F&F,FUSION,BROADSTOCK OFFICE FURNITURE LTD,5100333626,"1,575.00"
UNITED KINGDOM ATOMIC ENERGY AUTHORITY,UNITED KINGDOM ATOMIC ENERGY AUTHORITY,22/02/2016,F&F,FUSION,BROADSTOCK OFFICE FURNITURE LTD,5100332527,"1,100.00"
UNITED KINGDOM ATOMIC ENERGY AUTHORITY,UNITED KINGDOM ATOMIC ENERGY AUTHORITY,22/02/2016,F&F,FUSION,BROADSTOCK OFFICE FURNITURE LTD,5100332537,946.00
UNITED KINGDOM ATOMIC ENERGY AUTHORITY,UNITED KINGDOM ATOMIC ENERGY AUTHORITY,22/02/2016,F&F,FUSION,BROADSTOCK OFFICE FURNITURE LTD,5100332541,864.00
UNITED KINGDOM ATOMIC ENERGY AUTHORITY,UNITED KINGDOM ATOMIC ENERGY AUTHORITY,07/03/2016,F&F,SUPPORT SERVICES,BROADSTOCK OFFICE FURNITURE LTD,5100333323,582.00
UNITED KINGDOM ATOMIC ENERGY AUTHORITY,UNITED KINGDOM ATOMIC ENERGY AUTHORITY,21/03/2016,F&F,FUSION,BROADSTOCK OFFICE FURNITURE LTD,5100334162,541.00
UNITED KINGDOM ATOMIC ENERGY AUTHORITY,UNITED KINGDOM ATOMIC ENERGY AUTHORITY,16/03/2016,F&F,SUPPORT SERVICES,BROADSTOCK OFFICE FURNITURE LTD,5100333885,301.00
UNITED KINGDOM ATOMIC ENERGY AUTHORITY,UNITED KINGDOM ATOMIC ENERGY AUTHORITY,21/03/2016,F&F,FUSION,BROADSTOCK OFFICE FURNITURE LTD,5100334166,267.00
UNITED KINGDOM ATOMIC ENERGY AUTHORITY,UNITED KINGDOM ATOMIC ENERGY AUTHORITY,14/03/2016,REPAIRS & MAINTENANCE,FUSION,BSA MACHINE TOOLS LTD,5100333856,"1,800.00"
UNITED KINGDOM ATOMIC ENERGY AUTHORITY,UNITED KINGDOM ATOMIC ENERGY AUTHORITY,21/03/2016,REPAIRS & MAINTENANCE,FUSION,BSA MACHINE TOOLS LTD,5100333855,"1,080.00"
UNITED KINGDOM ATOMIC ENERGY AUTHORITY,UNITED KINGDOM ATOMIC ENERGY AUTHORITY,07/03/2016,REPAIRS & MAINTENANCE,FUSION,BSA MACHINE TOOLS LTD,5100333513,720.00
UNITED KINGDOM ATOMIC ENERGY AUTHORITY,UNITED KINGDOM ATOMIC ENERGY AUTHORITY,07/03/2016,REPAIRS & MAINTENANCE,FUSION,BSA MACHINE TOOLS LTD,5100333515,720.00
UNITED KINGDOM ATOMIC ENERGY AUTHORITY,UNITED KINGDOM ATOMIC ENERGY AUTHORITY,14/03/2016,PROFESSIONAL SERVICES,PROPERTY,BSP CONSULTING,5100333675,690.00
UNITED KINGDOM ATOMIC ENERGY AUTHORITY,UNITED KINGDOM ATOMIC ENERGY AUTHORITY,14/03/2016,MATERIALS & SPARES,PROPERTY,BSS OXFORD,5100333676,135.37
UNITED KINGDOM ATOMIC ENERGY AUTHORITY,UNITED KINGDOM ATOMIC ENERGY AUTHORITY,29/03/2016,MATERIALS & SPARES,FUSION,BSS OXFORD,5100334366,25.06
UNITED KINGDOM ATOMIC ENERGY AUTHORITY,UNITED KINGDOM ATOMIC ENERGY AUTHORITY,22/02/2016,PERSONAL PROTECTIVE EQUIPMENT,FUSION,BUCK & HICKMAN LTD,5100332888,162.14
UNITED KINGDOM ATOMIC ENERGY AUTHORITY,UNITED KINGDOM ATOMIC ENERGY AUTHORITY,02/03/2016,PERSONAL PROTECTIVE EQUIPMENT,FUSION,BUCK & HICKMAN LTD,5100332669,45.53
UNITED KINGDOM ATOMIC ENERGY AUTHORITY,UNITED KINGDOM ATOMIC ENERGY AUTHORITY,02/03/2016,PERSONAL PROTECTIVE EQUIPMENT,FUSION,BUCK & HICKMAN LTD,5100332887,21.20
UNITED KINGDOM ATOMIC ENERGY AUTHORITY,UNITED KINGDOM ATOMIC ENERGY AUTHORITY,02/03/2016,PERSONAL PROTECTIVE EQUIPMENT,FUSION,BUCK & HICKMAN LTD,5100332670,15.99
UNITED KINGDOM ATOMIC ENERGY AUTHORITY,UNITED KINGDOM ATOMIC ENERGY AUTHORITY,02/03/2016,MATERIALS & SPARES,FUSION,BUDGET FORKTRUCKS LTD,5100333191,793.00
UNITED KINGDOM ATOMIC ENERGY AUTHORITY,UNITED KINGDOM ATOMIC ENERGY AUTHORITY,29/02/2016,MATERIALS & SPARES,FUSION,BUDGET FORKTRUCKS LTD,5100333192,390.00
UNITED KINGDOM ATOMIC ENERGY AUTHORITY,UNITED KINGDOM ATOMIC ENERGY AUTHORITY,29/02/2016,MATERIALS & SPARES,FUSION,BUDGET FORKTRUCKS LTD,5100333193,390.00
UNITED KINGDOM ATOMIC ENERGY AUTHORITY,UNITED KINGDOM ATOMIC ENERGY AUTHORITY,29/02/2016,MATERIALS & SPARES,FUSION,BUDGET FORKTRUCKS LTD,5100333196,390.00
UNITED KINGDOM ATOMIC ENERGY AUTHORITY,UNITED KINGDOM ATOMIC ENERGY AUTHORITY,29/02/2016,MATERIALS & SPARES,FUSION,BUDGET FORKTRUCKS LTD,5100333194,342.33
UNITED KINGDOM ATOMIC ENERGY AUTHORITY,UNITED KINGDOM ATOMIC ENERGY AUTHORITY,29/02/2016,MATERIALS & SPARES,FUSION,BUDGET FORKTRUCKS LTD,5100333195,312.00
UNITED KINGDOM ATOMIC ENERGY AUTHORITY,UNITED KINGDOM ATOMIC ENERGY AUTHORITY,21/03/2016,CATERING SUPPLIES,SUPPORT SERVICES,BWT UK LTD,5100334218,"1,096.23"
UNITED KINGDOM ATOMIC ENERGY AUTHORITY,UNITED KINGDOM ATOMIC ENERGY AUTHORITY,22/02/2016,CATERING SUPPLIES,SUPPORT SERVICES,BWT UK LTD,5100332451,183.60
UNITED KINGDOM ATOMIC ENERGY AUTHORITY,UNITED KINGDOM ATOMIC ENERGY AUTHORITY,07/03/2016,MATERIALS & SPARES,FUSION,CABLECRAFT LTD,5100333543,198.01
UNITED KINGDOM ATOMIC ENERGY AUTHORITY,UNITED KINGDOM ATOMIC ENERGY AUTHORITY,16/03/2016,MATERIALS & SPARES,FUSION,CABLECRAFT LTD,5100334179,175.36
UNITED KINGDOM ATOMIC ENERGY AUTHORITY,UNITED KINGDOM ATOMIC ENERGY AUTHORITY,14/03/2016,MATERIALS & SPARES,FUSION,CABLECRAFT LTD,5100333928,34.76
UNITED KINGDOM ATOMIC ENERGY AUTHORITY,UNITED KINGDOM ATOMIC ENERGY AUTHORITY,16/03/2016,MATERIALS & SPARES,FUSION,CABLECRAFT LTD,5100334178,-210.43
UNITED KINGDOM ATOMIC ENERGY AUTHORITY,UNITED KINGDOM ATOMIC ENERGY AUTHORITY,25/02/2016,TRAINING COURSE FEES,FUSION,CAMBRIDGE ENVIRONMENTAL RESEARCH CONSULTANTS LTD CERC,1900061355,100.00
UNITED KINGDOM ATOMIC ENERGY AUTHORITY,UNITED KINGDOM ATOMIC ENERGY AUTHORITY,07/03/2016,MATERIALS & SPARES,FUSION,CANBERRA UK LTD,5100333164,"15,015.00"
UNITED KINGDOM ATOMIC ENERGY AUTHORITY,UNITED KINGDOM ATOMIC ENERGY AUTHORITY,23/03/2016,MATERIALS & SPARES,FUSION,CANBERRA UK LTD,5100334367,792.00
UNITED KINGDOM ATOMIC ENERGY AUTHORITY,UNITED KINGDOM ATOMIC ENERGY AUTHORITY,29/03/2016,PLANT & EQUIPMENT,FUSION,CARBOLITE ENGINEERING SERVICES,5100334349,"8,440.00"
UNITED KINGDOM ATOMIC ENERGY AUTHORITY,UNITED KINGDOM ATOMIC ENERGY AUTHORITY,21/03/2016,CONSUMABLES,FUSION,CARILLON INDUSTRIAL SERVICES LTD,5100334062,266.44
UNITED KINGDOM ATOMIC ENERGY AUTHORITY,UNITED KINGDOM ATOMIC ENERGY AUTHORITY,29/02/2016,CONSUMABLES,FUSION,CARILLON INDUSTRIAL SERVICES LTD,5100333159,215.74
UNITED KINGDOM ATOMIC ENERGY AUTHORITY,UNITED KINGDOM ATOMIC ENERGY AUTHORITY,29/02/2016,CONSUMABLES,FUSION,CARILLON INDUSTRIAL SERVICES LTD,5100333161,107.24
UNITED KINGDOM ATOMIC ENERGY AUTHORITY,UNITED KINGDOM ATOMIC ENERGY AUTHORITY,29/02/2016,CONSUMABLES,FUSION,CARILLON INDUSTRIAL SERVICES LTD,5100333157,94.05
UNITED KINGDOM ATOMIC ENERGY AUTHORITY,UNITED KINGDOM ATOMIC ENERGY AUTHORITY,21/03/2016,CONSUMABLES,FUSION,CARILLON INDUSTRIAL SERVICES LTD,5100334060,24.38
UNITED KINGDOM ATOMIC ENERGY AUTHORITY,UNITED KINGDOM ATOMIC ENERGY AUTHORITY,21/03/2016,CONSUMABLES,FUSION,CARILLON INDUSTRIAL SERVICES LTD,5100334163,18.16
UNITED KINGDOM ATOMIC ENERGY AUTHORITY,UNITED KINGDOM ATOMIC ENERGY AUTHORITY,22/02/2016,LEGAL FEES,SUPPORT SERVICES,CATER LEYDON MILLARD LTD,5100332848,332.50
UNITED KINGDOM ATOMIC ENERGY AUTHORITY,UNITED KINGDOM ATOMIC ENERGY AUTHORITY,22/02/2016,LEGAL FEES,SUPPORT SERVICES,CATER LEYDON MILLARD LTD,5100332847,52.50
UNITED KINGDOM ATOMIC ENERGY AUTHORITY,UNITED KINGDOM ATOMIC ENERGY AUTHORITY,17/03/2016,CONSUMABLES,FUSION,CELESTE MECHANICAL MUSIC,1900061404,180.00
UNITED KINGDOM ATOMIC ENERGY AUTHORITY,UNITED KINGDOM ATOMIC ENERGY AUTHORITY,29/02/2016,MATERIALS & SPARES,FUSION,CITY ELECTRICAL FACTORS,5100333177,487.75
UNITED KINGDOM ATOMIC ENERGY AUTHORITY,UNITED KINGDOM ATOMIC ENERGY AUTHORITY,07/03/2016,MATERIALS & SPARES,PROPERTY,CITY ELECTRICAL FACTORS,5100333181,312.48
UNITED KINGDOM ATOMIC ENERGY AUTHORITY,UNITED KINGDOM ATOMIC ENERGY AUTHORITY,29/02/2016,MATERIALS & SPARES,FUSION,CITY ELECTRICAL FACTORS,5100333186,203.05
UNITED KINGDOM ATOMIC ENERGY AUTHORITY,UNITED KINGDOM ATOMIC ENERGY AUTHORITY,29/02/2016,MATERIALS & SPARES,FUSION,CITY ELECTRICAL FACTORS,5100333179,105.00
UNITED KINGDOM ATOMIC ENERGY AUTHORITY,UNITED KINGDOM ATOMIC ENERGY AUTHORITY,29/02/2016,MATERIALS & SPARES,FUSION,CITY ELECTRICAL FACTORS,5100333184,79.08
UNITED KINGDOM ATOMIC ENERGY AUTHORITY,UNITED KINGDOM ATOMIC ENERGY AUTHORITY,07/03/2016,MATERIALS & SPARES,FUSION,CITY ELECTRICAL FACTORS,5100333183,63.46
UNITED KINGDOM ATOMIC ENERGY AUTHORITY,UNITED KINGDOM ATOMIC ENERGY AUTHORITY,07/03/2016,MATERIALS & SPARES,PROPERTY,CITY ELECTRICAL FACTORS,5100333182,59.76
UNITED KINGDOM ATOMIC ENERGY AUTHORITY,UNITED KINGDOM ATOMIC ENERGY AUTHORITY,29/02/2016,MATERIALS & SPARES,FUSION,CITY ELECTRICAL FACTORS,5100333180,47.40
UNITED KINGDOM ATOMIC ENERGY AUTHORITY,UNITED KINGDOM ATOMIC ENERGY AUTHORITY,29/02/2016,MATERIALS & SPARES,FUSION,CITY ELECTRICAL FACTORS,5100333178,29.08
UNITED KINGDOM ATOMIC ENERGY AUTHORITY,UNITED KINGDOM ATOMIC ENERGY AUTHORITY,07/03/2016,LAUNDRY,FUSION,CLEAN LINEN SERVICES LTD,5100333532,63.08
UNITED KINGDOM ATOMIC ENERGY AUTHORITY,UNITED KINGDOM ATOMIC ENERGY AUTHORITY,07/03/2016,UTILITIES/GAS,PROPERTY,COFELY LTD,5100332835,"54,641.67"
UNITED KINGDOM ATOMIC ENERGY AUTHORITY,UNITED KINGDOM ATOMIC ENERGY AUTHORITY,07/03/2016,UTILITIES/GAS,PROPERTY,COFELY LTD,5100333203,"54,371.51"
UNITED KINGDOM ATOMIC ENERGY AUTHORITY,UNITED KINGDOM ATOMIC ENERGY AUTHORITY,07/03/2016,UTILITIES/GAS,PROPERTY,COFELY LTD,5100333585,"43,935.63"
UNITED KINGDOM ATOMIC ENERGY AUTHORITY,UNITED KINGDOM ATOMIC ENERGY AUTHORITY,02/03/2016,UTILITIES/GAS,FUSION,COFELY LTD,5100333262,"36,519.40"
UNITED KINGDOM ATOMIC ENERGY AUTHORITY,UNITED KINGDOM ATOMIC ENERGY AUTHORITY,07/03/2016,UTILITIES/GAS,PROPERTY,COFELY LTD,5100331667,"21,139.33"
UNITED KINGDOM ATOMIC ENERGY AUTHORITY,UNITED KINGDOM ATOMIC ENERGY AUTHORITY,07/03/2016,UTILITIES/GAS,PROPERTY,COFELY LTD,5100333266,"21,139.33"
UNITED KINGDOM ATOMIC ENERGY AUTHORITY,UNITED KINGDOM ATOMIC ENERGY AUTHORITY,07/03/2016,UTILITIES/GAS,PROPERTY,COFELY LTD,5100332837,"4,417.60"
UNITED KINGDOM ATOMIC ENERGY AUTHORITY,UNITED KINGDOM ATOMIC ENERGY AUTHORITY,07/03/2016,UTILITIES/GAS,PROPERTY,COFELY LTD,5100333204,"4,405.84"
UNITED KINGDOM ATOMIC ENERGY AUTHORITY,UNITED KINGDOM ATOMIC ENERGY AUTHORITY,07/03/2016,UTILITIES/GAS,PROPERTY,COFELY LTD,5100333586,"3,476.98"
UNITED KINGDOM ATOMIC ENERGY AUTHORITY,UNITED KINGDOM ATOMIC ENERGY AUTHORITY,07/03/2016,UTILITIES/GAS,PROPERTY,COFELY LTD,5100333583,"-4,466.36"
UNITED KINGDOM ATOMIC ENERGY AUTHORITY,UNITED KINGDOM ATOMIC ENERGY AUTHORITY,07/03/2016,UTILITIES/GAS,PROPERTY,COFELY LTD,5100333584,"-55,196.69"
UNITED KINGDOM ATOMIC ENERGY AUTHORITY,UNITED KINGDOM ATOMIC ENERGY AUTHORITY,02/03/2016,PLANT & EQUIPMENT,FUSION,COLE-PALMER INSTRUMENTAL COMPANY LTD,5100332940,17.95
UNITED KINGDOM ATOMIC ENERGY AUTHORITY,UNITED KINGDOM ATOMIC ENERGY AUTHORITY,17/03/2016,COMPENSATION,SUPPORT SERVICES,COMPENSATION CLAIMANT,1900061402,"2,000.00"
UNITED KINGDOM ATOMIC ENERGY AUTHORITY,UNITED KINGDOM ATOMIC ENERGY AUTHORITY,22/03/2016,COMPENSATION,SUPPORT SERVICES,COMPENSATION CLAIMANT,1900061415,"1,066.56"
UNITED KINGDOM ATOMIC ENERGY AUTHORITY,UNITED KINGDOM ATOMIC ENERGY AUTHORITY,25/02/2016,COMPENSATION,SUPPORT SERVICES,COMPENSATION CLAIMANT,1900061356,999.90
UNITED KINGDOM ATOMIC ENERGY AUTHORITY,UNITED KINGDOM ATOMIC ENERGY AUTHORITY,23/03/2016,MATERIALS & SPARES,FUSION,COMPLETE PCB SERVICES LTD,5100334398,159.20
UNITED KINGDOM ATOMIC ENERGY AUTHORITY,UNITED KINGDOM ATOMIC ENERGY AUTHORITY,23/03/2016,MATERIALS & SPARES,FUSION,COMPRESSORS & PNEUMATIC SYSTEMS LTD,5100334466,"3,042.50"
UNITED KINGDOM ATOMIC ENERGY AUTHORITY,UNITED KINGDOM ATOMIC ENERGY AUTHORITY,14/03/2016,MATERIALS & SPARES,FUSION,COMPRESSORS & PNEUMATIC SYSTEMS LTD,5100333740,669.78
UNITED KINGDOM ATOMIC ENERGY AUTHORITY,UNITED KINGDOM ATOMIC ENERGY AUTHORITY,29/02/2016,PLANT & EQUIPMENT,FUSION,CONCEPT ACCOMMODATION LTD,5100332584,"19,950.00"
UNITED KINGDOM ATOMIC ENERGY AUTHORITY,UNITED KINGDOM ATOMIC ENERGY AUTHORITY,14/03/2016,PLANT SPARES,FUSION,CONDEC INDUSTRIAL MAINTENANCE,5100333605,"1,465.00"
UNITED KINGDOM ATOMIC ENERGY AUTHORITY,UNITED KINGDOM ATOMIC ENERGY AUTHORITY,07/03/2016,PLANT SPARES,FUSION,CONDEC INDUSTRIAL MAINTENANCE,5100333439,320.00
UNITED KINGDOM ATOMIC ENERGY AUTHORITY,UNITED KINGDOM ATOMIC ENERGY AUTHORITY,07/03/2016,PLANT SPARES,FUSION,CONDEC INDUSTRIAL MAINTENANCE,5100333440,105.00
UNITED KINGDOM ATOMIC ENERGY AUTHORITY,UNITED KINGDOM ATOMIC ENERGY AUTHORITY,29/02/2016,MATERIALS & SPARES,FUSION,CPC PLC,5100332987,353.92
UNITED KINGDOM ATOMIC ENERGY AUTHORITY,UNITED KINGDOM ATOMIC ENERGY AUTHORITY,09/03/2016,MATERIALS & SPARES,FUSION,CPC PLC,5100333284,267.14
UNITED KINGDOM ATOMIC ENERGY AUTHORITY,UNITED KINGDOM ATOMIC ENERGY AUTHORITY,22/02/2016,MATERIALS & SPARES,FUSION,CPC PLC,5100332986,165.51
UNITED KINGDOM ATOMIC ENERGY AUTHORITY,UNITED KINGDOM ATOMIC ENERGY AUTHORITY,07/03/2016,MATERIALS & SPARES,FUSION,CPC PLC,5100333628,37.07
UNITED KINGDOM ATOMIC ENERGY AUTHORITY,UNITED KINGDOM ATOMIC ENERGY AUTHORITY,23/03/2016,MATERIALS & SPARES,FUSION,CPC PLC,5100334348,16.83
UNITED KINGDOM ATOMIC ENERGY AUTHORITY,UNITED KINGDOM ATOMIC ENERGY AUTHORITY,14/03/2016,MATERIALS & SPARES,FUSION,CPC PLC,5100333960,3.14
UNITED KINGDOM ATOMIC ENERGY AUTHORITY,UNITED KINGDOM ATOMIC ENERGY AUTHORITY,09/03/2016,PLANT & EQUIPMENT,FUSION,CREATIVE INSTRUMENTATION LTD,1900061371,"2,730.92"
UNITED KINGDOM ATOMIC ENERGY AUTHORITY,UNITED KINGDOM ATOMIC ENERGY AUTHORITY,07/03/2016,IT EQUIPMENT NON CAPITAL,FUSION,CREATIVE VIDEO PRODUCTIONS LTD,5100333421,"12,400.00"
UNITED KINGDOM ATOMIC ENERGY AUTHORITY,UNITED KINGDOM ATOMIC ENERGY AUTHORITY,23/03/2016,MATERIALS & SPARES,FUSION,CREOTECH INSTRUMENTS SA,5100328621,"7,127.83"
UNITED KINGDOM ATOMIC ENERGY AUTHORITY,UNITED KINGDOM ATOMIC ENERGY AUTHORITY,23/03/2016,MATERIALS & SPARES,FUSION,CREOTECH INSTRUMENTS SA,5100328634,-612.11
UNITED KINGDOM ATOMIC ENERGY AUTHORITY,UNITED KINGDOM ATOMIC ENERGY AUTHORITY,23/03/2016,MEDICAL EXPENSES,SUPPORT SERVICES,CRICH MEDICAL PRACTICE,1900061416,120.00
UNITED KINGDOM ATOMIC ENERGY AUTHORITY,UNITED KINGDOM ATOMIC ENERGY AUTHORITY,21/03/2016,MATERIALS & SPARES,FUSION,CROMWELL LTD,5100334226,"3,039.43"
UNITED KINGDOM ATOMIC ENERGY AUTHORITY,UNITED KINGDOM ATOMIC ENERGY AUTHORITY,21/03/2016,MATERIALS & SPARES,FUSION,CROMWELL LTD,5100334231,"1,660.01"
UNITED KINGDOM ATOMIC ENERGY AUTHORITY,UNITED KINGDOM ATOMIC ENERGY AUTHORITY,29/02/2016,MATERIALS & SPARES,FUSION,CROMWELL LTD,5100333165,935.70
UNITED KINGDOM ATOMIC ENERGY AUTHORITY,UNITED KINGDOM ATOMIC ENERGY AUTHORITY,29/02/2016,MATERIALS & SPARES,FUSION,CROMWELL LTD,5100333168,935.70
UNITED KINGDOM ATOMIC ENERGY AUTHORITY,UNITED KINGDOM ATOMIC ENERGY AUTHORITY,29/02/2016,MATERIALS & SPARES,FUSION,CROMWELL LTD,5100333166,711.00
UNITED KINGDOM ATOMIC ENERGY AUTHORITY,UNITED KINGDOM ATOMIC ENERGY AUTHORITY,29/03/2016,MATERIALS & SPARES,FUSION,CROMWELL LTD,5100334649,683.52
UNITED KINGDOM ATOMIC ENERGY AUTHORITY,UNITED KINGDOM ATOMIC ENERGY AUTHORITY,21/03/2016,MATERIALS & SPARES,FUSION,CROMWELL LTD,5100334230,654.30
UNITED KINGDOM ATOMIC ENERGY AUTHORITY,UNITED KINGDOM ATOMIC ENERGY AUTHORITY,16/03/2016,MATERIALS & SPARES,FUSION,CROMWELL LTD,5100333875,600.12
UNITED KINGDOM ATOMIC ENERGY AUTHORITY,UNITED KINGDOM ATOMIC ENERGY AUTHORITY,22/02/2016,MATERIALS & SPARES,FUSION,CROMWELL LTD,5100332895,587.29
UNITED KINGDOM ATOMIC ENERGY AUTHORITY,UNITED KINGDOM ATOMIC ENERGY AUTHORITY,21/03/2016,MATERIALS & SPARES,FUSION,CROMWELL LTD,5100334227,586.95
UNITED KINGDOM ATOMIC ENERGY AUTHORITY,UNITED KINGDOM ATOMIC ENERGY AUTHORITY,07/03/2016,MATERIALS & SPARES,FUSION,CROMWELL LTD,5100333592,343.20
UNITED KINGDOM ATOMIC ENERGY AUTHORITY,UNITED KINGDOM ATOMIC ENERGY AUTHORITY,07/03/2016,MATERIALS & SPARES,FUSION,CROMWELL LTD,5100333589,298.48
UNITED KINGDOM ATOMIC ENERGY AUTHORITY,UNITED KINGDOM ATOMIC ENERGY AUTHORITY,07/03/2016,MATERIALS & SPARES,FUSION,CROMWELL LTD,5100333588,297.50
UNITED KINGDOM ATOMIC ENERGY AUTHORITY,UNITED KINGDOM ATOMIC ENERGY AUTHORITY,22/02/2016,MATERIALS & SPARES,FUSION,CROMWELL LTD,5100332893,251.33
UNITED KINGDOM ATOMIC ENERGY AUTHORITY,UNITED KINGDOM ATOMIC ENERGY AUTHORITY,22/02/2016,MATERIALS & SPARES,FUSION,CROMWELL LTD,5100332891,248.24
UNITED KINGDOM ATOMIC ENERGY AUTHORITY,UNITED KINGDOM ATOMIC ENERGY AUTHORITY,16/03/2016,MATERIALS & SPARES,FUSION,CROMWELL LTD,5100333879,222.88
UNITED KINGDOM ATOMIC ENERGY AUTHORITY,UNITED KINGDOM ATOMIC ENERGY AUTHORITY,22/02/2016,MATERIALS & SPARES,FUSION,CROMWELL LTD,5100332890,189.50
UNITED KINGDOM ATOMIC ENERGY AUTHORITY,UNITED KINGDOM ATOMIC ENERGY AUTHORITY,14/03/2016,MATERIALS & SPARES,FUSION,CROMWELL LTD,5100333876,178.80
UNITED KINGDOM ATOMIC ENERGY AUTHORITY,UNITED KINGDOM ATOMIC ENERGY AUTHORITY,29/03/2016,MATERIALS & SPARES,FUSION,CROMWELL LTD,5100334646,169.92
UNITED KINGDOM ATOMIC ENERGY AUTHORITY,UNITED KINGDOM ATOMIC ENERGY AUTHORITY,22/02/2016,MATERIALS & SPARES,FUSION,CROMWELL LTD,5100332894,155.08
UNITED KINGDOM ATOMIC ENERGY AUTHORITY,UNITED KINGDOM ATOMIC ENERGY AUTHORITY,07/03/2016,MATERIALS & SPARES,FUSION,CROMWELL LTD,5100333591,149.76
UNITED KINGDOM ATOMIC ENERGY AUTHORITY,UNITED KINGDOM ATOMIC ENERGY AUTHORITY,29/02/2016,MATERIALS & SPARES,FUSION,CROMWELL LTD,5100333167,134.06
UNITED KINGDOM ATOMIC ENERGY AUTHORITY,UNITED KINGDOM ATOMIC ENERGY AUTHORITY,21/03/2016,MATERIALS & SPARES,FUSION,CROMWELL LTD,5100334228,131.63
UNITED KINGDOM ATOMIC ENERGY AUTHORITY,UNITED KINGDOM ATOMIC ENERGY AUTHORITY,29/03/2016,MATERIALS & SPARES,FUSION,CROMWELL LTD,5100334647,130.26
UNITED KINGDOM ATOMIC ENERGY AUTHORITY,UNITED KINGDOM ATOMIC ENERGY AUTHORITY,21/03/2016,MATERIALS & SPARES,FUSION,CROMWELL LTD,5100334225,123.85
UNITED KINGDOM ATOMIC ENERGY AUTHORITY,UNITED KINGDOM ATOMIC ENERGY AUTHORITY,29/03/2016,MATERIALS & SPARES,FUSION,CROMWELL LTD,5100334644,97.60
UNITED KINGDOM ATOMIC ENERGY AUTHORITY,UNITED KINGDOM ATOMIC ENERGY AUTHORITY,29/03/2016,MATERIALS & SPARES,FUSION,CROMWELL LTD,5100334643,63.30
UNITED KINGDOM ATOMIC ENERGY AUTHORITY,UNITED KINGDOM ATOMIC ENERGY AUTHORITY,07/03/2016,MATERIALS & SPARES,FUSION,CROMWELL LTD,5100333590,45.81
UNITED KINGDOM ATOMIC ENERGY AUTHORITY,UNITED KINGDOM ATOMIC ENERGY AUTHORITY,14/03/2016,MATERIALS & SPARES,FUSION,CROMWELL LTD,5100333878,32.64
UNITED KINGDOM ATOMIC ENERGY AUTHORITY,UNITED KINGDOM ATOMIC ENERGY AUTHORITY,22/02/2016,MATERIALS & SPARES,FUSION,CROMWELL LTD,5100332892,23.86
UNITED KINGDOM ATOMIC ENERGY AUTHORITY,UNITED KINGDOM ATOMIC ENERGY AUTHORITY,21/03/2016,MATERIALS & SPARES,FUSION,CROMWELL LTD,5100334221,20.04
UNITED KINGDOM ATOMIC ENERGY AUTHORITY,UNITED KINGDOM ATOMIC ENERGY AUTHORITY,21/03/2016,MATERIALS & SPARES,FUSION,CROSSMAN ENGINEERING,5100334257,"1,996.00"
UNITED KINGDOM ATOMIC ENERGY AUTHORITY,UNITED KINGDOM ATOMIC ENERGY AUTHORITY,14/03/2016,MATERIALS & SPARES,FUSION,CROSSMAN ENGINEERING,5100333700,297.00
UNITED KINGDOM ATOMIC ENERGY AUTHORITY,UNITED KINGDOM ATOMIC ENERGY AUTHORITY,07/03/2016,MATERIALS & SPARES,FUSION,CROSSMAN ENGINEERING,5100333378,279.00
UNITED KINGDOM ATOMIC ENERGY AUTHORITY,UNITED KINGDOM ATOMIC ENERGY AUTHORITY,14/03/2016,PROFESSIONAL SERVICES,SUPPORT SERVICES,CSC COMPUTER SERVICES,5100332865,"33,671.68"
UNITED KINGDOM ATOMIC ENERGY AUTHORITY,UNITED KINGDOM ATOMIC ENERGY AUTHORITY,21/03/2016,PROFESSIONAL SERVICES,SUPPORT SERVICES,CSC COMPUTER SERVICES,5100334100,"33,347.09"
UNITED KINGDOM ATOMIC ENERGY AUTHORITY,UNITED KINGDOM ATOMIC ENERGY AUTHORITY,14/03/2016,PROFESSIONAL SERVICES,SUPPORT SERVICES,CSC COMPUTER SERVICES,5100332864,"18,672.31"
UNITED KINGDOM ATOMIC ENERGY AUTHORITY,UNITED KINGDOM ATOMIC ENERGY AUTHORITY,21/03/2016,PROFESSIONAL SERVICES,SUPPORT SERVICES,CSC COMPUTER SERVICES,5100334102,"18,672.31"
UNITED KINGDOM ATOMIC ENERGY AUTHORITY,UNITED KINGDOM ATOMIC ENERGY AUTHORITY,21/03/2016,PROFESSIONAL SERVICES,FUSION,CSC COMPUTER SERVICES,5100334037,"12,742.16"
UNITED KINGDOM ATOMIC ENERGY AUTHORITY,UNITED KINGDOM ATOMIC ENERGY AUTHORITY,14/03/2016,PROFESSIONAL SERVICES,FUSION,CSC COMPUTER SERVICES,5100333250,"9,638.58"
UNITED KINGDOM ATOMIC ENERGY AUTHORITY,UNITED KINGDOM ATOMIC ENERGY AUTHORITY,14/03/2016,PROFESSIONAL SERVICES,FUSION,CSC COMPUTER SERVICES,5100333298,"5,566.00"
UNITED KINGDOM ATOMIC ENERGY AUTHORITY,UNITED KINGDOM ATOMIC ENERGY AUTHORITY,23/03/2016,PROFESSIONAL SERVICES,SUPPORT SERVICES,CSC COMPUTER SERVICES,5100334322,"4,234.56"
UNITED KINGDOM ATOMIC ENERGY AUTHORITY,UNITED KINGDOM ATOMIC ENERGY AUTHORITY,14/03/2016,PROFESSIONAL SERVICES,SUPPORT SERVICES,CSC COMPUTER SERVICES,5100332054,"3,426.51"
UNITED KINGDOM ATOMIC ENERGY AUTHORITY,UNITED KINGDOM ATOMIC ENERGY AUTHORITY,14/03/2016,PROFESSIONAL SERVICES,SUPPORT SERVICES,CSC COMPUTER SERVICES,5100333114,"2,396.92"
UNITED KINGDOM ATOMIC ENERGY AUTHORITY,UNITED KINGDOM ATOMIC ENERGY AUTHORITY,14/03/2016,PLANT SPARES,FUSION,CSE INDUSTRIAL ELECTRICAL DISTRIBUT,5100333745,737.79
UNITED KINGDOM ATOMIC ENERGY AUTHORITY,UNITED KINGDOM ATOMIC ENERGY AUTHORITY,21/03/2016,PLANT SPARES,FUSION,CSE INDUSTRIAL ELECTRICAL DISTRIBUT,5100333188,737.79
UNITED KINGDOM ATOMIC ENERGY AUTHORITY,UNITED KINGDOM ATOMIC ENERGY AUTHORITY,07/03/2016,PLANT SPARES,FUSION,CSE INDUSTRIAL ELECTRICAL DISTRIBUT,5100333308,543.00
UNITED KINGDOM ATOMIC ENERGY AUTHORITY,UNITED KINGDOM ATOMIC ENERGY AUTHORITY,21/03/2016,PLANT SPARES,FUSION,CSE INDUSTRIAL ELECTRICAL DISTRIBUT,5100334082,412.50
UNITED KINGDOM ATOMIC ENERGY AUTHORITY,UNITED KINGDOM ATOMIC ENERGY AUTHORITY,07/03/2016,PLANT SPARES,FUSION,CSE INDUSTRIAL ELECTRICAL DISTRIBUT,5100333302,393.00
UNITED KINGDOM ATOMIC ENERGY AUTHORITY,UNITED KINGDOM ATOMIC ENERGY AUTHORITY,23/03/2016,SOFTWARE,FUSION,CULHAM ELECTROMAGNETICS LTD,5100334374,"5,120.00"
UNITED KINGDOM ATOMIC ENERGY AUTHORITY,UNITED KINGDOM ATOMIC ENERGY AUTHORITY,21/03/2016,PLANT & EQUIPMENT,FUSION,CUSTOM CONSOLES LTD,5100334036,"6,238.00"
UNITED KINGDOM ATOMIC ENERGY AUTHORITY,UNITED KINGDOM ATOMIC ENERGY AUTHORITY,16/03/2016,MATERIALS & SPARES,SUPPORT SERVICES,CUT KEYS DIRECT LTD,5100333703,9.18
UNITED KINGDOM ATOMIC ENERGY AUTHORITY,UNITED KINGDOM ATOMIC ENERGY AUTHORITY,29/02/2016,MATERIALS & SPARES,FUSION,CUT KEYS DIRECT LTD,5100332999,5.60
UNITED KINGDOM ATOMIC ENERGY AUTHORITY,UNITED KINGDOM ATOMIC ENERGY AUTHORITY,07/03/2016,MATERIALS & SPARES,FUSION,CUT KEYS DIRECT LTD,5100333383,5.60
UNITED KINGDOM ATOMIC ENERGY AUTHORITY,UNITED KINGDOM ATOMIC ENERGY AUTHORITY,21/03/2016,MATERIALS & SPARES,SUPPORT SERVICES,CUT KEYS DIRECT LTD,5100334157,5.60
UNITED KINGDOM ATOMIC ENERGY AUTHORITY,UNITED KINGDOM ATOMIC ENERGY AUTHORITY,07/03/2016,PLANT SPARES,FUSION,CUTWEL LTD,5100333309,91.60
UNITED KINGDOM ATOMIC ENERGY AUTHORITY,UNITED KINGDOM ATOMIC ENERGY AUTHORITY,09/03/2016,BUILDING REPAIRS,FUSION,D CLOUGH LTD,5100330350,645.80
UNITED KINGDOM ATOMIC ENERGY AUTHORITY,UNITED KINGDOM ATOMIC ENERGY AUTHORITY,16/03/2016,PLANT & EQUIPMENT,FUSION,DIGIKEY CORPORATION,5100333367,110.40
UNITED KINGDOM ATOMIC ENERGY AUTHORITY,UNITED KINGDOM ATOMIC ENERGY AUTHORITY,21/03/2016,PROFESSIONAL SERVICES,SUPPORT SERVICES,DISCLOSURE SCOTLAND,5100334202,350.00
UNITED KINGDOM ATOMIC ENERGY AUTHORITY,UNITED KINGDOM ATOMIC ENERGY AUTHORITY,22/02/2016,PROFESSIONAL SERVICES,SUPPORT SERVICES,DISCLOSURE SCOTLAND,5100332914,150.00
UNITED KINGDOM ATOMIC ENERGY AUTHORITY,UNITED KINGDOM ATOMIC ENERGY AUTHORITY,16/03/2016,MATERIALS & SPARES,FUSION,DTK WATER,1900061392,110.04
UNITED KINGDOM ATOMIC ENERGY AUTHORITY,UNITED KINGDOM ATOMIC ENERGY AUTHORITY,10/03/2016,INSPECTION SERVICES,FUSION,E C ELECTRONICS LTD,1900061383,"1,056.00"
UNITED KINGDOM ATOMIC ENERGY AUTHORITY,UNITED KINGDOM ATOMIC ENERGY AUTHORITY,14/03/2016,ELECTRICITY,FUSION,E.ON (UK) LTD,5100333708,"256,101.63"
UNITED KINGDOM ATOMIC ENERGY AUTHORITY,UNITED KINGDOM ATOMIC ENERGY AUTHORITY,14/03/2016,ELECTRICITY,FUSION,E.ON (UK) LTD,5100333581,"14,299.47"
UNITED KINGDOM ATOMIC ENERGY AUTHORITY,UNITED KINGDOM ATOMIC ENERGY AUTHORITY,14/03/2016,ELECTRICITY,FUSION,E.ON (UK) LTD,5100332654,"10,115.74"
UNITED KINGDOM ATOMIC ENERGY AUTHORITY,UNITED KINGDOM ATOMIC ENERGY AUTHORITY,14/03/2016,ELECTRICITY,FUSION,E.ON (UK) LTD,5100331978,"5,509.82"
UNITED KINGDOM ATOMIC ENERGY AUTHORITY,UNITED KINGDOM ATOMIC ENERGY AUTHORITY,14/03/2016,ELECTRICITY,FUSION,E.ON (UK) LTD,5100333578,184.49
UNITED KINGDOM ATOMIC ENERGY AUTHORITY,UNITED KINGDOM ATOMIC ENERGY AUTHORITY,14/03/2016,ELECTRICITY,FUSION,E.ON (UK) LTD,5100333759,29.33
UNITED KINGDOM ATOMIC ENERGY AUTHORITY,UNITED KINGDOM ATOMIC ENERGY AUTHORITY,14/03/2016,ELECTRICITY,FUSION,E.ON (UK) LTD,5100333580,"-2,472.89"
UNITED KINGDOM ATOMIC ENERGY AUTHORITY,UNITED KINGDOM ATOMIC ENERGY AUTHORITY,14/03/2016,ELECTRICITY,FUSION,E.ON (UK) LTD,5100333579,"-90,877.22"
UNITED KINGDOM ATOMIC ENERGY AUTHORITY,UNITED KINGDOM ATOMIC ENERGY AUTHORITY,02/03/2016,UTILITIES/ELECTRICITY,FUSION,EDF ENERGY,5100333285,"118,727.84"
UNITED KINGDOM ATOMIC ENERGY AUTHORITY,UNITED KINGDOM ATOMIC ENERGY AUTHORITY,14/03/2016,UTILITIES/ELECTRICITY,FUSION,EDF ENERGY,5100333805,"31,437.38"
UNITED KINGDOM ATOMIC ENERGY AUTHORITY,UNITED KINGDOM ATOMIC ENERGY AUTHORITY,07/03/2016,UTILITIES/ELECTRICITY,PROPERTY,EDF ENERGY,5100333562,"27,702.38"
UNITED KINGDOM ATOMIC ENERGY AUTHORITY,UNITED KINGDOM ATOMIC ENERGY AUTHORITY,07/03/2016,UTILITIES/ELECTRICITY,PROPERTY,EDF ENERGY,5100333574,"19,452.18"
UNITED KINGDOM ATOMIC ENERGY AUTHORITY,UNITED KINGDOM ATOMIC ENERGY AUTHORITY,07/03/2016,UTILITIES/ELECTRICITY,PROPERTY,EDF ENERGY,5100333569,"7,768.95"
UNITED KINGDOM ATOMIC ENERGY AUTHORITY,UNITED KINGDOM ATOMIC ENERGY AUTHORITY,07/03/2016,UTILITIES/ELECTRICITY,PROPERTY,EDF ENERGY,5100333567,"3,497.02"
UNITED KINGDOM ATOMIC ENERGY AUTHORITY,UNITED KINGDOM ATOMIC ENERGY AUTHORITY,07/03/2016,UTILITIES/ELECTRICITY,PROPERTY,EDF ENERGY,5100333565,"3,431.91"
UNITED KINGDOM ATOMIC ENERGY AUTHORITY,UNITED KINGDOM ATOMIC ENERGY AUTHORITY,07/03/2016,UTILITIES/ELECTRICITY,PROPERTY,EDF ENERGY,5100333571,"1,679.93"
UNITED KINGDOM ATOMIC ENERGY AUTHORITY,UNITED KINGDOM ATOMIC ENERGY AUTHORITY,07/03/2016,UTILITIES/ELECTRICITY,PROPERTY,EDF ENERGY,5100333576,843.86
UNITED KINGDOM ATOMIC ENERGY AUTHORITY,UNITED KINGDOM ATOMIC ENERGY AUTHORITY,07/03/2016,UTILITIES/ELECTRICITY,PROPERTY,EDF ENERGY,5100333563,290.78
UNITED KINGDOM ATOMIC ENERGY AUTHORITY,UNITED KINGDOM ATOMIC ENERGY AUTHORITY,07/03/2016,UTILITIES/ELECTRICITY,PROPERTY,EDF ENERGY,5100333560,65.24
UNITED KINGDOM ATOMIC ENERGY AUTHORITY,UNITED KINGDOM ATOMIC ENERGY AUTHORITY,29/03/2016,PROFESSIONAL SERVICES,FUSION,EDM PRECISION TECHNOLOGIES,5100334599,859.00
UNITED KINGDOM ATOMIC ENERGY AUTHORITY,UNITED KINGDOM ATOMIC ENERGY AUTHORITY,29/02/2016,PROFESSIONAL SERVICES,FUSION,EDM PRECISION TECHNOLOGIES,5100333093,731.00
UNITED KINGDOM ATOMIC ENERGY AUTHORITY,UNITED KINGDOM ATOMIC ENERGY AUTHORITY,02/03/2016,PROFESSIONAL SERVICES,FUSION,EDM PRECISION TECHNOLOGIES,5100333092,393.20
UNITED KINGDOM ATOMIC ENERGY AUTHORITY,UNITED KINGDOM ATOMIC ENERGY AUTHORITY,14/03/2016,PROFESSIONAL SERVICES,FUSION,EDM PRECISION TECHNOLOGIES,5100333901,346.20
UNITED KINGDOM ATOMIC ENERGY AUTHORITY,UNITED KINGDOM ATOMIC ENERGY AUTHORITY,21/03/2016,MATERIALS & SPARES,FUSION,EDMUND OPTICS LTD,5100334207,176.00
UNITED KINGDOM ATOMIC ENERGY AUTHORITY,UNITED KINGDOM ATOMIC ENERGY AUTHORITY,14/03/2016,PLANT & EQUIPMENT,PROPERTY,EDMUNDSON ELECTRICALS LTD,5100333693,"2,179.31"
UNITED KINGDOM ATOMIC ENERGY AUTHORITY,UNITED KINGDOM ATOMIC ENERGY AUTHORITY,29/02/2016,PLANT & EQUIPMENT,FUSION,EDMUNDSON ELECTRICALS LTD,5100332991,"1,387.14"
UNITED KINGDOM ATOMIC ENERGY AUTHORITY,UNITED KINGDOM ATOMIC ENERGY AUTHORITY,21/03/2016,PLANT & EQUIPMENT,FUSION,EDMUNDSON ELECTRICALS LTD,5100333891,"1,248.10"
UNITED KINGDOM ATOMIC ENERGY AUTHORITY,UNITED KINGDOM ATOMIC ENERGY AUTHORITY,21/03/2016,PLANT & EQUIPMENT,FUSION,EDMUNDSON ELECTRICALS LTD,5100334170,896.87
UNITED KINGDOM ATOMIC ENERGY AUTHORITY,UNITED KINGDOM ATOMIC ENERGY AUTHORITY,29/03/2016,PLANT & EQUIPMENT,FUSION,EDMUNDSON ELECTRICALS LTD,5100334361,873.71
UNITED KINGDOM ATOMIC ENERGY AUTHORITY,UNITED KINGDOM ATOMIC ENERGY AUTHORITY,07/03/2016,PLANT & EQUIPMENT,FUSION,EDMUNDSON ELECTRICALS LTD,5100333354,749.50
UNITED KINGDOM ATOMIC ENERGY AUTHORITY,UNITED KINGDOM ATOMIC ENERGY AUTHORITY,29/02/2016,PLANT & EQUIPMENT,FUSION,EDMUNDSON ELECTRICALS LTD,5100333086,700.13
UNITED KINGDOM ATOMIC ENERGY AUTHORITY,UNITED KINGDOM ATOMIC ENERGY AUTHORITY,21/03/2016,PLANT & EQUIPMENT,FUSION,EDMUNDSON ELECTRICALS LTD,5100334146,612.77
UNITED KINGDOM ATOMIC ENERGY AUTHORITY,UNITED KINGDOM ATOMIC ENERGY AUTHORITY,16/03/2016,PLANT & EQUIPMENT,FUSION,EDMUNDSON ELECTRICALS LTD,5100333889,582.92
UNITED KINGDOM ATOMIC ENERGY AUTHORITY,UNITED KINGDOM ATOMIC ENERGY AUTHORITY,29/03/2016,PLANT & EQUIPMENT,FUSION,EDMUNDSON ELECTRICALS LTD,5100334357,562.48
UNITED KINGDOM ATOMIC ENERGY AUTHORITY,UNITED KINGDOM ATOMIC ENERGY AUTHORITY,22/02/2016,PLANT & EQUIPMENT,FUSION,EDMUNDSON ELECTRICALS LTD,5100332304,523.27
UNITED KINGDOM ATOMIC ENERGY AUTHORITY,UNITED KINGDOM ATOMIC ENERGY AUTHORITY,21/03/2016,PLANT & EQUIPMENT,FUSION,EDMUNDSON ELECTRICALS LTD,5100334171,491.02
UNITED KINGDOM ATOMIC ENERGY AUTHORITY,UNITED KINGDOM ATOMIC ENERGY AUTHORITY,21/03/2016,PLANT & EQUIPMENT,FUSION,EDMUNDSON ELECTRICALS LTD,5100334172,468.44
UNITED KINGDOM ATOMIC ENERGY AUTHORITY,UNITED KINGDOM ATOMIC ENERGY AUTHORITY,07/03/2016,PLANT & EQUIPMENT,FUSION,EDMUNDSON ELECTRICALS LTD,5100333351,406.80
UNITED KINGDOM ATOMIC ENERGY AUTHORITY,UNITED KINGDOM ATOMIC ENERGY AUTHORITY,07/03/2016,PLANT & EQUIPMENT,FUSION,EDMUNDSON ELECTRICALS LTD,5100333360,340.27
UNITED KINGDOM ATOMIC ENERGY AUTHORITY,UNITED KINGDOM ATOMIC ENERGY AUTHORITY,29/02/2016,PLANT & EQUIPMENT,FUSION,EDMUNDSON ELECTRICALS LTD,5100332992,294.61
UNITED KINGDOM ATOMIC ENERGY AUTHORITY,UNITED KINGDOM ATOMIC ENERGY AUTHORITY,21/03/2016,PLANT & EQUIPMENT,PROPERTY,EDMUNDSON ELECTRICALS LTD,5100334144,262.08
UNITED KINGDOM ATOMIC ENERGY AUTHORITY,UNITED KINGDOM ATOMIC ENERGY AUTHORITY,07/03/2016,PLANT & EQUIPMENT,FUSION,EDMUNDSON ELECTRICALS LTD,5100333358,238.43
UNITED KINGDOM ATOMIC ENERGY AUTHORITY,UNITED KINGDOM ATOMIC ENERGY AUTHORITY,22/02/2016,PLANT & EQUIPMENT,FUSION,EDMUNDSON ELECTRICALS LTD,5100332990,222.22
UNITED KINGDOM ATOMIC ENERGY AUTHORITY,UNITED KINGDOM ATOMIC ENERGY AUTHORITY,29/02/2016,PLANT & EQUIPMENT,FUSION,EDMUNDSON ELECTRICALS LTD,5100332989,205.26
UNITED KINGDOM ATOMIC ENERGY AUTHORITY,UNITED KINGDOM ATOMIC ENERGY AUTHORITY,29/03/2016,PLANT & EQUIPMENT,FUSION,EDMUNDSON ELECTRICALS LTD,5100334363,176.82
UNITED KINGDOM ATOMIC ENERGY AUTHORITY,UNITED KINGDOM ATOMIC ENERGY AUTHORITY,29/02/2016,PLANT & EQUIPMENT,FUSION,EDMUNDSON ELECTRICALS LTD,5100332988,158.21
UNITED KINGDOM ATOMIC ENERGY AUTHORITY,UNITED KINGDOM ATOMIC ENERGY AUTHORITY,29/02/2016,PLANT & EQUIPMENT,FUSION,EDMUNDSON ELECTRICALS LTD,5100333087,156.71
UNITED KINGDOM ATOMIC ENERGY AUTHORITY,UNITED KINGDOM ATOMIC ENERGY AUTHORITY,29/03/2016,PLANT & EQUIPMENT,PROPERTY,EDMUNDSON ELECTRICALS LTD,5100334364,150.00
UNITED KINGDOM ATOMIC ENERGY AUTHORITY,UNITED KINGDOM ATOMIC ENERGY AUTHORITY,29/02/2016,PLANT & EQUIPMENT,FUSION,EDMUNDSON ELECTRICALS LTD,5100333084,126.20
UNITED KINGDOM ATOMIC ENERGY AUTHORITY,UNITED KINGDOM ATOMIC ENERGY AUTHORITY,14/03/2016,PLANT & EQUIPMENT,FUSION,EDMUNDSON ELECTRICALS LTD,5100333695,97.96
UNITED KINGDOM ATOMIC ENERGY AUTHORITY,UNITED KINGDOM ATOMIC ENERGY AUTHORITY,29/03/2016,PLANT & EQUIPMENT,FUSION,EDMUNDSON ELECTRICALS LTD,5100334359,90.06
UNITED KINGDOM ATOMIC ENERGY AUTHORITY,UNITED KINGDOM ATOMIC ENERGY AUTHORITY,07/03/2016,PLANT & EQUIPMENT,FUSION,EDMUNDSON ELECTRICALS LTD,5100333362,89.56
UNITED KINGDOM ATOMIC ENERGY AUTHORITY,UNITED KINGDOM ATOMIC ENERGY AUTHORITY,22/02/2016,PLANT & EQUIPMENT,FUSION,EDMUNDSON ELECTRICALS LTD,5100332770,81.34
UNITED KINGDOM ATOMIC ENERGY AUTHORITY,UNITED KINGDOM ATOMIC ENERGY AUTHORITY,29/03/2016,PLANT & EQUIPMENT,FUSION,EDMUNDSON ELECTRICALS LTD,5100334362,59.33
UNITED KINGDOM ATOMIC ENERGY AUTHORITY,UNITED KINGDOM ATOMIC ENERGY AUTHORITY,23/03/2016,PLANT & EQUIPMENT,FUSION,EDMUNDSON ELECTRICALS LTD,5100334333,55.65
UNITED KINGDOM ATOMIC ENERGY AUTHORITY,UNITED KINGDOM ATOMIC ENERGY AUTHORITY,14/03/2016,PLANT & EQUIPMENT,FUSION,EDMUNDSON ELECTRICALS LTD,5100333697,53.34
UNITED KINGDOM ATOMIC ENERGY AUTHORITY,UNITED KINGDOM ATOMIC ENERGY AUTHORITY,07/03/2016,PLANT & EQUIPMENT,FUSION,EDMUNDSON ELECTRICALS LTD,5100333627,42.70
UNITED KINGDOM ATOMIC ENERGY AUTHORITY,UNITED KINGDOM ATOMIC ENERGY AUTHORITY,14/03/2016,PLANT & EQUIPMENT,FUSION,EDMUNDSON ELECTRICALS LTD,5100333959,34.50
UNITED KINGDOM ATOMIC ENERGY AUTHORITY,UNITED KINGDOM ATOMIC ENERGY AUTHORITY,29/03/2016,PLANT & EQUIPMENT,FUSION,EDMUNDSON ELECTRICALS LTD,5100334334,33.75
UNITED KINGDOM ATOMIC ENERGY AUTHORITY,UNITED KINGDOM ATOMIC ENERGY AUTHORITY,14/03/2016,PLANT & EQUIPMENT,FUSION,EDMUNDSON ELECTRICALS LTD,5100333958,32.36
UNITED KINGDOM ATOMIC ENERGY AUTHORITY,UNITED KINGDOM ATOMIC ENERGY AUTHORITY,07/03/2016,PLANT & EQUIPMENT,FUSION,EDMUNDSON ELECTRICALS LTD,5100333363,28.74
UNITED KINGDOM ATOMIC ENERGY AUTHORITY,UNITED KINGDOM ATOMIC ENERGY AUTHORITY,21/03/2016,PLANT & EQUIPMENT,FUSION,EDMUNDSON ELECTRICALS LTD,5100334169,26.11
UNITED KINGDOM ATOMIC ENERGY AUTHORITY,UNITED KINGDOM ATOMIC ENERGY AUTHORITY,21/03/2016,PLANT & EQUIPMENT,PROPERTY,EDMUNDSON ELECTRICALS LTD,5100333894,25.20
UNITED KINGDOM ATOMIC ENERGY AUTHORITY,UNITED KINGDOM ATOMIC ENERGY AUTHORITY,21/03/2016,PLANT & EQUIPMENT,FUSION,EDMUNDSON ELECTRICALS LTD,5100333893,20.21
UNITED KINGDOM ATOMIC ENERGY AUTHORITY,UNITED KINGDOM ATOMIC ENERGY AUTHORITY,21/03/2016,PLANT & EQUIPMENT,FUSION,EDMUNDSON ELECTRICALS LTD,5100334142,16.96
UNITED KINGDOM ATOMIC ENERGY AUTHORITY,UNITED KINGDOM ATOMIC ENERGY AUTHORITY,22/02/2016,PLANT & EQUIPMENT,FUSION,EDMUNDSON ELECTRICALS LTD,5100332768,7.26
UNITED KINGDOM ATOMIC ENERGY AUTHORITY,UNITED KINGDOM ATOMIC ENERGY AUTHORITY,07/03/2016,PLANT & EQUIPMENT,FUSION,EDMUNDSON ELECTRICALS LTD,5100333355,5.82
UNITED KINGDOM ATOMIC ENERGY AUTHORITY,UNITED KINGDOM ATOMIC ENERGY AUTHORITY,23/03/2016,PLANT & EQUIPMENT,FUSION,EDWARDS LIMITED,5100334115,393.90
UNITED KINGDOM ATOMIC ENERGY AUTHORITY,UNITED KINGDOM ATOMIC ENERGY AUTHORITY,29/02/2016,PLANT & EQUIPMENT,FUSION,EDWARDS LIMITED,5100332637,217.56
UNITED KINGDOM ATOMIC ENERGY AUTHORITY,UNITED KINGDOM ATOMIC ENERGY AUTHORITY,21/03/2016,MATERIALS & SPARES,FUSION,EG CARTER AND COMPANY LTD,5100334132,"77,494.85"
UNITED KINGDOM ATOMIC ENERGY AUTHORITY,UNITED KINGDOM ATOMIC ENERGY AUTHORITY,23/03/2016,MATERIALS & SPARES,FUSION,EG CARTER AND COMPANY LTD,5100334114,"24,623.24"
UNITED KINGDOM ATOMIC ENERGY AUTHORITY,UNITED KINGDOM ATOMIC ENERGY AUTHORITY,23/03/2016,CATERING,PROPERTY,ELIOR UK PLC,1700001721,"-2,342.95"
UNITED KINGDOM ATOMIC ENERGY AUTHORITY,UNITED KINGDOM ATOMIC ENERGY AUTHORITY,23/03/2016,CATERING,PROPERTY,ELIOR UK PLC,1700001723,"-5,516.96"
UNITED KINGDOM ATOMIC ENERGY AUTHORITY,UNITED KINGDOM ATOMIC ENERGY AUTHORITY,29/03/2016,CATERING ,SUPPORT SERVICES,ELIOR UK SERVICES ,1900061429,537.75
UNITED KINGDOM ATOMIC ENERGY AUTHORITY,UNITED KINGDOM ATOMIC ENERGY AUTHORITY,29/02/2016,PLANT & EQUIPMENT,FUSION,ELLIOT SCIENTIFIC LTD,5100333035,"2,265.00"
UNITED KINGDOM ATOMIC ENERGY AUTHORITY,UNITED KINGDOM ATOMIC ENERGY AUTHORITY,29/03/2016,HEALTH PHYSICS,FUSION,ELSIEVIER SCIENCE LTD BV (EU),5100333613,"2,298.02"
UNITED KINGDOM ATOMIC ENERGY AUTHORITY,UNITED KINGDOM ATOMIC ENERGY AUTHORITY,23/03/2016,HEALTH PHYSICS,FUSION,ELSIEVIER SCIENCE LTD BV (EU),5100334200,"1,532.01"
UNITED KINGDOM ATOMIC ENERGY AUTHORITY,UNITED KINGDOM ATOMIC ENERGY AUTHORITY,25/03/2016,AIR TRAVEL,FUSION,EMPLOYEE EXPENSES,100800306,"1,887.55"
UNITED KINGDOM ATOMIC ENERGY AUTHORITY,UNITED KINGDOM ATOMIC ENERGY AUTHORITY,05/03/2016,SUBSISTENCE,FUSION,EMPLOYEE EXPENSES,100799828,"1,742.71"
UNITED KINGDOM ATOMIC ENERGY AUTHORITY,UNITED KINGDOM ATOMIC ENERGY AUTHORITY,27/02/2016,SUBSISTENCE,FUSION,EMPLOYEE EXPENSES,100799783,"1,655.45"
UNITED KINGDOM ATOMIC ENERGY AUTHORITY,UNITED KINGDOM ATOMIC ENERGY AUTHORITY,05/03/2016,SUBSISTENCE,FUSION,EMPLOYEE EXPENSES,100799816,"1,566.26"
UNITED KINGDOM ATOMIC ENERGY AUTHORITY,UNITED KINGDOM ATOMIC ENERGY AUTHORITY,19/03/2016,SUBSISTENCE,FUSION,EMPLOYEE EXPENSES,100800077,"1,559.76"
UNITED KINGDOM ATOMIC ENERGY AUTHORITY,UNITED KINGDOM ATOMIC ENERGY AUTHORITY,25/03/2016,SUBSISTENCE,FUSION,EMPLOYEE EXPENSES,100800292,"1,549.50"
UNITED KINGDOM ATOMIC ENERGY AUTHORITY,UNITED KINGDOM ATOMIC ENERGY AUTHORITY,05/03/2016,SUBSISTENCE,FUSION,EMPLOYEE EXPENSES,100799811,"1,373.30"
UNITED KINGDOM ATOMIC ENERGY AUTHORITY,UNITED KINGDOM ATOMIC ENERGY AUTHORITY,12/03/2016,SUBSISTENCE,FUSION,EMPLOYEE EXPENSES,100799888,"1,270.32"
UNITED KINGDOM ATOMIC ENERGY AUTHORITY,UNITED KINGDOM ATOMIC ENERGY AUTHORITY,25/03/2016,SUBSISTENCE,FUSION,EMPLOYEE EXPENSES,100800266,"1,266.14"
UNITED KINGDOM ATOMIC ENERGY AUTHORITY,UNITED KINGDOM ATOMIC ENERGY AUTHORITY,12/03/2016,SUBSISTENCE,FUSION,EMPLOYEE EXPENSES,100799906,"1,122.51"
UNITED KINGDOM ATOMIC ENERGY AUTHORITY,UNITED KINGDOM ATOMIC ENERGY AUTHORITY,05/03/2016,SUBSISTENCE,FUSION,EMPLOYEE EXPENSES,100799817,938.82
UNITED KINGDOM ATOMIC ENERGY AUTHORITY,UNITED KINGDOM ATOMIC ENERGY AUTHORITY,25/03/2016,SUBSISTENCE,FUSION,EMPLOYEE EXPENSES,100800265,897.75
UNITED KINGDOM ATOMIC ENERGY AUTHORITY,UNITED KINGDOM ATOMIC ENERGY AUTHORITY,12/03/2016,SUBSISTENCE,FUSION,EMPLOYEE EXPENSES,100799893,754.31
UNITED KINGDOM ATOMIC ENERGY AUTHORITY,UNITED KINGDOM ATOMIC ENERGY AUTHORITY,05/03/2016,SUBSISTENCE,FUSION,EMPLOYEE EXPENSES,100799818,644.68
UNITED KINGDOM ATOMIC ENERGY AUTHORITY,UNITED KINGDOM ATOMIC ENERGY AUTHORITY,12/03/2016,SUBSISTENCE,FUSION,EMPLOYEE EXPENSES,100799887,595.79
UNITED KINGDOM ATOMIC ENERGY AUTHORITY,UNITED KINGDOM ATOMIC ENERGY AUTHORITY,19/03/2016,SUBSISTENCE,FUSION,EMPLOYEE EXPENSES,100800084,556.28
UNITED KINGDOM ATOMIC ENERGY AUTHORITY,UNITED KINGDOM ATOMIC ENERGY AUTHORITY,25/03/2016,SUBSISTENCE,FUSION,EMPLOYEE EXPENSES,100800302,529.04
UNITED KINGDOM ATOMIC ENERGY AUTHORITY,UNITED KINGDOM ATOMIC ENERGY AUTHORITY,27/02/2016,EFDA TRAVEL EXPENSES,FUSION,EMPLOYEE EXPENSES,100799790,528.04
UNITED KINGDOM ATOMIC ENERGY AUTHORITY,UNITED KINGDOM ATOMIC ENERGY AUTHORITY,27/02/2016,SUBSISTENCE,SUPPORT SERVICES,EMPLOYEE EXPENSES,100799781,506.60
UNITED KINGDOM ATOMIC ENERGY AUTHORITY,UNITED KINGDOM ATOMIC ENERGY AUTHORITY,05/03/2016,SUBSISTENCE,FUSION,EMPLOYEE EXPENSES,100799815,482.45
UNITED KINGDOM ATOMIC ENERGY AUTHORITY,UNITED KINGDOM ATOMIC ENERGY AUTHORITY,19/03/2016,SUBSISTENCE,FUSION,EMPLOYEE EXPENSES,100800114,477.27
UNITED KINGDOM ATOMIC ENERGY AUTHORITY,UNITED KINGDOM ATOMIC ENERGY AUTHORITY,19/03/2016,SUBSISTENCE,FUSION,EMPLOYEE EXPENSES,100800108,451.80
UNITED KINGDOM ATOMIC ENERGY AUTHORITY,UNITED KINGDOM ATOMIC ENERGY AUTHORITY,12/03/2016,SUBSISTENCE,FUSION,EMPLOYEE EXPENSES,100799899,442.88
UNITED KINGDOM ATOMIC ENERGY AUTHORITY,UNITED KINGDOM ATOMIC ENERGY AUTHORITY,19/03/2016,SUBSISTENCE,FUSION,EMPLOYEE EXPENSES,100800076,400.41
UNITED KINGDOM ATOMIC ENERGY AUTHORITY,UNITED KINGDOM ATOMIC ENERGY AUTHORITY,19/03/2016,EFDA TRAVEL EXPENSES,FUSION,EMPLOYEE EXPENSES,100800082,386.60
UNITED KINGDOM ATOMIC ENERGY AUTHORITY,UNITED KINGDOM ATOMIC ENERGY AUTHORITY,05/03/2016,SUBSISTENCE,FUSION,EMPLOYEE EXPENSES,100799823,382.44
UNITED KINGDOM ATOMIC ENERGY AUTHORITY,UNITED KINGDOM ATOMIC ENERGY AUTHORITY,25/03/2016,SUBSISTENCE,FUSION,EMPLOYEE EXPENSES,100800306,362.49
UNITED KINGDOM ATOMIC ENERGY AUTHORITY,UNITED KINGDOM ATOMIC ENERGY AUTHORITY,19/03/2016,SUBSISTENCE,FUSION,EMPLOYEE EXPENSES,100800078,355.05
UNITED KINGDOM ATOMIC ENERGY AUTHORITY,UNITED KINGDOM ATOMIC ENERGY AUTHORITY,25/03/2016,BUSINESS ENTERTAINMENT,FUSION,EMPLOYEE EXPENSES,100800286,352.35
UNITED KINGDOM ATOMIC ENERGY AUTHORITY,UNITED KINGDOM ATOMIC ENERGY AUTHORITY,25/03/2016,SUBSISTENCE,FUSION,EMPLOYEE EXPENSES,100800295,349.73
UNITED KINGDOM ATOMIC ENERGY AUTHORITY,UNITED KINGDOM ATOMIC ENERGY AUTHORITY,25/03/2016,SUBSISTENCE,FUSION,EMPLOYEE EXPENSES,100800287,346.45
UNITED KINGDOM ATOMIC ENERGY AUTHORITY,UNITED KINGDOM ATOMIC ENERGY AUTHORITY,19/03/2016,SUBSISTENCE,FUSION,EMPLOYEE EXPENSES,100800075,339.99
UNITED KINGDOM ATOMIC ENERGY AUTHORITY,UNITED KINGDOM ATOMIC ENERGY AUTHORITY,19/03/2016,SUBSISTENCE,FUSION,EMPLOYEE EXPENSES,100800088,336.20
UNITED KINGDOM ATOMIC ENERGY AUTHORITY,UNITED KINGDOM ATOMIC ENERGY AUTHORITY,12/03/2016,CAR HIRE,FUSION,EMPLOYEE EXPENSES,100799883,331.09
UNITED KINGDOM ATOMIC ENERGY AUTHORITY,UNITED KINGDOM ATOMIC ENERGY AUTHORITY,12/03/2016,SUBSISTENCE,FUSION,EMPLOYEE EXPENSES,100799883,322.96
UNITED KINGDOM ATOMIC ENERGY AUTHORITY,UNITED KINGDOM ATOMIC ENERGY AUTHORITY,05/03/2016,SUBSISTENCE,FUSION,EMPLOYEE EXPENSES,100799824,317.47
UNITED KINGDOM ATOMIC ENERGY AUTHORITY,UNITED KINGDOM ATOMIC ENERGY AUTHORITY,19/03/2016,SUBSISTENCE,FUSION,EMPLOYEE EXPENSES,100800080,312.16
UNITED KINGDOM ATOMIC ENERGY AUTHORITY,UNITED KINGDOM ATOMIC ENERGY AUTHORITY,27/02/2016,SUBSISTENCE,FUSION,EMPLOYEE EXPENSES,100799784,310.36
UNITED KINGDOM ATOMIC ENERGY AUTHORITY,UNITED KINGDOM ATOMIC ENERGY AUTHORITY,12/03/2016,SUBSISTENCE,FUSION,EMPLOYEE EXPENSES,100799892,305.47
UNITED KINGDOM ATOMIC ENERGY AUTHORITY,UNITED KINGDOM ATOMIC ENERGY AUTHORITY,25/03/2016,CAR HIRE,FUSION,EMPLOYEE EXPENSES,100800306,298.67
UNITED KINGDOM ATOMIC ENERGY AUTHORITY,UNITED KINGDOM ATOMIC ENERGY AUTHORITY,27/02/2016,SUBSISTENCE,FUSION,EMPLOYEE EXPENSES,100799770,295.40
UNITED KINGDOM ATOMIC ENERGY AUTHORITY,UNITED KINGDOM ATOMIC ENERGY AUTHORITY,27/02/2016,SUBSISTENCE,FUSION,EMPLOYEE EXPENSES,100799771,294.21
UNITED KINGDOM ATOMIC ENERGY AUTHORITY,UNITED KINGDOM ATOMIC ENERGY AUTHORITY,27/02/2016,PROFESSIONAL SUBSCRIPTION,SUPPORT SERVICES,EMPLOYEE EXPENSES,100799768,291.80
UNITED KINGDOM ATOMIC ENERGY AUTHORITY,UNITED KINGDOM ATOMIC ENERGY AUTHORITY,12/03/2016,PROFESSIONAL SUBSCRIPTION,FUSION,EMPLOYEE EXPENSES,100799914,291.80
UNITED KINGDOM ATOMIC ENERGY AUTHORITY,UNITED KINGDOM ATOMIC ENERGY AUTHORITY,05/03/2016,SUBSISTENCE,FUSION,EMPLOYEE EXPENSES,100799810,283.18
UNITED KINGDOM ATOMIC ENERGY AUTHORITY,UNITED KINGDOM ATOMIC ENERGY AUTHORITY,25/03/2016,SUBSISTENCE,FUSION,EMPLOYEE EXPENSES,100800273,280.32
UNITED KINGDOM ATOMIC ENERGY AUTHORITY,UNITED KINGDOM ATOMIC ENERGY AUTHORITY,25/03/2016,SUBSISTENCE,FUSION,EMPLOYEE EXPENSES,100800283,279.18
UNITED KINGDOM ATOMIC ENERGY AUTHORITY,UNITED KINGDOM ATOMIC ENERGY AUTHORITY,25/03/2016,SUBSISTENCE,FUSION,EMPLOYEE EXPENSES,100800278,272.01
UNITED KINGDOM ATOMIC ENERGY AUTHORITY,UNITED KINGDOM ATOMIC ENERGY AUTHORITY,27/02/2016,PROFESSIONAL SUBSCRIPTION,FUSION,EMPLOYEE EXPENSES,100799788,253.30
UNITED KINGDOM ATOMIC ENERGY AUTHORITY,UNITED KINGDOM ATOMIC ENERGY AUTHORITY,05/03/2016,PROFESSIONAL SUBSCRIPTION,FUSION,EMPLOYEE EXPENSES,100799814,253.30
UNITED KINGDOM ATOMIC ENERGY AUTHORITY,UNITED KINGDOM ATOMIC ENERGY AUTHORITY,12/03/2016,PROFESSIONAL SUBSCRIPTION,FUSION,EMPLOYEE EXPENSES,100799870,253.30
UNITED KINGDOM ATOMIC ENERGY AUTHORITY,UNITED KINGDOM ATOMIC ENERGY AUTHORITY,12/03/2016,PROFESSIONAL SUBSCRIPTION,FUSION,EMPLOYEE EXPENSES,100799911,250.30
UNITED KINGDOM ATOMIC ENERGY AUTHORITY,UNITED KINGDOM ATOMIC ENERGY AUTHORITY,12/03/2016,EFDA TRAVEL EXPENSES,FUSION,EMPLOYEE EXPENSES,100799891,248.95
UNITED KINGDOM ATOMIC ENERGY AUTHORITY,UNITED KINGDOM ATOMIC ENERGY AUTHORITY,25/03/2016,SUBSISTENCE,FUSION,EMPLOYEE EXPENSES,100800277,244.12
UNITED KINGDOM ATOMIC ENERGY AUTHORITY,UNITED KINGDOM ATOMIC ENERGY AUTHORITY,27/02/2016,EFDA TRAVEL EXPENSES,FUSION,EMPLOYEE EXPENSES,100799773,237.57
UNITED KINGDOM ATOMIC ENERGY AUTHORITY,UNITED KINGDOM ATOMIC ENERGY AUTHORITY,25/03/2016,SUBSISTENCE,FUSION,EMPLOYEE EXPENSES,100800271,234.43
UNITED KINGDOM ATOMIC ENERGY AUTHORITY,UNITED KINGDOM ATOMIC ENERGY AUTHORITY,27/02/2016,MILEAGE ALLOWANCE,SUPPORT SERVICES,EMPLOYEE EXPENSES,100799789,222.30
UNITED KINGDOM ATOMIC ENERGY AUTHORITY,UNITED KINGDOM ATOMIC ENERGY AUTHORITY,12/03/2016,PROFESSIONAL SUBSCRIPTION,FUSION,EMPLOYEE EXPENSES,100799909,216.00
UNITED KINGDOM ATOMIC ENERGY AUTHORITY,UNITED KINGDOM ATOMIC ENERGY AUTHORITY,12/03/2016,PROFESSIONAL SUBSCRIPTION,FUSION,EMPLOYEE EXPENSES,100799913,216.00
UNITED KINGDOM ATOMIC ENERGY AUTHORITY,UNITED KINGDOM ATOMIC ENERGY AUTHORITY,25/03/2016,MILEAGE ALLOWANCE,SUPPORT SERVICES,EMPLOYEE EXPENSES,100800299,210.60
UNITED KINGDOM ATOMIC ENERGY AUTHORITY,UNITED KINGDOM ATOMIC ENERGY AUTHORITY,12/03/2016,MILEAGE ALLOWANCE,SUPPORT SERVICES,EMPLOYEE EXPENSES,100799912,205.20
UNITED KINGDOM ATOMIC ENERGY AUTHORITY,UNITED KINGDOM ATOMIC ENERGY AUTHORITY,19/03/2016,PROFESSIONAL SUBSCRIPTION,FUSION,EMPLOYEE EXPENSES,100800079,205.00
UNITED KINGDOM ATOMIC ENERGY AUTHORITY,UNITED KINGDOM ATOMIC ENERGY AUTHORITY,05/03/2016,OTHER EMPLOYEE EXPENSES,FUSION,EMPLOYEE EXPENSES,100799828,189.84
UNITED KINGDOM ATOMIC ENERGY AUTHORITY,UNITED KINGDOM ATOMIC ENERGY AUTHORITY,19/03/2016,AIR TRAVEL,FUSION,EMPLOYEE EXPENSES,100800077,188.56
UNITED KINGDOM ATOMIC ENERGY AUTHORITY,UNITED KINGDOM ATOMIC ENERGY AUTHORITY,19/03/2016,SUBSISTENCE,FUSION,EMPLOYEE EXPENSES,100800097,187.77
UNITED KINGDOM ATOMIC ENERGY AUTHORITY,UNITED KINGDOM ATOMIC ENERGY AUTHORITY,19/03/2016,ROAD TRAVEL,FUSION,EMPLOYEE EXPENSES,100800107,178.14
UNITED KINGDOM ATOMIC ENERGY AUTHORITY,UNITED KINGDOM ATOMIC ENERGY AUTHORITY,19/03/2016,PROFESSIONAL SUBSCRIPTION,FUSION,EMPLOYEE EXPENSES,100800074,175.40
UNITED KINGDOM ATOMIC ENERGY AUTHORITY,UNITED KINGDOM ATOMIC ENERGY AUTHORITY,25/03/2016,SUBSISTENCE,FUSION,EMPLOYEE EXPENSES,100800267,173.31
UNITED KINGDOM ATOMIC ENERGY AUTHORITY,UNITED KINGDOM ATOMIC ENERGY AUTHORITY,12/03/2016,TAXIS,FUSION,EMPLOYEE EXPENSES,100799899,156.41
UNITED KINGDOM ATOMIC ENERGY AUTHORITY,UNITED KINGDOM ATOMIC ENERGY AUTHORITY,25/03/2016,EFDA TRAVEL EXPENSES,FUSION,EMPLOYEE EXPENSES,100800274,156.20
UNITED KINGDOM ATOMIC ENERGY AUTHORITY,UNITED KINGDOM ATOMIC ENERGY AUTHORITY,25/03/2016,SUBSISTENCE,FUSION,EMPLOYEE EXPENSES,100800279,155.79
UNITED KINGDOM ATOMIC ENERGY AUTHORITY,UNITED KINGDOM ATOMIC ENERGY AUTHORITY,25/03/2016,PROFESSIONAL SUBSCRIPTION,SUPPORT SERVICES,EMPLOYEE EXPENSES,100800280,155.00
UNITED KINGDOM ATOMIC ENERGY AUTHORITY,UNITED KINGDOM ATOMIC ENERGY AUTHORITY,27/02/2016,PROFESSIONAL SUBSCRIPTION,SUPPORT SERVICES,EMPLOYEE EXPENSES,100799787,152.00
UNITED KINGDOM ATOMIC ENERGY AUTHORITY,UNITED KINGDOM ATOMIC ENERGY AUTHORITY,12/03/2016,SUBSISTENCE,FUSION,EMPLOYEE EXPENSES,100799884,148.58
UNITED KINGDOM ATOMIC ENERGY AUTHORITY,UNITED KINGDOM ATOMIC ENERGY AUTHORITY,25/03/2016,PROFESSIONAL SUBSCRIPTION,FUSION,EMPLOYEE EXPENSES,100800304,148.00
UNITED KINGDOM ATOMIC ENERGY AUTHORITY,UNITED KINGDOM ATOMIC ENERGY AUTHORITY,12/03/2016,EFDA TRAVEL EXPENSES,FUSION,EMPLOYEE EXPENSES,100799890,147.86
UNITED KINGDOM ATOMIC ENERGY AUTHORITY,UNITED KINGDOM ATOMIC ENERGY AUTHORITY,27/02/2016,MILEAGE ALLOWANCE,SUPPORT SERVICES,EMPLOYEE EXPENSES,100799785,147.60
UNITED KINGDOM ATOMIC ENERGY AUTHORITY,UNITED KINGDOM ATOMIC ENERGY AUTHORITY,05/03/2016,RAIL TRAVEL,FUSION,EMPLOYEE EXPENSES,100799830,147.00
UNITED KINGDOM ATOMIC ENERGY AUTHORITY,UNITED KINGDOM ATOMIC ENERGY AUTHORITY,19/03/2016,MILEAGE ALLOWANCE,FUSION,EMPLOYEE EXPENSES,100800087,144.00
UNITED KINGDOM ATOMIC ENERGY AUTHORITY,UNITED KINGDOM ATOMIC ENERGY AUTHORITY,25/03/2016,SUBSISTENCE,FUSION,EMPLOYEE EXPENSES,100800288,142.94
UNITED KINGDOM ATOMIC ENERGY AUTHORITY,UNITED KINGDOM ATOMIC ENERGY AUTHORITY,05/03/2016,EFDA TRAVEL EXPENSES,FUSION,EMPLOYEE EXPENSES,100799820,142.74
UNITED KINGDOM ATOMIC ENERGY AUTHORITY,UNITED KINGDOM ATOMIC ENERGY AUTHORITY,27/02/2016,EFDA TRAVEL EXPENSES,FUSION,EMPLOYEE EXPENSES,100799772,141.10
UNITED KINGDOM ATOMIC ENERGY AUTHORITY,UNITED KINGDOM ATOMIC ENERGY AUTHORITY,19/03/2016,RAIL TRAVEL,FUSION,EMPLOYEE EXPENSES,100800093,139.52
UNITED KINGDOM ATOMIC ENERGY AUTHORITY,UNITED KINGDOM ATOMIC ENERGY AUTHORITY,19/03/2016,SUBSISTENCE,FUSION,EMPLOYEE EXPENSES,100800089,138.88
UNITED KINGDOM ATOMIC ENERGY AUTHORITY,UNITED KINGDOM ATOMIC ENERGY AUTHORITY,19/03/2016,SUBSISTENCE,FUSION,EMPLOYEE EXPENSES,100800087,138.00
UNITED KINGDOM ATOMIC ENERGY AUTHORITY,UNITED KINGDOM ATOMIC ENERGY AUTHORITY,25/03/2016,MILEAGE ALLOWANCE,SUPPORT SERVICES,EMPLOYEE EXPENSES,100800298,137.70
UNITED KINGDOM ATOMIC ENERGY AUTHORITY,UNITED KINGDOM ATOMIC ENERGY AUTHORITY,05/03/2016,PROFESSIONAL SUBSCRIPTION,SUPPORT SERVICES,EMPLOYEE EXPENSES,100799833,137.00
UNITED KINGDOM ATOMIC ENERGY AUTHORITY,UNITED KINGDOM ATOMIC ENERGY AUTHORITY,19/03/2016,TAXIS,FUSION,EMPLOYEE EXPENSES,100800075,136.98
UNITED KINGDOM ATOMIC ENERGY AUTHORITY,UNITED KINGDOM ATOMIC ENERGY AUTHORITY,12/03/2016,SUBSISTENCE,FUSION,EMPLOYEE EXPENSES,100799878,136.00
UNITED KINGDOM ATOMIC ENERGY AUTHORITY,UNITED KINGDOM ATOMIC ENERGY AUTHORITY,05/03/2016,OTHER EMPLOYEE EXPENSES,FUSION,EMPLOYEE EXPENSES,100799818,135.97
UNITED KINGDOM ATOMIC ENERGY AUTHORITY,UNITED KINGDOM ATOMIC ENERGY AUTHORITY,19/03/2016,SUBSISTENCE,FUSION,EMPLOYEE EXPENSES,100800110,134.31
UNITED KINGDOM ATOMIC ENERGY AUTHORITY,UNITED KINGDOM ATOMIC ENERGY AUTHORITY,19/03/2016,RAIL TRAVEL,FUSION,EMPLOYEE EXPENSES,100800108,133.67
UNITED KINGDOM ATOMIC ENERGY AUTHORITY,UNITED KINGDOM ATOMIC ENERGY AUTHORITY,25/03/2016,PROFESSIONAL SUBSCRIPTION,SUPPORT SERVICES,EMPLOYEE EXPENSES,100800307,133.00
UNITED KINGDOM ATOMIC ENERGY AUTHORITY,UNITED KINGDOM ATOMIC ENERGY AUTHORITY,12/03/2016,SUBSISTENCE,FUSION,EMPLOYEE EXPENSES,100799872,131.50
UNITED KINGDOM ATOMIC ENERGY AUTHORITY,UNITED KINGDOM ATOMIC ENERGY AUTHORITY,19/03/2016,MILEAGE ALLOWANCE,FUSION,EMPLOYEE EXPENSES,100800104,130.50
UNITED KINGDOM ATOMIC ENERGY AUTHORITY,UNITED KINGDOM ATOMIC ENERGY AUTHORITY,25/03/2016,SUBSISTENCE,FUSION,EMPLOYEE EXPENSES,100800259,130.37
UNITED KINGDOM ATOMIC ENERGY AUTHORITY,UNITED KINGDOM ATOMIC ENERGY AUTHORITY,12/03/2016,PROFESSIONAL SUBSCRIPTION,FUSION,EMPLOYEE EXPENSES,100799915,128.00
UNITED KINGDOM ATOMIC ENERGY AUTHORITY,UNITED KINGDOM ATOMIC ENERGY AUTHORITY,25/03/2016,EFDA TRAVEL EXPENSES,FUSION,EMPLOYEE EXPENSES,100800270,127.71
UNITED KINGDOM ATOMIC ENERGY AUTHORITY,UNITED KINGDOM ATOMIC ENERGY AUTHORITY,27/02/2016,PROFESSIONAL SUBSCRIPTION,FUSION,EMPLOYEE EXPENSES,100799791,127.00
UNITED KINGDOM ATOMIC ENERGY AUTHORITY,UNITED KINGDOM ATOMIC ENERGY AUTHORITY,27/02/2016,SUBSISTENCE,FUSION,EMPLOYEE EXPENSES,100799766,126.87
UNITED KINGDOM ATOMIC ENERGY AUTHORITY,UNITED KINGDOM ATOMIC ENERGY AUTHORITY,27/02/2016,PROFESSIONAL SUBSCRIPTION,FUSION,EMPLOYEE EXPENSES,100799763,121.40
UNITED KINGDOM ATOMIC ENERGY AUTHORITY,UNITED KINGDOM ATOMIC ENERGY AUTHORITY,25/03/2016,SUBSISTENCE,FUSION,EMPLOYEE EXPENSES,100800284,118.50
UNITED KINGDOM ATOMIC ENERGY AUTHORITY,UNITED KINGDOM ATOMIC ENERGY AUTHORITY,25/03/2016,MILEAGE ALLOWANCE,SUPPORT SERVICES,EMPLOYEE EXPENSES,100800297,117.00
UNITED KINGDOM ATOMIC ENERGY AUTHORITY,UNITED KINGDOM ATOMIC ENERGY AUTHORITY,12/03/2016,RAIL TRAVEL,FUSION,EMPLOYEE EXPENSES,100799902,113.50
UNITED KINGDOM ATOMIC ENERGY AUTHORITY,UNITED KINGDOM ATOMIC ENERGY AUTHORITY,19/03/2016,MILEAGE ALLOWANCE,FUSION,EMPLOYEE EXPENSES,100800090,111.60
UNITED KINGDOM ATOMIC ENERGY AUTHORITY,UNITED KINGDOM ATOMIC ENERGY AUTHORITY,19/03/2016,RAIL TRAVEL,FUSION,EMPLOYEE EXPENSES,100800114,109.36
UNITED KINGDOM ATOMIC ENERGY AUTHORITY,UNITED KINGDOM ATOMIC ENERGY AUTHORITY,19/03/2016,SUBSISTENCE,FUSION,EMPLOYEE EXPENSES,100800100,108.48
UNITED KINGDOM ATOMIC ENERGY AUTHORITY,UNITED KINGDOM ATOMIC ENERGY AUTHORITY,19/03/2016,SUBSISTENCE,FUSION,EMPLOYEE EXPENSES,100800083,108.43
UNITED KINGDOM ATOMIC ENERGY AUTHORITY,UNITED KINGDOM ATOMIC ENERGY AUTHORITY,25/03/2016,PROFESSIONAL SUBSCRIPTION,SUPPORT SERVICES,EMPLOYEE EXPENSES,100800269,108.00
UNITED KINGDOM ATOMIC ENERGY AUTHORITY,UNITED KINGDOM ATOMIC ENERGY AUTHORITY,27/02/2016,PROFESSIONAL SUBSCRIPTION,FUSION,EMPLOYEE EXPENSES,100799765,107.00
UNITED KINGDOM ATOMIC ENERGY AUTHORITY,UNITED KINGDOM ATOMIC ENERGY AUTHORITY,25/03/2016,PROFESSIONAL SUBSCRIPTION,FUSION,EMPLOYEE EXPENSES,100800281,107.00
UNITED KINGDOM ATOMIC ENERGY AUTHORITY,UNITED KINGDOM ATOMIC ENERGY AUTHORITY,12/03/2016,SUBSISTENCE,FUSION,EMPLOYEE EXPENSES,100799910,104.85
UNITED KINGDOM ATOMIC ENERGY AUTHORITY,UNITED KINGDOM ATOMIC ENERGY AUTHORITY,27/02/2016,SUBSISTENCE,FUSION,EMPLOYEE EXPENSES,100799775,102.87
UNITED KINGDOM ATOMIC ENERGY AUTHORITY,UNITED KINGDOM ATOMIC ENERGY AUTHORITY,12/03/2016,PROFESSIONAL SUBSCRIPTION,FUSION,EMPLOYEE EXPENSES,100799886,102.00
UNITED KINGDOM ATOMIC ENERGY AUTHORITY,UNITED KINGDOM ATOMIC ENERGY AUTHORITY,25/03/2016,SUBSISTENCE,FUSION,EMPLOYEE EXPENSES,100800256,101.67
UNITED KINGDOM ATOMIC ENERGY AUTHORITY,UNITED KINGDOM ATOMIC ENERGY AUTHORITY,27/02/2016,PROFESSIONAL SUBSCRIPTION,FUSION,EMPLOYEE EXPENSES,100799774,100.00
UNITED KINGDOM ATOMIC ENERGY AUTHORITY,UNITED KINGDOM ATOMIC ENERGY AUTHORITY,25/03/2016,SUBSISTENCE,FUSION,EMPLOYEE EXPENSES,100800262,100.00
UNITED KINGDOM ATOMIC ENERGY AUTHORITY,UNITED KINGDOM ATOMIC ENERGY AUTHORITY,27/02/2016,SUBSISTENCE,SUPPORT SERVICES,EMPLOYEE EXPENSES,100799782,99.17
UNITED KINGDOM ATOMIC ENERGY AUTHORITY,UNITED KINGDOM ATOMIC ENERGY AUTHORITY,19/03/2016,SUBSISTENCE,FUSION,EMPLOYEE EXPENSES,100800094,98.82
UNITED KINGDOM ATOMIC ENERGY AUTHORITY,UNITED KINGDOM ATOMIC ENERGY AUTHORITY,12/03/2016,PROFESSIONAL SUBSCRIPTION,FUSION,EMPLOYEE EXPENSES,100799903,97.00
UNITED KINGDOM ATOMIC ENERGY AUTHORITY,UNITED KINGDOM ATOMIC ENERGY AUTHORITY,25/03/2016,RAIL TRAVEL,FUSION,EMPLOYEE EXPENSES,100800293,97.00
UNITED KINGDOM ATOMIC ENERGY AUTHORITY,UNITED KINGDOM ATOMIC ENERGY AUTHORITY,19/03/2016,RAIL TRAVEL,FUSION,EMPLOYEE EXPENSES,100800112,96.70
UNITED KINGDOM ATOMIC ENERGY AUTHORITY,UNITED KINGDOM ATOMIC ENERGY AUTHORITY,12/03/2016,SUBSISTENCE,FUSION,EMPLOYEE EXPENSES,100799907,94.52
UNITED KINGDOM ATOMIC ENERGY AUTHORITY,UNITED KINGDOM ATOMIC ENERGY AUTHORITY,12/03/2016,SUBSISTENCE,FUSION,EMPLOYEE EXPENSES,100799875,92.63
UNITED KINGDOM ATOMIC ENERGY AUTHORITY,UNITED KINGDOM ATOMIC ENERGY AUTHORITY,25/03/2016,MILEAGE ALLOWANCE,SUPPORT SERVICES,EMPLOYEE EXPENSES,100800291,92.25
UNITED KINGDOM ATOMIC ENERGY AUTHORITY,UNITED KINGDOM ATOMIC ENERGY AUTHORITY,12/03/2016,SUBSISTENCE,FUSION,EMPLOYEE EXPENSES,100799908,90.16
UNITED KINGDOM ATOMIC ENERGY AUTHORITY,UNITED KINGDOM ATOMIC ENERGY AUTHORITY,27/02/2016,MILEAGE ALLOWANCE,SUPPORT SERVICES,EMPLOYEE EXPENSES,100799782,90.00
UNITED KINGDOM ATOMIC ENERGY AUTHORITY,UNITED KINGDOM ATOMIC ENERGY AUTHORITY,12/03/2016,SUBSISTENCE,FUSION,EMPLOYEE EXPENSES,100799905,89.45
UNITED KINGDOM ATOMIC ENERGY AUTHORITY,UNITED KINGDOM ATOMIC ENERGY AUTHORITY,19/03/2016,PROFESSIONAL SUBSCRIPTION,FUSION,EMPLOYEE EXPENSES,100800105,88.00
UNITED KINGDOM ATOMIC ENERGY AUTHORITY,UNITED KINGDOM ATOMIC ENERGY AUTHORITY,12/03/2016,SUBSISTENCE,FUSION,EMPLOYEE EXPENSES,100799879,87.67
UNITED KINGDOM ATOMIC ENERGY AUTHORITY,UNITED KINGDOM ATOMIC ENERGY AUTHORITY,12/03/2016,RAIL TRAVEL,FUSION,EMPLOYEE EXPENSES,100799906,87.40
UNITED KINGDOM ATOMIC ENERGY AUTHORITY,UNITED KINGDOM ATOMIC ENERGY AUTHORITY,05/03/2016,MILEAGE ALLOWANCE,FUSION,EMPLOYEE EXPENSES,100799809,86.40
UNITED KINGDOM ATOMIC ENERGY AUTHORITY,UNITED KINGDOM ATOMIC ENERGY AUTHORITY,19/03/2016,MILEAGE ALLOWANCE,SUPPORT SERVICES,EMPLOYEE EXPENSES,100800098,86.40
UNITED KINGDOM ATOMIC ENERGY AUTHORITY,UNITED KINGDOM ATOMIC ENERGY AUTHORITY,25/03/2016,SUBSISTENCE,FUSION,EMPLOYEE EXPENSES,100800278,85.56
UNITED KINGDOM ATOMIC ENERGY AUTHORITY,UNITED KINGDOM ATOMIC ENERGY AUTHORITY,27/02/2016,TAXIS,SUPPORT SERVICES,EMPLOYEE EXPENSES,100799781,83.64
UNITED KINGDOM ATOMIC ENERGY AUTHORITY,UNITED KINGDOM ATOMIC ENERGY AUTHORITY,19/03/2016,SUBSISTENCE,FUSION,EMPLOYEE EXPENSES,100800085,81.67
UNITED KINGDOM ATOMIC ENERGY AUTHORITY,UNITED KINGDOM ATOMIC ENERGY AUTHORITY,19/03/2016,MILEAGE ALLOWANCE,PROPERTY,EMPLOYEE EXPENSES,100800115,81.60
UNITED KINGDOM ATOMIC ENERGY AUTHORITY,UNITED KINGDOM ATOMIC ENERGY AUTHORITY,12/03/2016,MILEAGE ALLOWANCE,FUSION,EMPLOYEE EXPENSES,100799879,81.00
UNITED KINGDOM ATOMIC ENERGY AUTHORITY,UNITED KINGDOM ATOMIC ENERGY AUTHORITY,12/03/2016,MILEAGE ALLOWANCE,FUSION,EMPLOYEE EXPENSES,100799880,81.00
UNITED KINGDOM ATOMIC ENERGY AUTHORITY,UNITED KINGDOM ATOMIC ENERGY AUTHORITY,25/03/2016,MILEAGE ALLOWANCE,FUSION,EMPLOYEE EXPENSES,100800262,81.00
UNITED KINGDOM ATOMIC ENERGY AUTHORITY,UNITED KINGDOM ATOMIC ENERGY AUTHORITY,05/03/2016,ROAD TRAVEL,FUSION,EMPLOYEE EXPENSES,100799828,80.49
UNITED KINGDOM ATOMIC ENERGY AUTHORITY,UNITED KINGDOM ATOMIC ENERGY AUTHORITY,12/03/2016,SUBSISTENCE,FUSION,EMPLOYEE EXPENSES,100799916,80.29
UNITED KINGDOM ATOMIC ENERGY AUTHORITY,UNITED KINGDOM ATOMIC ENERGY AUTHORITY,19/03/2016,TAXIS,FUSION,EMPLOYEE EXPENSES,100800076,78.42
UNITED KINGDOM ATOMIC ENERGY AUTHORITY,UNITED KINGDOM ATOMIC ENERGY AUTHORITY,12/03/2016,SUBSISTENCE,FUSION,EMPLOYEE EXPENSES,100799885,77.00
UNITED KINGDOM ATOMIC ENERGY AUTHORITY,UNITED KINGDOM ATOMIC ENERGY AUTHORITY,25/03/2016,ROAD TRAVEL,FUSION,EMPLOYEE EXPENSES,100800265,76.94
UNITED KINGDOM ATOMIC ENERGY AUTHORITY,UNITED KINGDOM ATOMIC ENERGY AUTHORITY,25/03/2016,SUBSISTENCE,FUSION,EMPLOYEE EXPENSES,100800255,76.56
UNITED KINGDOM ATOMIC ENERGY AUTHORITY,UNITED KINGDOM ATOMIC ENERGY AUTHORITY,12/03/2016,SUBSISTENCE,FUSION,EMPLOYEE EXPENSES,100799881,75.62
UNITED KINGDOM ATOMIC ENERGY AUTHORITY,UNITED KINGDOM ATOMIC ENERGY AUTHORITY,19/03/2016,RAIL TRAVEL,SUPPORT SERVICES,EMPLOYEE EXPENSES,100800096,75.60
UNITED KINGDOM ATOMIC ENERGY AUTHORITY,UNITED KINGDOM ATOMIC ENERGY AUTHORITY,25/03/2016,SUBSISTENCE,SUPPORT SERVICES,EMPLOYEE EXPENSES,100800291,75.00
UNITED KINGDOM ATOMIC ENERGY AUTHORITY,UNITED KINGDOM ATOMIC ENERGY AUTHORITY,19/03/2016,OTHER EMPLOYEE EXPENSES,FUSION,EMPLOYEE EXPENSES,100800072,74.99
UNITED KINGDOM ATOMIC ENERGY AUTHORITY,UNITED KINGDOM ATOMIC ENERGY AUTHORITY,05/03/2016,SUBSISTENCE,FUSION,EMPLOYEE EXPENSES,100799824,73.60
UNITED KINGDOM ATOMIC ENERGY AUTHORITY,UNITED KINGDOM ATOMIC ENERGY AUTHORITY,25/03/2016,PROFESSIONAL SUBSCRIPTION,SUPPORT SERVICES,EMPLOYEE EXPENSES,100800285,73.00
UNITED KINGDOM ATOMIC ENERGY AUTHORITY,UNITED KINGDOM ATOMIC ENERGY AUTHORITY,27/02/2016,MILEAGE ALLOWANCE,FUSION,EMPLOYEE EXPENSES,100799779,72.96
UNITED KINGDOM ATOMIC ENERGY AUTHORITY,UNITED KINGDOM ATOMIC ENERGY AUTHORITY,25/03/2016,MILEAGE ALLOWANCE,FUSION,EMPLOYEE EXPENSES,100800289,72.96
UNITED KINGDOM ATOMIC ENERGY AUTHORITY,UNITED KINGDOM ATOMIC ENERGY AUTHORITY,27/02/2016,MILEAGE ALLOWANCE,FUSION,EMPLOYEE EXPENSES,100799769,72.00
UNITED KINGDOM ATOMIC ENERGY AUTHORITY,UNITED KINGDOM ATOMIC ENERGY AUTHORITY,25/03/2016,PROFESSIONAL SUBSCRIPTION,FUSION,EMPLOYEE EXPENSES,100800276,70.90
UNITED KINGDOM ATOMIC ENERGY AUTHORITY,UNITED KINGDOM ATOMIC ENERGY AUTHORITY,27/02/2016,MILEAGE ALLOWANCE,FUSION,EMPLOYEE EXPENSES,100799778,69.75
UNITED KINGDOM ATOMIC ENERGY AUTHORITY,UNITED KINGDOM ATOMIC ENERGY AUTHORITY,27/02/2016,SUBSISTENCE,FUSION,EMPLOYEE EXPENSES,100799767,69.37
UNITED KINGDOM ATOMIC ENERGY AUTHORITY,UNITED KINGDOM ATOMIC ENERGY AUTHORITY,12/03/2016,SUBSISTENCE,FUSION,EMPLOYEE EXPENSES,100799876,69.31
UNITED KINGDOM ATOMIC ENERGY AUTHORITY,UNITED KINGDOM ATOMIC ENERGY AUTHORITY,05/03/2016,SUBSISTENCE,FUSION,EMPLOYEE EXPENSES,100799808,68.74
UNITED KINGDOM ATOMIC ENERGY AUTHORITY,UNITED KINGDOM ATOMIC ENERGY AUTHORITY,25/03/2016,SUBSISTENCE,FUSION,EMPLOYEE EXPENSES,100800258,68.35
UNITED KINGDOM ATOMIC ENERGY AUTHORITY,UNITED KINGDOM ATOMIC ENERGY AUTHORITY,19/03/2016,SUBSISTENCE,FUSION,EMPLOYEE EXPENSES,100800073,67.76
UNITED KINGDOM ATOMIC ENERGY AUTHORITY,UNITED KINGDOM ATOMIC ENERGY AUTHORITY,19/03/2016,RAIL TRAVEL,FUSION,EMPLOYEE EXPENSES,100800113,67.10
UNITED KINGDOM ATOMIC ENERGY AUTHORITY,UNITED KINGDOM ATOMIC ENERGY AUTHORITY,25/03/2016,RAIL TRAVEL,FUSION,EMPLOYEE EXPENSES,100800268,67.10
UNITED KINGDOM ATOMIC ENERGY AUTHORITY,UNITED KINGDOM ATOMIC ENERGY AUTHORITY,25/03/2016,ROAD TRAVEL,FUSION,EMPLOYEE EXPENSES,100800278,66.89
UNITED KINGDOM ATOMIC ENERGY AUTHORITY,UNITED KINGDOM ATOMIC ENERGY AUTHORITY,25/03/2016,RAIL TRAVEL,FUSION,EMPLOYEE EXPENSES,100800301,65.60
UNITED KINGDOM ATOMIC ENERGY AUTHORITY,UNITED KINGDOM ATOMIC ENERGY AUTHORITY,19/03/2016,RAIL TRAVEL,FUSION,EMPLOYEE EXPENSES,100800077,65.53
UNITED KINGDOM ATOMIC ENERGY AUTHORITY,UNITED KINGDOM ATOMIC ENERGY AUTHORITY,12/03/2016,SUBSISTENCE,FUSION,EMPLOYEE EXPENSES,100799873,65.21
UNITED KINGDOM ATOMIC ENERGY AUTHORITY,UNITED KINGDOM ATOMIC ENERGY AUTHORITY,25/03/2016,ROAD TRAVEL,FUSION,EMPLOYEE EXPENSES,100800266,64.54
UNITED KINGDOM ATOMIC ENERGY AUTHORITY,UNITED KINGDOM ATOMIC ENERGY AUTHORITY,25/03/2016,ROAD TRAVEL,FUSION,EMPLOYEE EXPENSES,100800279,64.20
UNITED KINGDOM ATOMIC ENERGY AUTHORITY,UNITED KINGDOM ATOMIC ENERGY AUTHORITY,25/03/2016,SUBSISTENCE,FUSION,EMPLOYEE EXPENSES,100800288,63.45
UNITED KINGDOM ATOMIC ENERGY AUTHORITY,UNITED KINGDOM ATOMIC ENERGY AUTHORITY,27/02/2016,RAIL TRAVEL,SUPPORT SERVICES,EMPLOYEE EXPENSES,100799786,63.00
UNITED KINGDOM ATOMIC ENERGY AUTHORITY,UNITED KINGDOM ATOMIC ENERGY AUTHORITY,05/03/2016,OTHER EMPLOYEE EXPENSES,FUSION,EMPLOYEE EXPENSES,100799817,61.63
UNITED KINGDOM ATOMIC ENERGY AUTHORITY,UNITED KINGDOM ATOMIC ENERGY AUTHORITY,12/03/2016,ROAD TRAVEL,FUSION,EMPLOYEE EXPENSES,100799892,61.50
UNITED KINGDOM ATOMIC ENERGY AUTHORITY,UNITED KINGDOM ATOMIC ENERGY AUTHORITY,05/03/2016,ROAD TRAVEL,FUSION,EMPLOYEE EXPENSES,100799823,60.57
UNITED KINGDOM ATOMIC ENERGY AUTHORITY,UNITED KINGDOM ATOMIC ENERGY AUTHORITY,25/03/2016,PROFESSIONAL SUBSCRIPTION,FUSION,EMPLOYEE EXPENSES,100800296,60.00
UNITED KINGDOM ATOMIC ENERGY AUTHORITY,UNITED KINGDOM ATOMIC ENERGY AUTHORITY,19/03/2016,RAIL TRAVEL,FUSION,EMPLOYEE EXPENSES,100800089,58.52
UNITED KINGDOM ATOMIC ENERGY AUTHORITY,UNITED KINGDOM ATOMIC ENERGY AUTHORITY,27/02/2016,MILEAGE ALLOWANCE,FUSION,EMPLOYEE EXPENSES,100799776,58.50
UNITED KINGDOM ATOMIC ENERGY AUTHORITY,UNITED KINGDOM ATOMIC ENERGY AUTHORITY,27/02/2016,MILEAGE ALLOWANCE,FUSION,EMPLOYEE EXPENSES,100799777,58.50
UNITED KINGDOM ATOMIC ENERGY AUTHORITY,UNITED KINGDOM ATOMIC ENERGY AUTHORITY,12/03/2016,MILEAGE ALLOWANCE,FUSION,EMPLOYEE EXPENSES,100799900,58.50
UNITED KINGDOM ATOMIC ENERGY AUTHORITY,UNITED KINGDOM ATOMIC ENERGY AUTHORITY,12/03/2016,MILEAGE ALLOWANCE,FUSION,EMPLOYEE EXPENSES,100799901,58.50
UNITED KINGDOM ATOMIC ENERGY AUTHORITY,UNITED KINGDOM ATOMIC ENERGY AUTHORITY,05/03/2016,SUBSISTENCE,FUSION,EMPLOYEE EXPENSES,100799806,57.60
UNITED KINGDOM ATOMIC ENERGY AUTHORITY,UNITED KINGDOM ATOMIC ENERGY AUTHORITY,05/03/2016,TAXIS,FUSION,EMPLOYEE EXPENSES,100799815,57.21
UNITED KINGDOM ATOMIC ENERGY AUTHORITY,UNITED KINGDOM ATOMIC ENERGY AUTHORITY,12/03/2016,RAIL TRAVEL,FUSION,EMPLOYEE EXPENSES,100799894,57.20
UNITED KINGDOM ATOMIC ENERGY AUTHORITY,UNITED KINGDOM ATOMIC ENERGY AUTHORITY,12/03/2016,RAIL TRAVEL,FUSION,EMPLOYEE EXPENSES,100799895,57.20
UNITED KINGDOM ATOMIC ENERGY AUTHORITY,UNITED KINGDOM ATOMIC ENERGY AUTHORITY,12/03/2016,RAIL TRAVEL,FUSION,EMPLOYEE EXPENSES,100799896,57.20
UNITED KINGDOM ATOMIC ENERGY AUTHORITY,UNITED KINGDOM ATOMIC ENERGY AUTHORITY,12/03/2016,RAIL TRAVEL,FUSION,EMPLOYEE EXPENSES,100799897,57.20
UNITED KINGDOM ATOMIC ENERGY AUTHORITY,UNITED KINGDOM ATOMIC ENERGY AUTHORITY,05/03/2016,TAXIS,FUSION,EMPLOYEE EXPENSES,100799816,56.79
UNITED KINGDOM ATOMIC ENERGY AUTHORITY,UNITED KINGDOM ATOMIC ENERGY AUTHORITY,25/03/2016,EFDA TRAVEL EXPENSES,FUSION,EMPLOYEE EXPENSES,100800275,56.00
UNITED KINGDOM ATOMIC ENERGY AUTHORITY,UNITED KINGDOM ATOMIC ENERGY AUTHORITY,05/03/2016,TAXIS,FUSION,EMPLOYEE EXPENSES,100799810,55.88
UNITED KINGDOM ATOMIC ENERGY AUTHORITY,UNITED KINGDOM ATOMIC ENERGY AUTHORITY,05/03/2016,OTHER EMPLOYEE EXPENSES,FUSION,EMPLOYEE EXPENSES,100799811,55.50
UNITED KINGDOM ATOMIC ENERGY AUTHORITY,UNITED KINGDOM ATOMIC ENERGY AUTHORITY,19/03/2016,PROFESSIONAL SUBSCRIPTION,FUSION,EMPLOYEE EXPENSES,100800102,55.00
UNITED KINGDOM ATOMIC ENERGY AUTHORITY,UNITED KINGDOM ATOMIC ENERGY AUTHORITY,19/03/2016,RAIL TRAVEL,FUSION,EMPLOYEE EXPENSES,100800094,54.90
UNITED KINGDOM ATOMIC ENERGY AUTHORITY,UNITED KINGDOM ATOMIC ENERGY AUTHORITY,27/02/2016,MILEAGE ALLOWANCE,FUSION,EMPLOYEE EXPENSES,100799766,54.00
UNITED KINGDOM ATOMIC ENERGY AUTHORITY,UNITED KINGDOM ATOMIC ENERGY AUTHORITY,27/02/2016,MILEAGE ALLOWANCE,FUSION,EMPLOYEE EXPENSES,100799767,54.00
UNITED KINGDOM ATOMIC ENERGY AUTHORITY,UNITED KINGDOM ATOMIC ENERGY AUTHORITY,12/03/2016,MILEAGE ALLOWANCE,FUSION,EMPLOYEE EXPENSES,100799872,54.00
UNITED KINGDOM ATOMIC ENERGY AUTHORITY,UNITED KINGDOM ATOMIC ENERGY AUTHORITY,12/03/2016,MILEAGE ALLOWANCE,FUSION,EMPLOYEE EXPENSES,100799873,54.00
UNITED KINGDOM ATOMIC ENERGY AUTHORITY,UNITED KINGDOM ATOMIC ENERGY AUTHORITY,19/03/2016,MILEAGE ALLOWANCE,SUPPORT SERVICES,EMPLOYEE EXPENSES,100800092,54.00
UNITED KINGDOM ATOMIC ENERGY AUTHORITY,UNITED KINGDOM ATOMIC ENERGY AUTHORITY,25/03/2016,MILEAGE ALLOWANCE,FUSION,EMPLOYEE EXPENSES,100800259,54.00
UNITED KINGDOM ATOMIC ENERGY AUTHORITY,UNITED KINGDOM ATOMIC ENERGY AUTHORITY,25/03/2016,MILEAGE ALLOWANCE,FUSION,EMPLOYEE EXPENSES,100800266,54.00
UNITED KINGDOM ATOMIC ENERGY AUTHORITY,UNITED KINGDOM ATOMIC ENERGY AUTHORITY,19/03/2016,TAXIS,FUSION,EMPLOYEE EXPENSES,100800088,53.41
UNITED KINGDOM ATOMIC ENERGY AUTHORITY,UNITED KINGDOM ATOMIC ENERGY AUTHORITY,19/03/2016,PROFESSIONAL SUBSCRIPTION,FUSION,EMPLOYEE EXPENSES,100800081,50.00
UNITED KINGDOM ATOMIC ENERGY AUTHORITY,UNITED KINGDOM ATOMIC ENERGY AUTHORITY,19/03/2016,PROFESSIONAL SUBSCRIPTION,FUSION,EMPLOYEE EXPENSES,100800101,50.00
UNITED KINGDOM ATOMIC ENERGY AUTHORITY,UNITED KINGDOM ATOMIC ENERGY AUTHORITY,25/03/2016,PROFESSIONAL SUBSCRIPTION,FUSION,EMPLOYEE EXPENSES,100800282,50.00
UNITED KINGDOM ATOMIC ENERGY AUTHORITY,UNITED KINGDOM ATOMIC ENERGY AUTHORITY,25/03/2016,SUBSISTENCE,SUPPORT SERVICES,EMPLOYEE EXPENSES,100800291,50.00
UNITED KINGDOM ATOMIC ENERGY AUTHORITY,UNITED KINGDOM ATOMIC ENERGY AUTHORITY,25/03/2016,RAIL TRAVEL,SUPPORT SERVICES,EMPLOYEE EXPENSES,100800303,48.85
UNITED KINGDOM ATOMIC ENERGY AUTHORITY,UNITED KINGDOM ATOMIC ENERGY AUTHORITY,25/03/2016,MILEAGE ALLOWANCE,FUSION,EMPLOYEE EXPENSES,100800267,48.60
UNITED KINGDOM ATOMIC ENERGY AUTHORITY,UNITED KINGDOM ATOMIC ENERGY AUTHORITY,19/03/2016,ROAD TRAVEL,FUSION,EMPLOYEE EXPENSES,100800085,46.89
UNITED KINGDOM ATOMIC ENERGY AUTHORITY,UNITED KINGDOM ATOMIC ENERGY AUTHORITY,25/03/2016,RAIL TRAVEL,SUPPORT SERVICES,EMPLOYEE EXPENSES,100800264,45.90
UNITED KINGDOM ATOMIC ENERGY AUTHORITY,UNITED KINGDOM ATOMIC ENERGY AUTHORITY,25/03/2016,RAIL TRAVEL,FUSION,EMPLOYEE EXPENSES,100800292,45.78
UNITED KINGDOM ATOMIC ENERGY AUTHORITY,UNITED KINGDOM ATOMIC ENERGY AUTHORITY,05/03/2016,TAXIS,FUSION,EMPLOYEE EXPENSES,100799811,45.39
UNITED KINGDOM ATOMIC ENERGY AUTHORITY,UNITED KINGDOM ATOMIC ENERGY AUTHORITY,25/03/2016,RAIL TRAVEL,FUSION,EMPLOYEE EXPENSES,100800266,45.33
UNITED KINGDOM ATOMIC ENERGY AUTHORITY,UNITED KINGDOM ATOMIC ENERGY AUTHORITY,05/03/2016,ROAD TRAVEL,FUSION,EMPLOYEE EXPENSES,100799811,45.25
UNITED KINGDOM ATOMIC ENERGY AUTHORITY,UNITED KINGDOM ATOMIC ENERGY AUTHORITY,12/03/2016,ROAD TRAVEL,FUSION,EMPLOYEE EXPENSES,100799887,45.20
UNITED KINGDOM ATOMIC ENERGY AUTHORITY,UNITED KINGDOM ATOMIC ENERGY AUTHORITY,05/03/2016,OTHER EMPLOYEE EXPENSES,FUSION,EMPLOYEE EXPENSES,100799826,45.18
UNITED KINGDOM ATOMIC ENERGY AUTHORITY,UNITED KINGDOM ATOMIC ENERGY AUTHORITY,27/02/2016,RAIL TRAVEL,SUPPORT SERVICES,EMPLOYEE EXPENSES,100799781,43.25
UNITED KINGDOM ATOMIC ENERGY AUTHORITY,UNITED KINGDOM ATOMIC ENERGY AUTHORITY,27/02/2016,ROAD TRAVEL,FUSION,EMPLOYEE EXPENSES,100799784,43.20
UNITED KINGDOM ATOMIC ENERGY AUTHORITY,UNITED KINGDOM ATOMIC ENERGY AUTHORITY,12/03/2016,MILEAGE ALLOWANCE,FUSION,EMPLOYEE EXPENSES,100799877,43.20
UNITED KINGDOM ATOMIC ENERGY AUTHORITY,UNITED KINGDOM ATOMIC ENERGY AUTHORITY,25/03/2016,RAIL TRAVEL,FUSION,EMPLOYEE EXPENSES,100800302,41.87
UNITED KINGDOM ATOMIC ENERGY AUTHORITY,UNITED KINGDOM ATOMIC ENERGY AUTHORITY,25/03/2016,OTHER EMPLOYEE EXPENSES,FUSION,EMPLOYEE EXPENSES,100800305,41.67
UNITED KINGDOM ATOMIC ENERGY AUTHORITY,UNITED KINGDOM ATOMIC ENERGY AUTHORITY,05/03/2016,ROAD TRAVEL,FUSION,EMPLOYEE EXPENSES,100799806,40.42
UNITED KINGDOM ATOMIC ENERGY AUTHORITY,UNITED KINGDOM ATOMIC ENERGY AUTHORITY,12/03/2016,ROAD TRAVEL,FUSION,EMPLOYEE EXPENSES,100799893,40.10
UNITED KINGDOM ATOMIC ENERGY AUTHORITY,UNITED KINGDOM ATOMIC ENERGY AUTHORITY,05/03/2016,ROAD TRAVEL,FUSION,EMPLOYEE EXPENSES,100799825,40.09
UNITED KINGDOM ATOMIC ENERGY AUTHORITY,UNITED KINGDOM ATOMIC ENERGY AUTHORITY,19/03/2016,ROAD TRAVEL,FUSION,EMPLOYEE EXPENSES,100800084,40.00
UNITED KINGDOM ATOMIC ENERGY AUTHORITY,UNITED KINGDOM ATOMIC ENERGY AUTHORITY,19/03/2016,SUBSISTENCE,FUSION,EMPLOYEE EXPENSES,100800107,40.00
UNITED KINGDOM ATOMIC ENERGY AUTHORITY,UNITED KINGDOM ATOMIC ENERGY AUTHORITY,25/03/2016,PROFESSIONAL SUBSCRIPTION,SUPPORT SERVICES,EMPLOYEE EXPENSES,100800308,40.00
UNITED KINGDOM ATOMIC ENERGY AUTHORITY,UNITED KINGDOM ATOMIC ENERGY AUTHORITY,19/03/2016,TAXIS,FUSION,EMPLOYEE EXPENSES,100800114,38.71
UNITED KINGDOM ATOMIC ENERGY AUTHORITY,UNITED KINGDOM ATOMIC ENERGY AUTHORITY,05/03/2016,ROAD TRAVEL,FUSION,EMPLOYEE EXPENSES,100799821,38.11
UNITED KINGDOM ATOMIC ENERGY AUTHORITY,UNITED KINGDOM ATOMIC ENERGY AUTHORITY,05/03/2016,ROAD TRAVEL,FUSION,EMPLOYEE EXPENSES,100799815,37.00
UNITED KINGDOM ATOMIC ENERGY AUTHORITY,UNITED KINGDOM ATOMIC ENERGY AUTHORITY,19/03/2016,PROFESSIONAL SUBSCRIPTION,SUPPORT SERVICES,EMPLOYEE EXPENSES,100800116,37.00
UNITED KINGDOM ATOMIC ENERGY AUTHORITY,UNITED KINGDOM ATOMIC ENERGY AUTHORITY,25/03/2016,ROAD TRAVEL,FUSION,EMPLOYEE EXPENSES,100800271,37.00
UNITED KINGDOM ATOMIC ENERGY AUTHORITY,UNITED KINGDOM ATOMIC ENERGY AUTHORITY,25/03/2016,OTHER EMPLOYEE EXPENSES,FUSION,EMPLOYEE EXPENSES,100800253,36.91
UNITED KINGDOM ATOMIC ENERGY AUTHORITY,UNITED KINGDOM ATOMIC ENERGY AUTHORITY,25/03/2016,SUBSISTENCE,FUSION,EMPLOYEE EXPENSES,100800293,36.70
UNITED KINGDOM ATOMIC ENERGY AUTHORITY,UNITED KINGDOM ATOMIC ENERGY AUTHORITY,19/03/2016,RAIL TRAVEL,FUSION,EMPLOYEE EXPENSES,100800114,36.00
UNITED KINGDOM ATOMIC ENERGY AUTHORITY,UNITED KINGDOM ATOMIC ENERGY AUTHORITY,05/03/2016,RAIL TRAVEL,FUSION,EMPLOYEE EXPENSES,100799819,35.60
UNITED KINGDOM ATOMIC ENERGY AUTHORITY,UNITED KINGDOM ATOMIC ENERGY AUTHORITY,25/03/2016,OTHER EMPLOYEE EXPENSES,FUSION,EMPLOYEE EXPENSES,100800266,35.20
UNITED KINGDOM ATOMIC ENERGY AUTHORITY,UNITED KINGDOM ATOMIC ENERGY AUTHORITY,25/03/2016,OTHER EMPLOYEE EXPENSES,FUSION,EMPLOYEE EXPENSES,100800286,35.20
UNITED KINGDOM ATOMIC ENERGY AUTHORITY,UNITED KINGDOM ATOMIC ENERGY AUTHORITY,25/03/2016,SUBSISTENCE,FUSION,EMPLOYEE EXPENSES,100800287,35.10
UNITED KINGDOM ATOMIC ENERGY AUTHORITY,UNITED KINGDOM ATOMIC ENERGY AUTHORITY,19/03/2016,RAIL TRAVEL,FUSION,EMPLOYEE EXPENSES,100800093,34.88
UNITED KINGDOM ATOMIC ENERGY AUTHORITY,UNITED KINGDOM ATOMIC ENERGY AUTHORITY,19/03/2016,TAXIS,FUSION,EMPLOYEE EXPENSES,100800073,34.82
UNITED KINGDOM ATOMIC ENERGY AUTHORITY,UNITED KINGDOM ATOMIC ENERGY AUTHORITY,05/03/2016,TAXIS,FUSION,EMPLOYEE EXPENSES,100799817,34.80
UNITED KINGDOM ATOMIC ENERGY AUTHORITY,UNITED KINGDOM ATOMIC ENERGY AUTHORITY,25/03/2016,ROAD TRAVEL,FUSION,EMPLOYEE EXPENSES,100800283,34.63
UNITED KINGDOM ATOMIC ENERGY AUTHORITY,UNITED KINGDOM ATOMIC ENERGY AUTHORITY,25/03/2016,ROAD TRAVEL,FUSION,EMPLOYEE EXPENSES,100800267,34.17
UNITED KINGDOM ATOMIC ENERGY AUTHORITY,UNITED KINGDOM ATOMIC ENERGY AUTHORITY,19/03/2016,ROAD TRAVEL,FUSION,EMPLOYEE EXPENSES,100800100,33.55
UNITED KINGDOM ATOMIC ENERGY AUTHORITY,UNITED KINGDOM ATOMIC ENERGY AUTHORITY,25/03/2016,RAIL TRAVEL,SUPPORT SERVICES,EMPLOYEE EXPENSES,100800261,33.10
UNITED KINGDOM ATOMIC ENERGY AUTHORITY,UNITED KINGDOM ATOMIC ENERGY AUTHORITY,05/03/2016,OTHER EMPLOYEE EXPENSES,FUSION,EMPLOYEE EXPENSES,100799816,32.38
UNITED KINGDOM ATOMIC ENERGY AUTHORITY,UNITED KINGDOM ATOMIC ENERGY AUTHORITY,05/03/2016,ROAD TRAVEL,FUSION,EMPLOYEE EXPENSES,100799816,32.10
UNITED KINGDOM ATOMIC ENERGY AUTHORITY,UNITED KINGDOM ATOMIC ENERGY AUTHORITY,05/03/2016,ROAD TRAVEL,FUSION,EMPLOYEE EXPENSES,100799818,32.10
UNITED KINGDOM ATOMIC ENERGY AUTHORITY,UNITED KINGDOM ATOMIC ENERGY AUTHORITY,25/03/2016,TAXIS,FUSION,EMPLOYEE EXPENSES,100800273,31.43
UNITED KINGDOM ATOMIC ENERGY AUTHORITY,UNITED KINGDOM ATOMIC ENERGY AUTHORITY,05/03/2016,SUBSISTENCE,FUSION,EMPLOYEE EXPENSES,100799823,30.50
UNITED KINGDOM ATOMIC ENERGY AUTHORITY,UNITED KINGDOM ATOMIC ENERGY AUTHORITY,12/03/2016,SUBSISTENCE,FUSION,EMPLOYEE EXPENSES,100799872,30.25
UNITED KINGDOM ATOMIC ENERGY AUTHORITY,UNITED KINGDOM ATOMIC ENERGY AUTHORITY,25/03/2016,RAIL TRAVEL,FUSION,EMPLOYEE EXPENSES,100800257,29.50
UNITED KINGDOM ATOMIC ENERGY AUTHORITY,UNITED KINGDOM ATOMIC ENERGY AUTHORITY,25/03/2016,RAIL TRAVEL,FUSION,EMPLOYEE EXPENSES,100800272,29.50
UNITED KINGDOM ATOMIC ENERGY AUTHORITY,UNITED KINGDOM ATOMIC ENERGY AUTHORITY,19/03/2016,RAIL TRAVEL,FUSION,EMPLOYEE EXPENSES,100800097,29.13
UNITED KINGDOM ATOMIC ENERGY AUTHORITY,UNITED KINGDOM ATOMIC ENERGY AUTHORITY,05/03/2016,ROAD TRAVEL,FUSION,EMPLOYEE EXPENSES,100799811,29.00
UNITED KINGDOM ATOMIC ENERGY AUTHORITY,UNITED KINGDOM ATOMIC ENERGY AUTHORITY,05/03/2016,ROAD TRAVEL,FUSION,EMPLOYEE EXPENSES,100799817,29.00
UNITED KINGDOM ATOMIC ENERGY AUTHORITY,UNITED KINGDOM ATOMIC ENERGY AUTHORITY,19/03/2016,ROAD TRAVEL,FUSION,EMPLOYEE EXPENSES,100800106,29.00
UNITED KINGDOM ATOMIC ENERGY AUTHORITY,UNITED KINGDOM ATOMIC ENERGY AUTHORITY,12/03/2016,MILEAGE ALLOWANCE,FUSION,EMPLOYEE EXPENSES,100799888,28.80
UNITED KINGDOM ATOMIC ENERGY AUTHORITY,UNITED KINGDOM ATOMIC ENERGY AUTHORITY,19/03/2016,TAXIS,FUSION,EMPLOYEE EXPENSES,100800089,28.16
UNITED KINGDOM ATOMIC ENERGY AUTHORITY,UNITED KINGDOM ATOMIC ENERGY AUTHORITY,25/03/2016,TAXIS,FUSION,EMPLOYEE EXPENSES,100800260,27.20
UNITED KINGDOM ATOMIC ENERGY AUTHORITY,UNITED KINGDOM ATOMIC ENERGY AUTHORITY,12/03/2016,RAIL TRAVEL,FUSION,EMPLOYEE EXPENSES,100799899,27.00
UNITED KINGDOM ATOMIC ENERGY AUTHORITY,UNITED KINGDOM ATOMIC ENERGY AUTHORITY,05/03/2016,SUBSISTENCE,FUSION,EMPLOYEE EXPENSES,100799819,26.99
UNITED KINGDOM ATOMIC ENERGY AUTHORITY,UNITED KINGDOM ATOMIC ENERGY AUTHORITY,12/03/2016,ROAD TRAVEL,FUSION,EMPLOYEE EXPENSES,100799910,26.74
UNITED KINGDOM ATOMIC ENERGY AUTHORITY,UNITED KINGDOM ATOMIC ENERGY AUTHORITY,12/03/2016,SUBSISTENCE,FUSION,EMPLOYEE EXPENSES,100799902,26.53
UNITED KINGDOM ATOMIC ENERGY AUTHORITY,UNITED KINGDOM ATOMIC ENERGY AUTHORITY,12/03/2016,SUBSISTENCE,FUSION,EMPLOYEE EXPENSES,100799902,26.49
UNITED KINGDOM ATOMIC ENERGY AUTHORITY,UNITED KINGDOM ATOMIC ENERGY AUTHORITY,19/03/2016,TAXIS,FUSION,EMPLOYEE EXPENSES,100800108,26.17
UNITED KINGDOM ATOMIC ENERGY AUTHORITY,UNITED KINGDOM ATOMIC ENERGY AUTHORITY,12/03/2016,ROAD TRAVEL,FUSION,EMPLOYEE EXPENSES,100799881,26.10
UNITED KINGDOM ATOMIC ENERGY AUTHORITY,UNITED KINGDOM ATOMIC ENERGY AUTHORITY,25/03/2016,ROAD TRAVEL,FUSION,EMPLOYEE EXPENSES,100800273,26.10
UNITED KINGDOM ATOMIC ENERGY AUTHORITY,UNITED KINGDOM ATOMIC ENERGY AUTHORITY,12/03/2016,ROAD TRAVEL,FUSION,EMPLOYEE EXPENSES,100799908,25.37
UNITED KINGDOM ATOMIC ENERGY AUTHORITY,UNITED KINGDOM ATOMIC ENERGY AUTHORITY,25/03/2016,TAXIS,FUSION,EMPLOYEE EXPENSES,100800271,25.34
UNITED KINGDOM ATOMIC ENERGY AUTHORITY,UNITED KINGDOM ATOMIC ENERGY AUTHORITY,05/03/2016,ROAD TRAVEL,FUSION,EMPLOYEE EXPENSES,100799828,25.28
UNITED KINGDOM ATOMIC ENERGY AUTHORITY,UNITED KINGDOM ATOMIC ENERGY AUTHORITY,12/03/2016,RAIL TRAVEL,FUSION,EMPLOYEE EXPENSES,100799876,25.10
UNITED KINGDOM ATOMIC ENERGY AUTHORITY,UNITED KINGDOM ATOMIC ENERGY AUTHORITY,25/03/2016,ROAD TRAVEL,FUSION,EMPLOYEE EXPENSES,100800283,25.00
UNITED KINGDOM ATOMIC ENERGY AUTHORITY,UNITED KINGDOM ATOMIC ENERGY AUTHORITY,25/03/2016,ROAD TRAVEL,FUSION,EMPLOYEE EXPENSES,100800302,25.00
UNITED KINGDOM ATOMIC ENERGY AUTHORITY,UNITED KINGDOM ATOMIC ENERGY AUTHORITY,12/03/2016,SUBSISTENCE,FUSION,EMPLOYEE EXPENSES,100799884,24.55
UNITED KINGDOM ATOMIC ENERGY AUTHORITY,UNITED KINGDOM ATOMIC ENERGY AUTHORITY,25/03/2016,MILEAGE ALLOWANCE,SUPPORT SERVICES,EMPLOYEE EXPENSES,100800263,24.30
UNITED KINGDOM ATOMIC ENERGY AUTHORITY,UNITED KINGDOM ATOMIC ENERGY AUTHORITY,12/03/2016,RAIL TRAVEL,FUSION,EMPLOYEE EXPENSES,100799898,24.20
UNITED KINGDOM ATOMIC ENERGY AUTHORITY,UNITED KINGDOM ATOMIC ENERGY AUTHORITY,25/03/2016,SUBSISTENCE,FUSION,EMPLOYEE EXPENSES,100800262,24.17
UNITED KINGDOM ATOMIC ENERGY AUTHORITY,UNITED KINGDOM ATOMIC ENERGY AUTHORITY,27/02/2016,OTHER EMPLOYEE EXPENSES,SUPPORT SERVICES,EMPLOYEE EXPENSES,100799781,24.07
UNITED KINGDOM ATOMIC ENERGY AUTHORITY,UNITED KINGDOM ATOMIC ENERGY AUTHORITY,19/03/2016,ROAD TRAVEL,FUSION,EMPLOYEE EXPENSES,100800091,24.00
UNITED KINGDOM ATOMIC ENERGY AUTHORITY,UNITED KINGDOM ATOMIC ENERGY AUTHORITY,19/03/2016,RAIL TRAVEL,SUPPORT SERVICES,EMPLOYEE EXPENSES,100800109,23.70
UNITED KINGDOM ATOMIC ENERGY AUTHORITY,UNITED KINGDOM ATOMIC ENERGY AUTHORITY,25/03/2016,RAIL TRAVEL,FUSION,EMPLOYEE EXPENSES,100800277,23.43
UNITED KINGDOM ATOMIC ENERGY AUTHORITY,UNITED KINGDOM ATOMIC ENERGY AUTHORITY,19/03/2016,ROAD TRAVEL,FUSION,EMPLOYEE EXPENSES,100800076,23.00
UNITED KINGDOM ATOMIC ENERGY AUTHORITY,UNITED KINGDOM ATOMIC ENERGY AUTHORITY,25/03/2016,ROAD TRAVEL,FUSION,EMPLOYEE EXPENSES,100800295,23.00
UNITED KINGDOM ATOMIC ENERGY AUTHORITY,UNITED KINGDOM ATOMIC ENERGY AUTHORITY,05/03/2016,MILEAGE ALLOWANCE,FUSION,EMPLOYEE EXPENSES,100799829,22.50
UNITED KINGDOM ATOMIC ENERGY AUTHORITY,UNITED KINGDOM ATOMIC ENERGY AUTHORITY,05/03/2016,MILEAGE ALLOWANCE,SUPPORT SERVICES,EMPLOYEE EXPENSES,100799831,22.08
UNITED KINGDOM ATOMIC ENERGY AUTHORITY,UNITED KINGDOM ATOMIC ENERGY AUTHORITY,12/03/2016,SUBSISTENCE,FUSION,EMPLOYEE EXPENSES,100799878,22.00
UNITED KINGDOM ATOMIC ENERGY AUTHORITY,UNITED KINGDOM ATOMIC ENERGY AUTHORITY,05/03/2016,TAXIS,FUSION,EMPLOYEE EXPENSES,100799819,21.80
UNITED KINGDOM ATOMIC ENERGY AUTHORITY,UNITED KINGDOM ATOMIC ENERGY AUTHORITY,27/02/2016,ROAD TRAVEL,SUPPORT SERVICES,EMPLOYEE EXPENSES,100799781,21.66
UNITED KINGDOM ATOMIC ENERGY AUTHORITY,UNITED KINGDOM ATOMIC ENERGY AUTHORITY,05/03/2016,ROAD TRAVEL,SUPPORT SERVICES,EMPLOYEE EXPENSES,100799822,20.88
UNITED KINGDOM ATOMIC ENERGY AUTHORITY,UNITED KINGDOM ATOMIC ENERGY AUTHORITY,19/03/2016,MILEAGE ALLOWANCE,SUPPORT SERVICES,EMPLOYEE EXPENSES,100800099,20.25
UNITED KINGDOM ATOMIC ENERGY AUTHORITY,UNITED KINGDOM ATOMIC ENERGY AUTHORITY,12/03/2016,ROAD TRAVEL,FUSION,EMPLOYEE EXPENSES,100799874,19.71
UNITED KINGDOM ATOMIC ENERGY AUTHORITY,UNITED KINGDOM ATOMIC ENERGY AUTHORITY,12/03/2016,RAIL TRAVEL,FUSION,EMPLOYEE EXPENSES,100799875,19.55
UNITED KINGDOM ATOMIC ENERGY AUTHORITY,UNITED KINGDOM ATOMIC ENERGY AUTHORITY,27/02/2016,RAIL TRAVEL,SUPPORT SERVICES,EMPLOYEE EXPENSES,100799780,19.45
UNITED KINGDOM ATOMIC ENERGY AUTHORITY,UNITED KINGDOM ATOMIC ENERGY AUTHORITY,25/03/2016,RAIL TRAVEL,FUSION,EMPLOYEE EXPENSES,100800294,19.40
UNITED KINGDOM ATOMIC ENERGY AUTHORITY,UNITED KINGDOM ATOMIC ENERGY AUTHORITY,19/03/2016,ROAD TRAVEL,FUSION,EMPLOYEE EXPENSES,100800086,19.32
UNITED KINGDOM ATOMIC ENERGY AUTHORITY,UNITED KINGDOM ATOMIC ENERGY AUTHORITY,25/03/2016,RAIL TRAVEL,FUSION,EMPLOYEE EXPENSES,100800295,18.71
UNITED KINGDOM ATOMIC ENERGY AUTHORITY,UNITED KINGDOM ATOMIC ENERGY AUTHORITY,25/03/2016,TAXIS,FUSION,EMPLOYEE EXPENSES,100800277,18.48
UNITED KINGDOM ATOMIC ENERGY AUTHORITY,UNITED KINGDOM ATOMIC ENERGY AUTHORITY,19/03/2016,RAIL TRAVEL,FUSION,EMPLOYEE EXPENSES,100800078,18.14
UNITED KINGDOM ATOMIC ENERGY AUTHORITY,UNITED KINGDOM ATOMIC ENERGY AUTHORITY,19/03/2016,SUBSISTENCE,FUSION,EMPLOYEE EXPENSES,100800108,17.87
UNITED KINGDOM ATOMIC ENERGY AUTHORITY,UNITED KINGDOM ATOMIC ENERGY AUTHORITY,12/03/2016,TAXIS,FUSION,EMPLOYEE EXPENSES,100799887,17.82
UNITED KINGDOM ATOMIC ENERGY AUTHORITY,UNITED KINGDOM ATOMIC ENERGY AUTHORITY,05/03/2016,TAXIS,FUSION,EMPLOYEE EXPENSES,100799818,17.52
UNITED KINGDOM ATOMIC ENERGY AUTHORITY,UNITED KINGDOM ATOMIC ENERGY AUTHORITY,12/03/2016,ROAD TRAVEL,FUSION,EMPLOYEE EXPENSES,100799883,17.01
UNITED KINGDOM ATOMIC ENERGY AUTHORITY,UNITED KINGDOM ATOMIC ENERGY AUTHORITY,05/03/2016,RAIL TRAVEL,FUSION,EMPLOYEE EXPENSES,100799811,16.29
UNITED KINGDOM ATOMIC ENERGY AUTHORITY,UNITED KINGDOM ATOMIC ENERGY AUTHORITY,27/02/2016,TAXIS,FUSION,EMPLOYEE EXPENSES,100799784,15.30
UNITED KINGDOM ATOMIC ENERGY AUTHORITY,UNITED KINGDOM ATOMIC ENERGY AUTHORITY,25/03/2016,RAIL TRAVEL,FUSION,EMPLOYEE EXPENSES,100800283,15.30
UNITED KINGDOM ATOMIC ENERGY AUTHORITY,UNITED KINGDOM ATOMIC ENERGY AUTHORITY,12/03/2016,SUBSISTENCE,FUSION,EMPLOYEE EXPENSES,100799873,15.20
UNITED KINGDOM ATOMIC ENERGY AUTHORITY,UNITED KINGDOM ATOMIC ENERGY AUTHORITY,25/03/2016,RAIL TRAVEL,FUSION,EMPLOYEE EXPENSES,100800267,15.16
UNITED KINGDOM ATOMIC ENERGY AUTHORITY,UNITED KINGDOM ATOMIC ENERGY AUTHORITY,27/02/2016,ROAD TRAVEL,SUPPORT SERVICES,EMPLOYEE EXPENSES,100799781,14.50
UNITED KINGDOM ATOMIC ENERGY AUTHORITY,UNITED KINGDOM ATOMIC ENERGY AUTHORITY,19/03/2016,ROAD TRAVEL,SUPPORT SERVICES,EMPLOYEE EXPENSES,100800099,14.25
UNITED KINGDOM ATOMIC ENERGY AUTHORITY,UNITED KINGDOM ATOMIC ENERGY AUTHORITY,19/03/2016,OTHER EMPLOYEE EXPENSES,FUSION,EMPLOYEE EXPENSES,100800088,14.18
UNITED KINGDOM ATOMIC ENERGY AUTHORITY,UNITED KINGDOM ATOMIC ENERGY AUTHORITY,19/03/2016,RAIL TRAVEL,FUSION,EMPLOYEE EXPENSES,100800075,13.72
UNITED KINGDOM ATOMIC ENERGY AUTHORITY,UNITED KINGDOM ATOMIC ENERGY AUTHORITY,12/03/2016,SUBSISTENCE,FUSION,EMPLOYEE EXPENSES,100799893,13.71
UNITED KINGDOM ATOMIC ENERGY AUTHORITY,UNITED KINGDOM ATOMIC ENERGY AUTHORITY,12/03/2016,SUBSISTENCE,FUSION,EMPLOYEE EXPENSES,100799887,13.21
UNITED KINGDOM ATOMIC ENERGY AUTHORITY,UNITED KINGDOM ATOMIC ENERGY AUTHORITY,12/03/2016,MILEAGE ALLOWANCE,FUSION,EMPLOYEE EXPENSES,100799892,12.60
UNITED KINGDOM ATOMIC ENERGY AUTHORITY,UNITED KINGDOM ATOMIC ENERGY AUTHORITY,27/02/2016,SUBSISTENCE,FUSION,EMPLOYEE EXPENSES,100799775,12.40
UNITED KINGDOM ATOMIC ENERGY AUTHORITY,UNITED KINGDOM ATOMIC ENERGY AUTHORITY,25/03/2016,ROAD TRAVEL,FUSION,EMPLOYEE EXPENSES,100800293,12.00
UNITED KINGDOM ATOMIC ENERGY AUTHORITY,UNITED KINGDOM ATOMIC ENERGY AUTHORITY,19/03/2016,MILEAGE ALLOWANCE,SUPPORT SERVICES,EMPLOYEE EXPENSES,100800109,11.70
UNITED KINGDOM ATOMIC ENERGY AUTHORITY,UNITED KINGDOM ATOMIC ENERGY AUTHORITY,12/03/2016,TAXIS,FUSION,EMPLOYEE EXPENSES,100799881,11.58
UNITED KINGDOM ATOMIC ENERGY AUTHORITY,UNITED KINGDOM ATOMIC ENERGY AUTHORITY,19/03/2016,ROAD TRAVEL,FUSION,EMPLOYEE EXPENSES,100800103,11.58
UNITED KINGDOM ATOMIC ENERGY AUTHORITY,UNITED KINGDOM ATOMIC ENERGY AUTHORITY,19/03/2016,ROAD TRAVEL,FUSION,EMPLOYEE EXPENSES,100800090,11.50
UNITED KINGDOM ATOMIC ENERGY AUTHORITY,UNITED KINGDOM ATOMIC ENERGY AUTHORITY,05/03/2016,TAXIS,FUSION,EMPLOYEE EXPENSES,100799830,11.00
UNITED KINGDOM ATOMIC ENERGY AUTHORITY,UNITED KINGDOM ATOMIC ENERGY AUTHORITY,19/03/2016,OTHER EMPLOYEE EXPENSES,FUSION,EMPLOYEE EXPENSES,100800077,10.92
UNITED KINGDOM ATOMIC ENERGY AUTHORITY,UNITED KINGDOM ATOMIC ENERGY AUTHORITY,05/03/2016,ROAD TRAVEL,FUSION,EMPLOYEE EXPENSES,100799818,10.85
UNITED KINGDOM ATOMIC ENERGY AUTHORITY,UNITED KINGDOM ATOMIC ENERGY AUTHORITY,05/03/2016,SUBSISTENCE,FUSION,EMPLOYEE EXPENSES,100799815,10.83
UNITED KINGDOM ATOMIC ENERGY AUTHORITY,UNITED KINGDOM ATOMIC ENERGY AUTHORITY,25/03/2016,ROAD TRAVEL,FUSION,EMPLOYEE EXPENSES,100800256,10.83
UNITED KINGDOM ATOMIC ENERGY AUTHORITY,UNITED KINGDOM ATOMIC ENERGY AUTHORITY,05/03/2016,ROAD TRAVEL,FUSION,EMPLOYEE EXPENSES,100799827,10.80
UNITED KINGDOM ATOMIC ENERGY AUTHORITY,UNITED KINGDOM ATOMIC ENERGY AUTHORITY,19/03/2016,RAIL TRAVEL,FUSION,EMPLOYEE EXPENSES,100800076,10.67
UNITED KINGDOM ATOMIC ENERGY AUTHORITY,UNITED KINGDOM ATOMIC ENERGY AUTHORITY,12/03/2016,EFDA TRAVEL EXPENSES,FUSION,EMPLOYEE EXPENSES,100799889,10.66
UNITED KINGDOM ATOMIC ENERGY AUTHORITY,UNITED KINGDOM ATOMIC ENERGY AUTHORITY,12/03/2016,TAXIS,FUSION,EMPLOYEE EXPENSES,100799876,10.60
UNITED KINGDOM ATOMIC ENERGY AUTHORITY,UNITED KINGDOM ATOMIC ENERGY AUTHORITY,25/03/2016,SUBSISTENCE,FUSION,EMPLOYEE EXPENSES,100800306,10.46
UNITED KINGDOM ATOMIC ENERGY AUTHORITY,UNITED KINGDOM ATOMIC ENERGY AUTHORITY,27/02/2016,ROAD TRAVEL,FUSION,EMPLOYEE EXPENSES,100799771,10.30
UNITED KINGDOM ATOMIC ENERGY AUTHORITY,UNITED KINGDOM ATOMIC ENERGY AUTHORITY,19/03/2016,ROAD TRAVEL,SUPPORT SERVICES,EMPLOYEE EXPENSES,100800096,10.25
UNITED KINGDOM ATOMIC ENERGY AUTHORITY,UNITED KINGDOM ATOMIC ENERGY AUTHORITY,05/03/2016,SUBSISTENCE,FUSION,EMPLOYEE EXPENSES,100799812,10.10
UNITED KINGDOM ATOMIC ENERGY AUTHORITY,UNITED KINGDOM ATOMIC ENERGY AUTHORITY,27/02/2016,SUBSISTENCE,FUSION,EMPLOYEE EXPENSES,100799766,10.00
UNITED KINGDOM ATOMIC ENERGY AUTHORITY,UNITED KINGDOM ATOMIC ENERGY AUTHORITY,12/03/2016,SUBSISTENCE,FUSION,EMPLOYEE EXPENSES,100799894,10.00
UNITED KINGDOM ATOMIC ENERGY AUTHORITY,UNITED KINGDOM ATOMIC ENERGY AUTHORITY,12/03/2016,SUBSISTENCE,FUSION,EMPLOYEE EXPENSES,100799895,10.00
UNITED KINGDOM ATOMIC ENERGY AUTHORITY,UNITED KINGDOM ATOMIC ENERGY AUTHORITY,12/03/2016,SUBSISTENCE,FUSION,EMPLOYEE EXPENSES,100799896,10.00
UNITED KINGDOM ATOMIC ENERGY AUTHORITY,UNITED KINGDOM ATOMIC ENERGY AUTHORITY,12/03/2016,SUBSISTENCE,FUSION,EMPLOYEE EXPENSES,100799897,10.00
UNITED KINGDOM ATOMIC ENERGY AUTHORITY,UNITED KINGDOM ATOMIC ENERGY AUTHORITY,25/03/2016,SUBSISTENCE,FUSION,EMPLOYEE EXPENSES,100800259,10.00
UNITED KINGDOM ATOMIC ENERGY AUTHORITY,UNITED KINGDOM ATOMIC ENERGY AUTHORITY,25/03/2016,ROAD TRAVEL,FUSION,EMPLOYEE EXPENSES,100800262,10.00
UNITED KINGDOM ATOMIC ENERGY AUTHORITY,UNITED KINGDOM ATOMIC ENERGY AUTHORITY,25/03/2016,SUBSISTENCE,FUSION,EMPLOYEE EXPENSES,100800279,10.00
UNITED KINGDOM ATOMIC ENERGY AUTHORITY,UNITED KINGDOM ATOMIC ENERGY AUTHORITY,05/03/2016,MILEAGE ALLOWANCE,FUSION,EMPLOYEE EXPENSES,100799832,9.60
UNITED KINGDOM ATOMIC ENERGY AUTHORITY,UNITED KINGDOM ATOMIC ENERGY AUTHORITY,19/03/2016,ROAD TRAVEL,FUSION,EMPLOYEE EXPENSES,100800087,9.17
UNITED KINGDOM ATOMIC ENERGY AUTHORITY,UNITED KINGDOM ATOMIC ENERGY AUTHORITY,12/03/2016,ROAD TRAVEL,FUSION,EMPLOYEE EXPENSES,100799884,9.10
UNITED KINGDOM ATOMIC ENERGY AUTHORITY,UNITED KINGDOM ATOMIC ENERGY AUTHORITY,12/03/2016,ROAD TRAVEL,FUSION,EMPLOYEE EXPENSES,100799879,9.00
UNITED KINGDOM ATOMIC ENERGY AUTHORITY,UNITED KINGDOM ATOMIC ENERGY AUTHORITY,19/03/2016,MILEAGE ALLOWANCE,SUPPORT SERVICES,EMPLOYEE EXPENSES,100800095,9.00
UNITED KINGDOM ATOMIC ENERGY AUTHORITY,UNITED KINGDOM ATOMIC ENERGY AUTHORITY,19/03/2016,MILEAGE ALLOWANCE,SUPPORT SERVICES,EMPLOYEE EXPENSES,100800096,9.00
UNITED KINGDOM ATOMIC ENERGY AUTHORITY,UNITED KINGDOM ATOMIC ENERGY AUTHORITY,25/03/2016,MILEAGE ALLOWANCE,FUSION,EMPLOYEE EXPENSES,100800257,9.00
UNITED KINGDOM ATOMIC ENERGY AUTHORITY,UNITED KINGDOM ATOMIC ENERGY AUTHORITY,25/03/2016,OTHER EMPLOYEE EXPENSES,FUSION,EMPLOYEE EXPENSES,100800277,9.00
UNITED KINGDOM ATOMIC ENERGY AUTHORITY,UNITED KINGDOM ATOMIC ENERGY AUTHORITY,25/03/2016,MILEAGE ALLOWANCE,FUSION,EMPLOYEE EXPENSES,100800290,9.00
UNITED KINGDOM ATOMIC ENERGY AUTHORITY,UNITED KINGDOM ATOMIC ENERGY AUTHORITY,19/03/2016,SUBSISTENCE,FUSION,EMPLOYEE EXPENSES,100800114,8.96
UNITED KINGDOM ATOMIC ENERGY AUTHORITY,UNITED KINGDOM ATOMIC ENERGY AUTHORITY,25/03/2016,SUBSISTENCE,FUSION,EMPLOYEE EXPENSES,100800283,8.89
UNITED KINGDOM ATOMIC ENERGY AUTHORITY,UNITED KINGDOM ATOMIC ENERGY AUTHORITY,25/03/2016,SUBSISTENCE,FUSION,EMPLOYEE EXPENSES,100800271,8.87
UNITED KINGDOM ATOMIC ENERGY AUTHORITY,UNITED KINGDOM ATOMIC ENERGY AUTHORITY,12/03/2016,SUBSISTENCE,FUSION,EMPLOYEE EXPENSES,100799910,8.85
UNITED KINGDOM ATOMIC ENERGY AUTHORITY,UNITED KINGDOM ATOMIC ENERGY AUTHORITY,19/03/2016,ROAD TRAVEL,FUSION,EMPLOYEE EXPENSES,100800080,8.64
UNITED KINGDOM ATOMIC ENERGY AUTHORITY,UNITED KINGDOM ATOMIC ENERGY AUTHORITY,25/03/2016,RAIL TRAVEL,FUSION,EMPLOYEE EXPENSES,100800265,8.56
UNITED KINGDOM ATOMIC ENERGY AUTHORITY,UNITED KINGDOM ATOMIC ENERGY AUTHORITY,19/03/2016,ROAD TRAVEL,SUPPORT SERVICES,EMPLOYEE EXPENSES,100800109,8.50
UNITED KINGDOM ATOMIC ENERGY AUTHORITY,UNITED KINGDOM ATOMIC ENERGY AUTHORITY,12/03/2016,RAIL TRAVEL,FUSION,EMPLOYEE EXPENSES,100799881,8.34
UNITED KINGDOM ATOMIC ENERGY AUTHORITY,UNITED KINGDOM ATOMIC ENERGY AUTHORITY,05/03/2016,SUBSISTENCE,FUSION,EMPLOYEE EXPENSES,100799825,8.13
UNITED KINGDOM ATOMIC ENERGY AUTHORITY,UNITED KINGDOM ATOMIC ENERGY AUTHORITY,05/03/2016,SUBSISTENCE,FUSION,EMPLOYEE EXPENSES,100799830,8.08
UNITED KINGDOM ATOMIC ENERGY AUTHORITY,UNITED KINGDOM ATOMIC ENERGY AUTHORITY,25/03/2016,ROAD TRAVEL,SUPPORT SERVICES,EMPLOYEE EXPENSES,100800300,8.00
UNITED KINGDOM ATOMIC ENERGY AUTHORITY,UNITED KINGDOM ATOMIC ENERGY AUTHORITY,25/03/2016,OTHER EMPLOYEE EXPENSES,FUSION,EMPLOYEE EXPENSES,100800283,7.87
UNITED KINGDOM ATOMIC ENERGY AUTHORITY,UNITED KINGDOM ATOMIC ENERGY AUTHORITY,25/03/2016,SUBSISTENCE,FUSION,EMPLOYEE EXPENSES,100800302,7.82
UNITED KINGDOM ATOMIC ENERGY AUTHORITY,UNITED KINGDOM ATOMIC ENERGY AUTHORITY,27/02/2016,MILEAGE ALLOWANCE,FUSION,EMPLOYEE EXPENSES,100799764,7.20
UNITED KINGDOM ATOMIC ENERGY AUTHORITY,UNITED KINGDOM ATOMIC ENERGY AUTHORITY,05/03/2016,MILEAGE ALLOWANCE,FUSION,EMPLOYEE EXPENSES,100799807,7.20
UNITED KINGDOM ATOMIC ENERGY AUTHORITY,UNITED KINGDOM ATOMIC ENERGY AUTHORITY,12/03/2016,MILEAGE ALLOWANCE,FUSION,EMPLOYEE EXPENSES,100799871,7.20
UNITED KINGDOM ATOMIC ENERGY AUTHORITY,UNITED KINGDOM ATOMIC ENERGY AUTHORITY,19/03/2016,MILEAGE ALLOWANCE,FUSION,EMPLOYEE EXPENSES,100800071,7.20
UNITED KINGDOM ATOMIC ENERGY AUTHORITY,UNITED KINGDOM ATOMIC ENERGY AUTHORITY,25/03/2016,MILEAGE ALLOWANCE,FUSION,EMPLOYEE EXPENSES,100800254,7.20
UNITED KINGDOM ATOMIC ENERGY AUTHORITY,UNITED KINGDOM ATOMIC ENERGY AUTHORITY,25/03/2016,MILEAGE ALLOWANCE,SUPPORT SERVICES,EMPLOYEE EXPENSES,100800264,7.20
UNITED KINGDOM ATOMIC ENERGY AUTHORITY,UNITED KINGDOM ATOMIC ENERGY AUTHORITY,05/03/2016,SUBSISTENCE,FUSION,EMPLOYEE EXPENSES,100799827,7.12
UNITED KINGDOM ATOMIC ENERGY AUTHORITY,UNITED KINGDOM ATOMIC ENERGY AUTHORITY,05/03/2016,TAXIS,FUSION,EMPLOYEE EXPENSES,100799812,7.00
UNITED KINGDOM ATOMIC ENERGY AUTHORITY,UNITED KINGDOM ATOMIC ENERGY AUTHORITY,05/03/2016,TAXIS,FUSION,EMPLOYEE EXPENSES,100799813,7.00
UNITED KINGDOM ATOMIC ENERGY AUTHORITY,UNITED KINGDOM ATOMIC ENERGY AUTHORITY,12/03/2016,ROAD TRAVEL,FUSION,EMPLOYEE EXPENSES,100799893,6.98
UNITED KINGDOM ATOMIC ENERGY AUTHORITY,UNITED KINGDOM ATOMIC ENERGY AUTHORITY,19/03/2016,SUBSISTENCE,FUSION,EMPLOYEE EXPENSES,100800111,6.61
UNITED KINGDOM ATOMIC ENERGY AUTHORITY,UNITED KINGDOM ATOMIC ENERGY AUTHORITY,12/03/2016,RAIL TRAVEL,FUSION,EMPLOYEE EXPENSES,100799892,6.55
UNITED KINGDOM ATOMIC ENERGY AUTHORITY,UNITED KINGDOM ATOMIC ENERGY AUTHORITY,27/02/2016,ROAD TRAVEL,SUPPORT SERVICES,EMPLOYEE EXPENSES,100799780,6.50
UNITED KINGDOM ATOMIC ENERGY AUTHORITY,UNITED KINGDOM ATOMIC ENERGY AUTHORITY,12/03/2016,OTHER EMPLOYEE EXPENSES,FUSION,EMPLOYEE EXPENSES,100799892,6.50
UNITED KINGDOM ATOMIC ENERGY AUTHORITY,UNITED KINGDOM ATOMIC ENERGY AUTHORITY,19/03/2016,ROAD TRAVEL,PROPERTY,EMPLOYEE EXPENSES,100800115,6.50
UNITED KINGDOM ATOMIC ENERGY AUTHORITY,UNITED KINGDOM ATOMIC ENERGY AUTHORITY,19/03/2016,RAIL TRAVEL,FUSION,EMPLOYEE EXPENSES,100800110,6.42
UNITED KINGDOM ATOMIC ENERGY AUTHORITY,UNITED KINGDOM ATOMIC ENERGY AUTHORITY,25/03/2016,MILEAGE ALLOWANCE,SUPPORT SERVICES,EMPLOYEE EXPENSES,100800261,6.30
UNITED KINGDOM ATOMIC ENERGY AUTHORITY,UNITED KINGDOM ATOMIC ENERGY AUTHORITY,12/03/2016,SUBSISTENCE,FUSION,EMPLOYEE EXPENSES,100799874,6.23
UNITED KINGDOM ATOMIC ENERGY AUTHORITY,UNITED KINGDOM ATOMIC ENERGY AUTHORITY,25/03/2016,OTHER EMPLOYEE EXPENSES,FUSION,EMPLOYEE EXPENSES,100800295,6.19
UNITED KINGDOM ATOMIC ENERGY AUTHORITY,UNITED KINGDOM ATOMIC ENERGY AUTHORITY,12/03/2016,ROAD TRAVEL,FUSION,EMPLOYEE EXPENSES,100799902,6.00
UNITED KINGDOM ATOMIC ENERGY AUTHORITY,UNITED KINGDOM ATOMIC ENERGY AUTHORITY,25/03/2016,ROAD TRAVEL,FUSION,EMPLOYEE EXPENSES,100800306,5.91
UNITED KINGDOM ATOMIC ENERGY AUTHORITY,UNITED KINGDOM ATOMIC ENERGY AUTHORITY,19/03/2016,SUBSISTENCE,FUSION,EMPLOYEE EXPENSES,100800086,5.53
UNITED KINGDOM ATOMIC ENERGY AUTHORITY,UNITED KINGDOM ATOMIC ENERGY AUTHORITY,19/03/2016,ROAD TRAVEL,FUSION,EMPLOYEE EXPENSES,100800104,5.50
UNITED KINGDOM ATOMIC ENERGY AUTHORITY,UNITED KINGDOM ATOMIC ENERGY AUTHORITY,05/03/2016,RAIL TRAVEL,FUSION,EMPLOYEE EXPENSES,100799810,5.40
UNITED KINGDOM ATOMIC ENERGY AUTHORITY,UNITED KINGDOM ATOMIC ENERGY AUTHORITY,19/03/2016,SUBSISTENCE,FUSION,EMPLOYEE EXPENSES,100800084,5.25
UNITED KINGDOM ATOMIC ENERGY AUTHORITY,UNITED KINGDOM ATOMIC ENERGY AUTHORITY,12/03/2016,ROAD TRAVEL,FUSION,EMPLOYEE EXPENSES,100799894,5.21
UNITED KINGDOM ATOMIC ENERGY AUTHORITY,UNITED KINGDOM ATOMIC ENERGY AUTHORITY,12/03/2016,ROAD TRAVEL,FUSION,EMPLOYEE EXPENSES,100799895,5.21
UNITED KINGDOM ATOMIC ENERGY AUTHORITY,UNITED KINGDOM ATOMIC ENERGY AUTHORITY,12/03/2016,ROAD TRAVEL,FUSION,EMPLOYEE EXPENSES,100799896,5.21
UNITED KINGDOM ATOMIC ENERGY AUTHORITY,UNITED KINGDOM ATOMIC ENERGY AUTHORITY,12/03/2016,ROAD TRAVEL,FUSION,EMPLOYEE EXPENSES,100799897,5.21
UNITED KINGDOM ATOMIC ENERGY AUTHORITY,UNITED KINGDOM ATOMIC ENERGY AUTHORITY,05/03/2016,SUBSISTENCE,FUSION,EMPLOYEE EXPENSES,100799828,5.13
UNITED KINGDOM ATOMIC ENERGY AUTHORITY,UNITED KINGDOM ATOMIC ENERGY AUTHORITY,27/02/2016,ROAD TRAVEL,FUSION,EMPLOYEE EXPENSES,100799771,5.10
UNITED KINGDOM ATOMIC ENERGY AUTHORITY,UNITED KINGDOM ATOMIC ENERGY AUTHORITY,05/03/2016,SUBSISTENCE,FUSION,EMPLOYEE EXPENSES,100799810,5.08
UNITED KINGDOM ATOMIC ENERGY AUTHORITY,UNITED KINGDOM ATOMIC ENERGY AUTHORITY,05/03/2016,ROAD TRAVEL,FUSION,EMPLOYEE EXPENSES,100799815,5.08
UNITED KINGDOM ATOMIC ENERGY AUTHORITY,UNITED KINGDOM ATOMIC ENERGY AUTHORITY,25/03/2016,ROAD TRAVEL,FUSION,EMPLOYEE EXPENSES,100800273,5.03
UNITED KINGDOM ATOMIC ENERGY AUTHORITY,UNITED KINGDOM ATOMIC ENERGY AUTHORITY,05/03/2016,OTHER EMPLOYEE EXPENSES,FUSION,EMPLOYEE EXPENSES,100799810,5.01
UNITED KINGDOM ATOMIC ENERGY AUTHORITY,UNITED KINGDOM ATOMIC ENERGY AUTHORITY,27/02/2016,SUBSISTENCE,FUSION,EMPLOYEE EXPENSES,100799767,5.00
UNITED KINGDOM ATOMIC ENERGY AUTHORITY,UNITED KINGDOM ATOMIC ENERGY AUTHORITY,27/02/2016,ROAD TRAVEL,FUSION,EMPLOYEE EXPENSES,100799778,5.00
UNITED KINGDOM ATOMIC ENERGY AUTHORITY,UNITED KINGDOM ATOMIC ENERGY AUTHORITY,05/03/2016,SUBSISTENCE,FUSION,EMPLOYEE EXPENSES,100799806,5.00
UNITED KINGDOM ATOMIC ENERGY AUTHORITY,UNITED KINGDOM ATOMIC ENERGY AUTHORITY,05/03/2016,SUBSISTENCE,FUSION,EMPLOYEE EXPENSES,100799813,5.00
UNITED KINGDOM ATOMIC ENERGY AUTHORITY,UNITED KINGDOM ATOMIC ENERGY AUTHORITY,12/03/2016,SUBSISTENCE,FUSION,EMPLOYEE EXPENSES,100799879,5.00
UNITED KINGDOM ATOMIC ENERGY AUTHORITY,UNITED KINGDOM ATOMIC ENERGY AUTHORITY,12/03/2016,SUBSISTENCE,FUSION,EMPLOYEE EXPENSES,100799908,5.00
UNITED KINGDOM ATOMIC ENERGY AUTHORITY,UNITED KINGDOM ATOMIC ENERGY AUTHORITY,19/03/2016,SUBSISTENCE,FUSION,EMPLOYEE EXPENSES,100800083,5.00
UNITED KINGDOM ATOMIC ENERGY AUTHORITY,UNITED KINGDOM ATOMIC ENERGY AUTHORITY,19/03/2016,SUBSISTENCE,FUSION,EMPLOYEE EXPENSES,100800085,5.00
UNITED KINGDOM ATOMIC ENERGY AUTHORITY,UNITED KINGDOM ATOMIC ENERGY AUTHORITY,19/03/2016,SUBSISTENCE,FUSION,EMPLOYEE EXPENSES,100800094,5.00
UNITED KINGDOM ATOMIC ENERGY AUTHORITY,UNITED KINGDOM ATOMIC ENERGY AUTHORITY,19/03/2016,SUBSISTENCE,FUSION,EMPLOYEE EXPENSES,100800100,5.00
UNITED KINGDOM ATOMIC ENERGY AUTHORITY,UNITED KINGDOM ATOMIC ENERGY AUTHORITY,25/03/2016,SUBSISTENCE,FUSION,EMPLOYEE EXPENSES,100800256,5.00
UNITED KINGDOM ATOMIC ENERGY AUTHORITY,UNITED KINGDOM ATOMIC ENERGY AUTHORITY,25/03/2016,SUBSISTENCE,SUPPORT SERVICES,EMPLOYEE EXPENSES,100800261,5.00
UNITED KINGDOM ATOMIC ENERGY AUTHORITY,UNITED KINGDOM ATOMIC ENERGY AUTHORITY,25/03/2016,SUBSISTENCE,FUSION,EMPLOYEE EXPENSES,100800294,5.00
UNITED KINGDOM ATOMIC ENERGY AUTHORITY,UNITED KINGDOM ATOMIC ENERGY AUTHORITY,25/03/2016,TAXIS,FUSION,EMPLOYEE EXPENSES,100800295,5.00
UNITED KINGDOM ATOMIC ENERGY AUTHORITY,UNITED KINGDOM ATOMIC ENERGY AUTHORITY,05/03/2016,SUBSISTENCE,FUSION,EMPLOYEE EXPENSES,100799821,4.96
UNITED KINGDOM ATOMIC ENERGY AUTHORITY,UNITED KINGDOM ATOMIC ENERGY AUTHORITY,19/03/2016,RAIL TRAVEL,FUSION,EMPLOYEE EXPENSES,100800080,4.95
UNITED KINGDOM ATOMIC ENERGY AUTHORITY,UNITED KINGDOM ATOMIC ENERGY AUTHORITY,25/03/2016,SUBSISTENCE,FUSION,EMPLOYEE EXPENSES,100800293,4.87
UNITED KINGDOM ATOMIC ENERGY AUTHORITY,UNITED KINGDOM ATOMIC ENERGY AUTHORITY,12/03/2016,ROAD TRAVEL,FUSION,EMPLOYEE EXPENSES,100799904,4.77
UNITED KINGDOM ATOMIC ENERGY AUTHORITY,UNITED KINGDOM ATOMIC ENERGY AUTHORITY,05/03/2016,SUBSISTENCE,FUSION,EMPLOYEE EXPENSES,100799821,4.76
UNITED KINGDOM ATOMIC ENERGY AUTHORITY,UNITED KINGDOM ATOMIC ENERGY AUTHORITY,25/03/2016,ROAD TRAVEL,FUSION,EMPLOYEE EXPENSES,100800272,4.70
UNITED KINGDOM ATOMIC ENERGY AUTHORITY,UNITED KINGDOM ATOMIC ENERGY AUTHORITY,12/03/2016,SUBSISTENCE,FUSION,EMPLOYEE EXPENSES,100799885,4.58
UNITED KINGDOM ATOMIC ENERGY AUTHORITY,UNITED KINGDOM ATOMIC ENERGY AUTHORITY,12/03/2016,ROAD TRAVEL,FUSION,EMPLOYEE EXPENSES,100799916,4.51
UNITED KINGDOM ATOMIC ENERGY AUTHORITY,UNITED KINGDOM ATOMIC ENERGY AUTHORITY,19/03/2016,SUBSISTENCE,FUSION,EMPLOYEE EXPENSES,100800110,4.41
UNITED KINGDOM ATOMIC ENERGY AUTHORITY,UNITED KINGDOM ATOMIC ENERGY AUTHORITY,12/03/2016,SUBSISTENCE,FUSION,EMPLOYEE EXPENSES,100799874,4.35
UNITED KINGDOM ATOMIC ENERGY AUTHORITY,UNITED KINGDOM ATOMIC ENERGY AUTHORITY,19/03/2016,SUBSISTENCE,FUSION,EMPLOYEE EXPENSES,100800104,4.30
UNITED KINGDOM ATOMIC ENERGY AUTHORITY,UNITED KINGDOM ATOMIC ENERGY AUTHORITY,19/03/2016,SUBSISTENCE,FUSION,EMPLOYEE EXPENSES,100800086,4.29
UNITED KINGDOM ATOMIC ENERGY AUTHORITY,UNITED KINGDOM ATOMIC ENERGY AUTHORITY,25/03/2016,OTHER EMPLOYEE EXPENSES,SUPPORT SERVICES,EMPLOYEE EXPENSES,100800285,4.17
UNITED KINGDOM ATOMIC ENERGY AUTHORITY,UNITED KINGDOM ATOMIC ENERGY AUTHORITY,27/02/2016,ROAD TRAVEL,SUPPORT SERVICES,EMPLOYEE EXPENSES,100799786,3.80
UNITED KINGDOM ATOMIC ENERGY AUTHORITY,UNITED KINGDOM ATOMIC ENERGY AUTHORITY,12/03/2016,SUBSISTENCE,FUSION,EMPLOYEE EXPENSES,100799892,3.78
UNITED KINGDOM ATOMIC ENERGY AUTHORITY,UNITED KINGDOM ATOMIC ENERGY AUTHORITY,05/03/2016,SUBSISTENCE,FUSION,EMPLOYEE EXPENSES,100799816,3.50
UNITED KINGDOM ATOMIC ENERGY AUTHORITY,UNITED KINGDOM ATOMIC ENERGY AUTHORITY,05/03/2016,ROAD TRAVEL,FUSION,EMPLOYEE EXPENSES,100799825,3.50
UNITED KINGDOM ATOMIC ENERGY AUTHORITY,UNITED KINGDOM ATOMIC ENERGY AUTHORITY,25/03/2016,SUBSISTENCE,FUSION,EMPLOYEE EXPENSES,100800284,3.49
UNITED KINGDOM ATOMIC ENERGY AUTHORITY,UNITED KINGDOM ATOMIC ENERGY AUTHORITY,25/03/2016,SUBSISTENCE,FUSION,EMPLOYEE EXPENSES,100800272,3.33
UNITED KINGDOM ATOMIC ENERGY AUTHORITY,UNITED KINGDOM ATOMIC ENERGY AUTHORITY,25/03/2016,RAIL TRAVEL,FUSION,EMPLOYEE EXPENSES,100800271,3.22
UNITED KINGDOM ATOMIC ENERGY AUTHORITY,UNITED KINGDOM ATOMIC ENERGY AUTHORITY,12/03/2016,ROAD TRAVEL,FUSION,EMPLOYEE EXPENSES,100799887,3.18
UNITED KINGDOM ATOMIC ENERGY AUTHORITY,UNITED KINGDOM ATOMIC ENERGY AUTHORITY,05/03/2016,SUBSISTENCE,SUPPORT SERVICES,EMPLOYEE EXPENSES,100799822,3.17
UNITED KINGDOM ATOMIC ENERGY AUTHORITY,UNITED KINGDOM ATOMIC ENERGY AUTHORITY,27/02/2016,ROAD TRAVEL,FUSION,EMPLOYEE EXPENSES,100799784,3.12
UNITED KINGDOM ATOMIC ENERGY AUTHORITY,UNITED KINGDOM ATOMIC ENERGY AUTHORITY,05/03/2016,ROAD TRAVEL,FUSION,EMPLOYEE EXPENSES,100799819,3.10
UNITED KINGDOM ATOMIC ENERGY AUTHORITY,UNITED KINGDOM ATOMIC ENERGY AUTHORITY,25/03/2016,ROAD TRAVEL,FUSION,EMPLOYEE EXPENSES,100800257,3.08
UNITED KINGDOM ATOMIC ENERGY AUTHORITY,UNITED KINGDOM ATOMIC ENERGY AUTHORITY,25/03/2016,OTHER EMPLOYEE EXPENSES,FUSION,EMPLOYEE EXPENSES,100800273,3.00
UNITED KINGDOM ATOMIC ENERGY AUTHORITY,UNITED KINGDOM ATOMIC ENERGY AUTHORITY,25/03/2016,ROAD TRAVEL,FUSION,EMPLOYEE EXPENSES,100800284,3.00
UNITED KINGDOM ATOMIC ENERGY AUTHORITY,UNITED KINGDOM ATOMIC ENERGY AUTHORITY,25/03/2016,ROAD TRAVEL,FUSION,EMPLOYEE EXPENSES,100800294,3.00
UNITED KINGDOM ATOMIC ENERGY AUTHORITY,UNITED KINGDOM ATOMIC ENERGY AUTHORITY,25/03/2016,ROAD TRAVEL,SUPPORT SERVICES,EMPLOYEE EXPENSES,100800264,2.92
UNITED KINGDOM ATOMIC ENERGY AUTHORITY,UNITED KINGDOM ATOMIC ENERGY AUTHORITY,05/03/2016,SUBSISTENCE,FUSION,EMPLOYEE EXPENSES,100799827,2.85
UNITED KINGDOM ATOMIC ENERGY AUTHORITY,UNITED KINGDOM ATOMIC ENERGY AUTHORITY,25/03/2016,ROAD TRAVEL,FUSION,EMPLOYEE EXPENSES,100800268,2.80
UNITED KINGDOM ATOMIC ENERGY AUTHORITY,UNITED KINGDOM ATOMIC ENERGY AUTHORITY,19/03/2016,SUBSISTENCE,FUSION,EMPLOYEE EXPENSES,100800089,2.66
UNITED KINGDOM ATOMIC ENERGY AUTHORITY,UNITED KINGDOM ATOMIC ENERGY AUTHORITY,19/03/2016,ROAD TRAVEL,FUSION,EMPLOYEE EXPENSES,100800084,2.47
UNITED KINGDOM ATOMIC ENERGY AUTHORITY,UNITED KINGDOM ATOMIC ENERGY AUTHORITY,12/03/2016,RAIL TRAVEL,FUSION,EMPLOYEE EXPENSES,100799876,2.14
UNITED KINGDOM ATOMIC ENERGY AUTHORITY,UNITED KINGDOM ATOMIC ENERGY AUTHORITY,25/03/2016,SUBSISTENCE,FUSION,EMPLOYEE EXPENSES,100800266,2.04
UNITED KINGDOM ATOMIC ENERGY AUTHORITY,UNITED KINGDOM ATOMIC ENERGY AUTHORITY,19/03/2016,SUBSISTENCE,FUSION,EMPLOYEE EXPENSES,100800076,1.87
UNITED KINGDOM ATOMIC ENERGY AUTHORITY,UNITED KINGDOM ATOMIC ENERGY AUTHORITY,25/03/2016,ROAD TRAVEL,FUSION,EMPLOYEE EXPENSES,100800271,1.69
UNITED KINGDOM ATOMIC ENERGY AUTHORITY,UNITED KINGDOM ATOMIC ENERGY AUTHORITY,12/03/2016,RAIL TRAVEL,FUSION,EMPLOYEE EXPENSES,100799916,1.64
UNITED KINGDOM ATOMIC ENERGY AUTHORITY,UNITED KINGDOM ATOMIC ENERGY AUTHORITY,25/03/2016,SUBSISTENCE,SUPPORT SERVICES,EMPLOYEE EXPENSES,100800264,1.60
UNITED KINGDOM ATOMIC ENERGY AUTHORITY,UNITED KINGDOM ATOMIC ENERGY AUTHORITY,25/03/2016,SUBSISTENCE,SUPPORT SERVICES,EMPLOYEE EXPENSES,100800264,1.42
UNITED KINGDOM ATOMIC ENERGY AUTHORITY,UNITED KINGDOM ATOMIC ENERGY AUTHORITY,25/03/2016,RAIL TRAVEL,FUSION,EMPLOYEE EXPENSES,100800255,1.10
UNITED KINGDOM ATOMIC ENERGY AUTHORITY,UNITED KINGDOM ATOMIC ENERGY AUTHORITY,12/03/2016,RAIL TRAVEL,FUSION,EMPLOYEE EXPENSES,100799905,1.09
UNITED KINGDOM ATOMIC ENERGY AUTHORITY,UNITED KINGDOM ATOMIC ENERGY AUTHORITY,12/03/2016,ROAD TRAVEL,FUSION,EMPLOYEE EXPENSES,100799892,0.86
UNITED KINGDOM ATOMIC ENERGY AUTHORITY,UNITED KINGDOM ATOMIC ENERGY AUTHORITY,25/03/2016,SUBSISTENCE,FUSION,EMPLOYEE EXPENSES,100800295,0.83
UNITED KINGDOM ATOMIC ENERGY AUTHORITY,UNITED KINGDOM ATOMIC ENERGY AUTHORITY,05/03/2016,SUBSISTENCE,FUSION,EMPLOYEE EXPENSES,100799812,0.04
UNITED KINGDOM ATOMIC ENERGY AUTHORITY,UNITED KINGDOM ATOMIC ENERGY AUTHORITY,03/03/2016,PLANT & EQUIPMENT,FUSION,ENDRESS + HAUSER,1900061366,856.17
UNITED KINGDOM ATOMIC ENERGY AUTHORITY,UNITED KINGDOM ATOMIC ENERGY AUTHORITY,23/03/2016,EFDA SECONDEE CONTRACT,FUSION,ENEA - C.R.E. FRASCATI,5100334112,"29,951.80"
UNITED KINGDOM ATOMIC ENERGY AUTHORITY,UNITED KINGDOM ATOMIC ENERGY AUTHORITY,07/03/2016,DESIGN & CONSTRUCTION,PROPERTY,ENVIROCHEM ANALYTICAL LABORATORIES,5100333502,650.00
UNITED KINGDOM ATOMIC ENERGY AUTHORITY,UNITED KINGDOM ATOMIC ENERGY AUTHORITY,14/03/2016,MATERIALS & SPARES,FUSION,ETPS LTD,5100333519,"1,995.00"
UNITED KINGDOM ATOMIC ENERGY AUTHORITY,UNITED KINGDOM ATOMIC ENERGY AUTHORITY,07/03/2016,MATERIALS & SPARES,FUSION,ETS CABLE COMPONENTS,5100333369,274.52
UNITED KINGDOM ATOMIC ENERGY AUTHORITY,UNITED KINGDOM ATOMIC ENERGY AUTHORITY,29/02/2016,MATERIALS & SPARES,FUSION,ETS CABLE COMPONENTS,5100333034,24.50
UNITED KINGDOM ATOMIC ENERGY AUTHORITY,UNITED KINGDOM ATOMIC ENERGY AUTHORITY,09/03/2016,UNIVERSITY PLACEMENT,FUSION,EUROPEAN PHYSICAL SOCIETY,1900061375,"2,320.37"
UNITED KINGDOM ATOMIC ENERGY AUTHORITY,UNITED KINGDOM ATOMIC ENERGY AUTHORITY,02/03/2016,SITE SUPPORT SERVICES,FUSION,EVERSON TESLA INC,5100333398,"27,389.36"
UNITED KINGDOM ATOMIC ENERGY AUTHORITY,UNITED KINGDOM ATOMIC ENERGY AUTHORITY,02/03/2016,SITE SUPPORT SERVICES,FUSION,EVERSON TESLA INC,5100333397,"27,118.36"
UNITED KINGDOM ATOMIC ENERGY AUTHORITY,UNITED KINGDOM ATOMIC ENERGY AUTHORITY,02/03/2016,SITE SUPPORT SERVICES,FUSION,EVERSON TESLA INC,5100333395,"9,840.70"
UNITED KINGDOM ATOMIC ENERGY AUTHORITY,UNITED KINGDOM ATOMIC ENERGY AUTHORITY,14/03/2016,IT SOFTWARE,FUSION,EXTENDED CONTENT SOLUTIONS LTD,5100333606,"28,000.00"
UNITED KINGDOM ATOMIC ENERGY AUTHORITY,UNITED KINGDOM ATOMIC ENERGY AUTHORITY,24/02/2016,REPAIRS & MAINTENANCE,FUSION,FACTAIR LTD,5100332605,945.00
UNITED KINGDOM ATOMIC ENERGY AUTHORITY,UNITED KINGDOM ATOMIC ENERGY AUTHORITY,29/03/2016,PROFESSIONAL SERVICES,PROPERTY,FAITHFUL & GOULD,5100334429,"17,995.25"
UNITED KINGDOM ATOMIC ENERGY AUTHORITY,UNITED KINGDOM ATOMIC ENERGY AUTHORITY,02/03/2016,PROFESSIONAL SERVICES,SUPPORT SERVICES,FAITHFUL & GOULD,5100333066,"8,196.86"
UNITED KINGDOM ATOMIC ENERGY AUTHORITY,UNITED KINGDOM ATOMIC ENERGY AUTHORITY,07/03/2016,PROFESSIONAL SERVICES,FUSION,FAITHFUL & GOULD,5100333557,"3,648.20"
UNITED KINGDOM ATOMIC ENERGY AUTHORITY,UNITED KINGDOM ATOMIC ENERGY AUTHORITY,07/03/2016,PROFESSIONAL SERVICES,FUSION,FAITHFUL & GOULD,5100333558,"2,672.60"
UNITED KINGDOM ATOMIC ENERGY AUTHORITY,UNITED KINGDOM ATOMIC ENERGY AUTHORITY,29/03/2016,PROFESSIONAL SERVICES,FUSION,FAITHFUL & GOULD,5100333512,"2,475.00"
UNITED KINGDOM ATOMIC ENERGY AUTHORITY,UNITED KINGDOM ATOMIC ENERGY AUTHORITY,29/03/2016,MATERIALS & SPARES,FUSION,FARNELL ELECTRONIC,5100334512,"2,687.80"
UNITED KINGDOM ATOMIC ENERGY AUTHORITY,UNITED KINGDOM ATOMIC ENERGY AUTHORITY,23/03/2016,MATERIALS & SPARES,FUSION,FARNELL ELECTRONIC,5100334251,"1,969.76"
UNITED KINGDOM ATOMIC ENERGY AUTHORITY,UNITED KINGDOM ATOMIC ENERGY AUTHORITY,07/03/2016,MATERIALS & SPARES,FUSION,FARNELL ELECTRONIC,5100333275,"1,635.40"
UNITED KINGDOM ATOMIC ENERGY AUTHORITY,UNITED KINGDOM ATOMIC ENERGY AUTHORITY,22/02/2016,MATERIALS & SPARES,FUSION,FARNELL ELECTRONIC,5100332841,923.35
UNITED KINGDOM ATOMIC ENERGY AUTHORITY,UNITED KINGDOM ATOMIC ENERGY AUTHORITY,14/03/2016,MATERIALS & SPARES,FUSION,FARNELL ELECTRONIC,5100333770,873.23
UNITED KINGDOM ATOMIC ENERGY AUTHORITY,UNITED KINGDOM ATOMIC ENERGY AUTHORITY,24/02/2016,MATERIALS & SPARES,FUSION,FARNELL ELECTRONIC,5100332831,842.69
UNITED KINGDOM ATOMIC ENERGY AUTHORITY,UNITED KINGDOM ATOMIC ENERGY AUTHORITY,22/02/2016,MATERIALS & SPARES,FUSION,FARNELL ELECTRONIC,5100332850,799.90
UNITED KINGDOM ATOMIC ENERGY AUTHORITY,UNITED KINGDOM ATOMIC ENERGY AUTHORITY,29/03/2016,MATERIALS & SPARES,FUSION,FARNELL ELECTRONIC,5100334516,723.01
UNITED KINGDOM ATOMIC ENERGY AUTHORITY,UNITED KINGDOM ATOMIC ENERGY AUTHORITY,21/03/2016,MATERIALS & SPARES,FUSION,FARNELL ELECTRONIC,5100334250,677.54
UNITED KINGDOM ATOMIC ENERGY AUTHORITY,UNITED KINGDOM ATOMIC ENERGY AUTHORITY,21/03/2016,MATERIALS & SPARES,FUSION,FARNELL ELECTRONIC,5100334031,661.73
UNITED KINGDOM ATOMIC ENERGY AUTHORITY,UNITED KINGDOM ATOMIC ENERGY AUTHORITY,16/03/2016,MATERIALS & SPARES,FUSION,FARNELL ELECTRONIC,5100333775,570.81
UNITED KINGDOM ATOMIC ENERGY AUTHORITY,UNITED KINGDOM ATOMIC ENERGY AUTHORITY,24/02/2016,MATERIALS & SPARES,FUSION,FARNELL ELECTRONIC,5100332561,463.09
UNITED KINGDOM ATOMIC ENERGY AUTHORITY,UNITED KINGDOM ATOMIC ENERGY AUTHORITY,22/02/2016,MATERIALS & SPARES,FUSION,FARNELL ELECTRONIC,5100332844,418.00
UNITED KINGDOM ATOMIC ENERGY AUTHORITY,UNITED KINGDOM ATOMIC ENERGY AUTHORITY,29/03/2016,MATERIALS & SPARES,FUSION,FARNELL ELECTRONIC,5100334521,398.82
UNITED KINGDOM ATOMIC ENERGY AUTHORITY,UNITED KINGDOM ATOMIC ENERGY AUTHORITY,29/03/2016,MATERIALS & SPARES,FUSION,FARNELL ELECTRONIC,5100334496,374.16
UNITED KINGDOM ATOMIC ENERGY AUTHORITY,UNITED KINGDOM ATOMIC ENERGY AUTHORITY,23/03/2016,MATERIALS & SPARES,FUSION,FARNELL ELECTRONIC,5100334285,368.82
UNITED KINGDOM ATOMIC ENERGY AUTHORITY,UNITED KINGDOM ATOMIC ENERGY AUTHORITY,14/03/2016,MATERIALS & SPARES,FUSION,FARNELL ELECTRONIC,5100333913,360.25
UNITED KINGDOM ATOMIC ENERGY AUTHORITY,UNITED KINGDOM ATOMIC ENERGY AUTHORITY,29/03/2016,MATERIALS & SPARES,FUSION,FARNELL ELECTRONIC,5100334494,340.24
UNITED KINGDOM ATOMIC ENERGY AUTHORITY,UNITED KINGDOM ATOMIC ENERGY AUTHORITY,29/03/2016,MATERIALS & SPARES,FUSION,FARNELL ELECTRONIC,5100334493,330.38
UNITED KINGDOM ATOMIC ENERGY AUTHORITY,UNITED KINGDOM ATOMIC ENERGY AUTHORITY,29/03/2016,MATERIALS & SPARES,FUSION,FARNELL ELECTRONIC,5100334520,313.39
UNITED KINGDOM ATOMIC ENERGY AUTHORITY,UNITED KINGDOM ATOMIC ENERGY AUTHORITY,22/02/2016,MATERIALS & SPARES,FUSION,FARNELL ELECTRONIC,5100332833,285.45
UNITED KINGDOM ATOMIC ENERGY AUTHORITY,UNITED KINGDOM ATOMIC ENERGY AUTHORITY,21/03/2016,MATERIALS & SPARES,FUSION,FARNELL ELECTRONIC,5100334029,256.41
UNITED KINGDOM ATOMIC ENERGY AUTHORITY,UNITED KINGDOM ATOMIC ENERGY AUTHORITY,23/03/2016,MATERIALS & SPARES,FUSION,FARNELL ELECTRONIC,5100334247,243.20
UNITED KINGDOM ATOMIC ENERGY AUTHORITY,UNITED KINGDOM ATOMIC ENERGY AUTHORITY,14/03/2016,MATERIALS & SPARES,FUSION,FARNELL ELECTRONIC,5100332845,236.21
UNITED KINGDOM ATOMIC ENERGY AUTHORITY,UNITED KINGDOM ATOMIC ENERGY AUTHORITY,14/03/2016,MATERIALS & SPARES,FUSION,FARNELL ELECTRONIC,5100333774,231.63
UNITED KINGDOM ATOMIC ENERGY AUTHORITY,UNITED KINGDOM ATOMIC ENERGY AUTHORITY,14/03/2016,MATERIALS & SPARES,FUSION,FARNELL ELECTRONIC,5100333778,226.44
UNITED KINGDOM ATOMIC ENERGY AUTHORITY,UNITED KINGDOM ATOMIC ENERGY AUTHORITY,29/03/2016,MATERIALS & SPARES,FUSION,FARNELL ELECTRONIC,5100334479,212.65
UNITED KINGDOM ATOMIC ENERGY AUTHORITY,UNITED KINGDOM ATOMIC ENERGY AUTHORITY,23/03/2016,MATERIALS & SPARES,FUSION,FARNELL ELECTRONIC,5100334477,206.05
UNITED KINGDOM ATOMIC ENERGY AUTHORITY,UNITED KINGDOM ATOMIC ENERGY AUTHORITY,29/03/2016,MATERIALS & SPARES,FUSION,FARNELL ELECTRONIC,5100334486,197.49
UNITED KINGDOM ATOMIC ENERGY AUTHORITY,UNITED KINGDOM ATOMIC ENERGY AUTHORITY,22/02/2016,MATERIALS & SPARES,SUPPORT SERVICES,FARNELL ELECTRONIC,5100332843,193.61
UNITED KINGDOM ATOMIC ENERGY AUTHORITY,UNITED KINGDOM ATOMIC ENERGY AUTHORITY,21/03/2016,MATERIALS & SPARES,FUSION,FARNELL ELECTRONIC,5100334022,187.74
UNITED KINGDOM ATOMIC ENERGY AUTHORITY,UNITED KINGDOM ATOMIC ENERGY AUTHORITY,14/03/2016,MATERIALS & SPARES,FUSION,FARNELL ELECTRONIC,5100333781,186.03
UNITED KINGDOM ATOMIC ENERGY AUTHORITY,UNITED KINGDOM ATOMIC ENERGY AUTHORITY,09/03/2016,MATERIALS & SPARES,FUSION,FARNELL ELECTRONIC,5100333279,177.78
UNITED KINGDOM ATOMIC ENERGY AUTHORITY,UNITED KINGDOM ATOMIC ENERGY AUTHORITY,29/02/2016,MATERIALS & SPARES,FUSION,FARNELL ELECTRONIC,5100333263,176.18
UNITED KINGDOM ATOMIC ENERGY AUTHORITY,UNITED KINGDOM ATOMIC ENERGY AUTHORITY,23/03/2016,MATERIALS & SPARES,FUSION,FARNELL ELECTRONIC,5100334478,172.72
UNITED KINGDOM ATOMIC ENERGY AUTHORITY,UNITED KINGDOM ATOMIC ENERGY AUTHORITY,29/02/2016,MATERIALS & SPARES,FUSION,FARNELL ELECTRONIC,5100332469,168.42
UNITED KINGDOM ATOMIC ENERGY AUTHORITY,UNITED KINGDOM ATOMIC ENERGY AUTHORITY,29/03/2016,MATERIALS & SPARES,FUSION,FARNELL ELECTRONIC,5100334548,164.30
UNITED KINGDOM ATOMIC ENERGY AUTHORITY,UNITED KINGDOM ATOMIC ENERGY AUTHORITY,23/03/2016,MATERIALS & SPARES,FUSION,FARNELL ELECTRONIC,5100334379,162.36
UNITED KINGDOM ATOMIC ENERGY AUTHORITY,UNITED KINGDOM ATOMIC ENERGY AUTHORITY,29/03/2016,MATERIALS & SPARES,FUSION,FARNELL ELECTRONIC,5100334509,161.62
UNITED KINGDOM ATOMIC ENERGY AUTHORITY,UNITED KINGDOM ATOMIC ENERGY AUTHORITY,21/03/2016,MATERIALS & SPARES,SUPPORT SERVICES,FARNELL ELECTRONIC,5100334246,161.49
UNITED KINGDOM ATOMIC ENERGY AUTHORITY,UNITED KINGDOM ATOMIC ENERGY AUTHORITY,07/03/2016,MATERIALS & SPARES,FUSION,FARNELL ELECTRONIC,5100333272,161.18
UNITED KINGDOM ATOMIC ENERGY AUTHORITY,UNITED KINGDOM ATOMIC ENERGY AUTHORITY,29/03/2016,MATERIALS & SPARES,FUSION,FARNELL ELECTRONIC,5100334511,161.10
UNITED KINGDOM ATOMIC ENERGY AUTHORITY,UNITED KINGDOM ATOMIC ENERGY AUTHORITY,23/03/2016,MATERIALS & SPARES,FUSION,FARNELL ELECTRONIC,5100334372,158.90
UNITED KINGDOM ATOMIC ENERGY AUTHORITY,UNITED KINGDOM ATOMIC ENERGY AUTHORITY,07/03/2016,MATERIALS & SPARES,FUSION,FARNELL ELECTRONIC,5100333277,157.53
UNITED KINGDOM ATOMIC ENERGY AUTHORITY,UNITED KINGDOM ATOMIC ENERGY AUTHORITY,24/02/2016,MATERIALS & SPARES,FUSION,FARNELL ELECTRONIC,5100332829,155.20
UNITED KINGDOM ATOMIC ENERGY AUTHORITY,UNITED KINGDOM ATOMIC ENERGY AUTHORITY,24/02/2016,MATERIALS & SPARES,FUSION,FARNELL ELECTRONIC,5100332688,155.12
UNITED KINGDOM ATOMIC ENERGY AUTHORITY,UNITED KINGDOM ATOMIC ENERGY AUTHORITY,14/03/2016,MATERIALS & SPARES,FUSION,FARNELL ELECTRONIC,5100333935,147.66
UNITED KINGDOM ATOMIC ENERGY AUTHORITY,UNITED KINGDOM ATOMIC ENERGY AUTHORITY,29/03/2016,MATERIALS & SPARES,FUSION,FARNELL ELECTRONIC,5100334488,145.16
UNITED KINGDOM ATOMIC ENERGY AUTHORITY,UNITED KINGDOM ATOMIC ENERGY AUTHORITY,16/03/2016,MATERIALS & SPARES,FUSION,FARNELL ELECTRONIC,5100333915,136.34
UNITED KINGDOM ATOMIC ENERGY AUTHORITY,UNITED KINGDOM ATOMIC ENERGY AUTHORITY,23/03/2016,MATERIALS & SPARES,FUSION,FARNELL ELECTRONIC,5100334373,135.40
UNITED KINGDOM ATOMIC ENERGY AUTHORITY,UNITED KINGDOM ATOMIC ENERGY AUTHORITY,21/03/2016,MATERIALS & SPARES,FUSION,FARNELL ELECTRONIC,5100334017,134.79
UNITED KINGDOM ATOMIC ENERGY AUTHORITY,UNITED KINGDOM ATOMIC ENERGY AUTHORITY,21/03/2016,MATERIALS & SPARES,FUSION,FARNELL ELECTRONIC,5100334160,129.76
UNITED KINGDOM ATOMIC ENERGY AUTHORITY,UNITED KINGDOM ATOMIC ENERGY AUTHORITY,23/03/2016,MATERIALS & SPARES,FUSION,FARNELL ELECTRONIC,5100334045,122.85
UNITED KINGDOM ATOMIC ENERGY AUTHORITY,UNITED KINGDOM ATOMIC ENERGY AUTHORITY,24/02/2016,MATERIALS & SPARES,FUSION,FARNELL ELECTRONIC,5100332440,122.11
UNITED KINGDOM ATOMIC ENERGY AUTHORITY,UNITED KINGDOM ATOMIC ENERGY AUTHORITY,14/03/2016,MATERIALS & SPARES,FUSION,FARNELL ELECTRONIC,5100333914,121.88
UNITED KINGDOM ATOMIC ENERGY AUTHORITY,UNITED KINGDOM ATOMIC ENERGY AUTHORITY,14/03/2016,MATERIALS & SPARES,FUSION,FARNELL ELECTRONIC,5100333772,120.35
UNITED KINGDOM ATOMIC ENERGY AUTHORITY,UNITED KINGDOM ATOMIC ENERGY AUTHORITY,21/03/2016,MATERIALS & SPARES,FUSION,FARNELL ELECTRONIC,5100334042,119.43
UNITED KINGDOM ATOMIC ENERGY AUTHORITY,UNITED KINGDOM ATOMIC ENERGY AUTHORITY,07/03/2016,MATERIALS & SPARES,FUSION,FARNELL ELECTRONIC,5100333273,117.70
UNITED KINGDOM ATOMIC ENERGY AUTHORITY,UNITED KINGDOM ATOMIC ENERGY AUTHORITY,14/03/2016,MATERIALS & SPARES,FUSION,FARNELL ELECTRONIC,5100333779,116.40
UNITED KINGDOM ATOMIC ENERGY AUTHORITY,UNITED KINGDOM ATOMIC ENERGY AUTHORITY,16/03/2016,MATERIALS & SPARES,FUSION,FARNELL ELECTRONIC,5100333939,112.20
UNITED KINGDOM ATOMIC ENERGY AUTHORITY,UNITED KINGDOM ATOMIC ENERGY AUTHORITY,22/02/2016,MATERIALS & SPARES,FUSION,FARNELL ELECTRONIC,5100332842,110.00
UNITED KINGDOM ATOMIC ENERGY AUTHORITY,UNITED KINGDOM ATOMIC ENERGY AUTHORITY,21/03/2016,MATERIALS & SPARES,FUSION,FARNELL ELECTRONIC,5100334159,104.50
UNITED KINGDOM ATOMIC ENERGY AUTHORITY,UNITED KINGDOM ATOMIC ENERGY AUTHORITY,09/03/2016,MATERIALS & SPARES,FUSION,FARNELL ELECTRONIC,5100333252,100.20
UNITED KINGDOM ATOMIC ENERGY AUTHORITY,UNITED KINGDOM ATOMIC ENERGY AUTHORITY,29/03/2016,MATERIALS & SPARES,SUPPORT SERVICES,FARNELL ELECTRONIC,5100334506,95.47
UNITED KINGDOM ATOMIC ENERGY AUTHORITY,UNITED KINGDOM ATOMIC ENERGY AUTHORITY,09/03/2016,MATERIALS & SPARES,FUSION,FARNELL ELECTRONIC,5100333276,94.35
UNITED KINGDOM ATOMIC ENERGY AUTHORITY,UNITED KINGDOM ATOMIC ENERGY AUTHORITY,29/03/2016,MATERIALS & SPARES,FUSION,FARNELL ELECTRONIC,5100334508,92.73
UNITED KINGDOM ATOMIC ENERGY AUTHORITY,UNITED KINGDOM ATOMIC ENERGY AUTHORITY,29/02/2016,MATERIALS & SPARES,FUSION,FARNELL ELECTRONIC,5100333267,85.23
UNITED KINGDOM ATOMIC ENERGY AUTHORITY,UNITED KINGDOM ATOMIC ENERGY AUTHORITY,21/03/2016,MATERIALS & SPARES,FUSION,FARNELL ELECTRONIC,5100334283,84.52
UNITED KINGDOM ATOMIC ENERGY AUTHORITY,UNITED KINGDOM ATOMIC ENERGY AUTHORITY,29/02/2016,MATERIALS & SPARES,FUSION,FARNELL ELECTRONIC,5100332846,77.42
UNITED KINGDOM ATOMIC ENERGY AUTHORITY,UNITED KINGDOM ATOMIC ENERGY AUTHORITY,07/03/2016,MATERIALS & SPARES,FUSION,FARNELL ELECTRONIC,5100333280,72.00
UNITED KINGDOM ATOMIC ENERGY AUTHORITY,UNITED KINGDOM ATOMIC ENERGY AUTHORITY,16/03/2016,MATERIALS & SPARES,FUSION,FARNELL ELECTRONIC,5100333937,70.40
UNITED KINGDOM ATOMIC ENERGY AUTHORITY,UNITED KINGDOM ATOMIC ENERGY AUTHORITY,24/02/2016,MATERIALS & SPARES,FUSION,FARNELL ELECTRONIC,5100332559,68.43
UNITED KINGDOM ATOMIC ENERGY AUTHORITY,UNITED KINGDOM ATOMIC ENERGY AUTHORITY,09/03/2016,MATERIALS & SPARES,FUSION,FARNELL ELECTRONIC,5100333269,68.33
UNITED KINGDOM ATOMIC ENERGY AUTHORITY,UNITED KINGDOM ATOMIC ENERGY AUTHORITY,29/02/2016,MATERIALS & SPARES,FUSION,FARNELL ELECTRONIC,5100333249,65.20
UNITED KINGDOM ATOMIC ENERGY AUTHORITY,UNITED KINGDOM ATOMIC ENERGY AUTHORITY,21/03/2016,MATERIALS & SPARES,FUSION,FARNELL ELECTRONIC,5100334046,64.45
UNITED KINGDOM ATOMIC ENERGY AUTHORITY,UNITED KINGDOM ATOMIC ENERGY AUTHORITY,22/02/2016,MATERIALS & SPARES,FUSION,FARNELL ELECTRONIC,5100332691,61.78
UNITED KINGDOM ATOMIC ENERGY AUTHORITY,UNITED KINGDOM ATOMIC ENERGY AUTHORITY,14/03/2016,MATERIALS & SPARES,FUSION,FARNELL ELECTRONIC,5100333780,59.52
UNITED KINGDOM ATOMIC ENERGY AUTHORITY,UNITED KINGDOM ATOMIC ENERGY AUTHORITY,29/03/2016,MATERIALS & SPARES,FUSION,FARNELL ELECTRONIC,5100334523,59.40
UNITED KINGDOM ATOMIC ENERGY AUTHORITY,UNITED KINGDOM ATOMIC ENERGY AUTHORITY,23/03/2016,MATERIALS & SPARES,FUSION,FARNELL ELECTRONIC,5100334388,58.31
UNITED KINGDOM ATOMIC ENERGY AUTHORITY,UNITED KINGDOM ATOMIC ENERGY AUTHORITY,22/02/2016,MATERIALS & SPARES,FUSION,FARNELL ELECTRONIC,5100332834,55.72
UNITED KINGDOM ATOMIC ENERGY AUTHORITY,UNITED KINGDOM ATOMIC ENERGY AUTHORITY,22/02/2016,MATERIALS & SPARES,FUSION,FARNELL ELECTRONIC,5100332828,54.61
UNITED KINGDOM ATOMIC ENERGY AUTHORITY,UNITED KINGDOM ATOMIC ENERGY AUTHORITY,14/03/2016,MATERIALS & SPARES,FUSION,FARNELL ELECTRONIC,5100333936,53.73
UNITED KINGDOM ATOMIC ENERGY AUTHORITY,UNITED KINGDOM ATOMIC ENERGY AUTHORITY,29/03/2016,MATERIALS & SPARES,FUSION,FARNELL ELECTRONIC,5100334485,46.77
UNITED KINGDOM ATOMIC ENERGY AUTHORITY,UNITED KINGDOM ATOMIC ENERGY AUTHORITY,21/03/2016,MATERIALS & SPARES,FUSION,FARNELL ELECTRONIC,5100334043,45.76
UNITED KINGDOM ATOMIC ENERGY AUTHORITY,UNITED KINGDOM ATOMIC ENERGY AUTHORITY,29/03/2016,MATERIALS & SPARES,FUSION,FARNELL ELECTRONIC,5100334513,44.25
UNITED KINGDOM ATOMIC ENERGY AUTHORITY,UNITED KINGDOM ATOMIC ENERGY AUTHORITY,23/03/2016,MATERIALS & SPARES,FUSION,FARNELL ELECTRONIC,5100334370,42.60
UNITED KINGDOM ATOMIC ENERGY AUTHORITY,UNITED KINGDOM ATOMIC ENERGY AUTHORITY,21/03/2016,MATERIALS & SPARES,FUSION,FARNELL ELECTRONIC,5100334038,41.04
UNITED KINGDOM ATOMIC ENERGY AUTHORITY,UNITED KINGDOM ATOMIC ENERGY AUTHORITY,22/02/2016,MATERIALS & SPARES,FUSION,FARNELL ELECTRONIC,5100332908,39.60
UNITED KINGDOM ATOMIC ENERGY AUTHORITY,UNITED KINGDOM ATOMIC ENERGY AUTHORITY,29/02/2016,MATERIALS & SPARES,FUSION,FARNELL ELECTRONIC,5100332480,39.32
UNITED KINGDOM ATOMIC ENERGY AUTHORITY,UNITED KINGDOM ATOMIC ENERGY AUTHORITY,14/03/2016,MATERIALS & SPARES,FUSION,FARNELL ELECTRONIC,5100333932,37.20
UNITED KINGDOM ATOMIC ENERGY AUTHORITY,UNITED KINGDOM ATOMIC ENERGY AUTHORITY,21/03/2016,MATERIALS & SPARES,FUSION,FARNELL ELECTRONIC,5100334041,31.50
UNITED KINGDOM ATOMIC ENERGY AUTHORITY,UNITED KINGDOM ATOMIC ENERGY AUTHORITY,29/03/2016,MATERIALS & SPARES,FUSION,FARNELL ELECTRONIC,5100334510,28.38
UNITED KINGDOM ATOMIC ENERGY AUTHORITY,UNITED KINGDOM ATOMIC ENERGY AUTHORITY,14/03/2016,MATERIALS & SPARES,FUSION,FARNELL ELECTRONIC,5100333776,26.35
UNITED KINGDOM ATOMIC ENERGY AUTHORITY,UNITED KINGDOM ATOMIC ENERGY AUTHORITY,14/03/2016,MATERIALS & SPARES,FUSION,FARNELL ELECTRONIC,5100333783,26.35
UNITED KINGDOM ATOMIC ENERGY AUTHORITY,UNITED KINGDOM ATOMIC ENERGY AUTHORITY,14/03/2016,MATERIALS & SPARES,FUSION,FARNELL ELECTRONIC,5100333771,23.46
UNITED KINGDOM ATOMIC ENERGY AUTHORITY,UNITED KINGDOM ATOMIC ENERGY AUTHORITY,23/03/2016,MATERIALS & SPARES,FUSION,FARNELL ELECTRONIC,5100333782,22.06
UNITED KINGDOM ATOMIC ENERGY AUTHORITY,UNITED KINGDOM ATOMIC ENERGY AUTHORITY,14/03/2016,MATERIALS & SPARES,FUSION,FARNELL ELECTRONIC,5100333916,22.05
UNITED KINGDOM ATOMIC ENERGY AUTHORITY,UNITED KINGDOM ATOMIC ENERGY AUTHORITY,21/03/2016,MATERIALS & SPARES,FUSION,FARNELL ELECTRONIC,5100334026,21.65
UNITED KINGDOM ATOMIC ENERGY AUTHORITY,UNITED KINGDOM ATOMIC ENERGY AUTHORITY,23/03/2016,MATERIALS & SPARES,FUSION,FARNELL ELECTRONIC,5100334378,18.38
UNITED KINGDOM ATOMIC ENERGY AUTHORITY,UNITED KINGDOM ATOMIC ENERGY AUTHORITY,23/03/2016,MATERIALS & SPARES,FUSION,FARNELL ELECTRONIC,5100334380,17.13
UNITED KINGDOM ATOMIC ENERGY AUTHORITY,UNITED KINGDOM ATOMIC ENERGY AUTHORITY,21/03/2016,MATERIALS & SPARES,FUSION,FARNELL ELECTRONIC,5100334282,16.80
UNITED KINGDOM ATOMIC ENERGY AUTHORITY,UNITED KINGDOM ATOMIC ENERGY AUTHORITY,14/03/2016,MATERIALS & SPARES,FUSION,FARNELL ELECTRONIC,5100333268,14.35
UNITED KINGDOM ATOMIC ENERGY AUTHORITY,UNITED KINGDOM ATOMIC ENERGY AUTHORITY,29/03/2016,MATERIALS & SPARES,FUSION,FARNELL ELECTRONIC,5100334481,14.33
UNITED KINGDOM ATOMIC ENERGY AUTHORITY,UNITED KINGDOM ATOMIC ENERGY AUTHORITY,07/03/2016,MATERIALS & SPARES,FUSION,FARNELL ELECTRONIC,5100333270,13.34
UNITED KINGDOM ATOMIC ENERGY AUTHORITY,UNITED KINGDOM ATOMIC ENERGY AUTHORITY,07/03/2016,MATERIALS & SPARES,FUSION,FARNELL ELECTRONIC,5100333278,12.61
UNITED KINGDOM ATOMIC ENERGY AUTHORITY,UNITED KINGDOM ATOMIC ENERGY AUTHORITY,29/03/2016,MATERIALS & SPARES,FUSION,FARNELL ELECTRONIC,5100334518,11.85
UNITED KINGDOM ATOMIC ENERGY AUTHORITY,UNITED KINGDOM ATOMIC ENERGY AUTHORITY,29/03/2016,MATERIALS & SPARES,FUSION,FARNELL ELECTRONIC,5100334491,11.30
UNITED KINGDOM ATOMIC ENERGY AUTHORITY,UNITED KINGDOM ATOMIC ENERGY AUTHORITY,23/03/2016,MATERIALS & SPARES,FUSION,FARNELL ELECTRONIC,5100334387,9.56
UNITED KINGDOM ATOMIC ENERGY AUTHORITY,UNITED KINGDOM ATOMIC ENERGY AUTHORITY,29/03/2016,MATERIALS & SPARES,FUSION,FARNELL ELECTRONIC,5100334507,9.20
UNITED KINGDOM ATOMIC ENERGY AUTHORITY,UNITED KINGDOM ATOMIC ENERGY AUTHORITY,22/02/2016,MATERIALS & SPARES,FUSION,FARNELL ELECTRONIC,5100332827,7.01
UNITED KINGDOM ATOMIC ENERGY AUTHORITY,UNITED KINGDOM ATOMIC ENERGY AUTHORITY,16/03/2016,MATERIALS & SPARES,FUSION,FARNELL ELECTRONIC,5100333938,5.58
UNITED KINGDOM ATOMIC ENERGY AUTHORITY,UNITED KINGDOM ATOMIC ENERGY AUTHORITY,07/03/2016,MATERIALS & SPARES,FUSION,FARNELL ELECTRONIC,5100333271,5.31
UNITED KINGDOM ATOMIC ENERGY AUTHORITY,UNITED KINGDOM ATOMIC ENERGY AUTHORITY,29/03/2016,MATERIALS & SPARES,FUSION,FARNELL ELECTRONIC,5100334514,5.07
UNITED KINGDOM ATOMIC ENERGY AUTHORITY,UNITED KINGDOM ATOMIC ENERGY AUTHORITY,14/03/2016,MATERIALS & SPARES,FUSION,FARNELL ELECTRONIC,5100333912,4.62
UNITED KINGDOM ATOMIC ENERGY AUTHORITY,UNITED KINGDOM ATOMIC ENERGY AUTHORITY,29/03/2016,MATERIALS & SPARES,FUSION,FARNELL ELECTRONIC,5100334549,4.13
UNITED KINGDOM ATOMIC ENERGY AUTHORITY,UNITED KINGDOM ATOMIC ENERGY AUTHORITY,21/03/2016,MATERIALS & SPARES,FUSION,FARNELL ELECTRONIC,5100334033,3.84
UNITED KINGDOM ATOMIC ENERGY AUTHORITY,UNITED KINGDOM ATOMIC ENERGY AUTHORITY,22/02/2016,MATERIALS & SPARES,FUSION,FARNELL ELECTRONIC,5100332836,3.77
UNITED KINGDOM ATOMIC ENERGY AUTHORITY,UNITED KINGDOM ATOMIC ENERGY AUTHORITY,21/03/2016,MATERIALS & SPARES,FUSION,FARNELL ELECTRONIC,5100334284,3.55
UNITED KINGDOM ATOMIC ENERGY AUTHORITY,UNITED KINGDOM ATOMIC ENERGY AUTHORITY,22/02/2016,MATERIALS & SPARES,FUSION,FARNELL ELECTRONIC,5100332849,3.44
UNITED KINGDOM ATOMIC ENERGY AUTHORITY,UNITED KINGDOM ATOMIC ENERGY AUTHORITY,07/03/2016,MATERIALS & SPARES,FUSION,FARNELL ELECTRONIC,5100333274,2.92
UNITED KINGDOM ATOMIC ENERGY AUTHORITY,UNITED KINGDOM ATOMIC ENERGY AUTHORITY,21/03/2016,MATERIALS & SPARES,FUSION,FARNELL ELECTRONIC,5100334044,1.80
UNITED KINGDOM ATOMIC ENERGY AUTHORITY,UNITED KINGDOM ATOMIC ENERGY AUTHORITY,21/03/2016,MATERIALS & SPARES,FUSION,FARNELL ELECTRONIC,5100334158,0.92
UNITED KINGDOM ATOMIC ENERGY AUTHORITY,UNITED KINGDOM ATOMIC ENERGY AUTHORITY,21/03/2016,MATERIALS & SPARES,FUSION,FARNELL ELECTRONIC,5100334039,0.64
UNITED KINGDOM ATOMIC ENERGY AUTHORITY,UNITED KINGDOM ATOMIC ENERGY AUTHORITY,29/02/2016,MATERIALS & SPARES,FUSION,FARNELL ELECTRONIC,5100333251,0.30
UNITED KINGDOM ATOMIC ENERGY AUTHORITY,UNITED KINGDOM ATOMIC ENERGY AUTHORITY,09/03/2016,MATERIALS & SPARES,FUSION,FARNELL ELECTRONIC,5100333773,-7.21
UNITED KINGDOM ATOMIC ENERGY AUTHORITY,UNITED KINGDOM ATOMIC ENERGY AUTHORITY,29/03/2016,MATERIALS & SPARES,FUSION,FARNELL ELECTRONIC,5100334505,-15.46
UNITED KINGDOM ATOMIC ENERGY AUTHORITY,UNITED KINGDOM ATOMIC ENERGY AUTHORITY,14/03/2016,MATERIALS & SPARES,FUSION,FASTFIX,5100333682,"1,427.80"
UNITED KINGDOM ATOMIC ENERGY AUTHORITY,UNITED KINGDOM ATOMIC ENERGY AUTHORITY,14/03/2016,MATERIALS & SPARES,FUSION,FASTFIX,5100333684,216.58
UNITED KINGDOM ATOMIC ENERGY AUTHORITY,UNITED KINGDOM ATOMIC ENERGY AUTHORITY,14/03/2016,MATERIALS & SPARES,FUSION,FASTFIX,5100333681,159.00
UNITED KINGDOM ATOMIC ENERGY AUTHORITY,UNITED KINGDOM ATOMIC ENERGY AUTHORITY,14/03/2016,MATERIALS & SPARES,FUSION,FASTFIX,5100333683,28.80
UNITED KINGDOM ATOMIC ENERGY AUTHORITY,UNITED KINGDOM ATOMIC ENERGY AUTHORITY,14/03/2016,PLANT & EQUIPMENT,FUSION,FEEDWATER LTD,5100333505,"3,295.00"
UNITED KINGDOM ATOMIC ENERGY AUTHORITY,UNITED KINGDOM ATOMIC ENERGY AUTHORITY,14/03/2016,PLANT & EQUIPMENT,FUSION,FEEDWATER LTD,5100333714,719.80
UNITED KINGDOM ATOMIC ENERGY AUTHORITY,UNITED KINGDOM ATOMIC ENERGY AUTHORITY,07/03/2016,MATERIALS & SPARES,FUSION,FILEDER FILTER LTD,5100333457,148.00
UNITED KINGDOM ATOMIC ENERGY AUTHORITY,UNITED KINGDOM ATOMIC ENERGY AUTHORITY,02/03/2016,TRAINING COURSE FEES,FUSION,FILM OXFORD,1900061362,"1,218.00"
UNITED KINGDOM ATOMIC ENERGY AUTHORITY,UNITED KINGDOM ATOMIC ENERGY AUTHORITY,21/03/2016,PLANT & EQUIPMENT,FUSION,FISHER SCIENTIFIC UK LTD,5100334143,"3,598.49"
UNITED KINGDOM ATOMIC ENERGY AUTHORITY,UNITED KINGDOM ATOMIC ENERGY AUTHORITY,29/03/2016,PLANT & EQUIPMENT,FUSION,FISHER SCIENTIFIC UK LTD,5100334236,"2,745.90"
UNITED KINGDOM ATOMIC ENERGY AUTHORITY,UNITED KINGDOM ATOMIC ENERGY AUTHORITY,21/03/2016,PLANT & EQUIPMENT,FUSION,FISHER SCIENTIFIC UK LTD,5100334141,"2,700.78"
UNITED KINGDOM ATOMIC ENERGY AUTHORITY,UNITED KINGDOM ATOMIC ENERGY AUTHORITY,22/02/2016,PLANT & EQUIPMENT,FUSION,FISHER SCIENTIFIC UK LTD,5100332859,"1,948.07"
UNITED KINGDOM ATOMIC ENERGY AUTHORITY,UNITED KINGDOM ATOMIC ENERGY AUTHORITY,02/03/2016,PLANT & EQUIPMENT,FUSION,FISHER SCIENTIFIC UK LTD,5100333150,981.65
UNITED KINGDOM ATOMIC ENERGY AUTHORITY,UNITED KINGDOM ATOMIC ENERGY AUTHORITY,29/02/2016,PLANT & EQUIPMENT,FUSION,FISHER SCIENTIFIC UK LTD,5100333057,873.30
UNITED KINGDOM ATOMIC ENERGY AUTHORITY,UNITED KINGDOM ATOMIC ENERGY AUTHORITY,29/03/2016,PLANT & EQUIPMENT,FUSION,FISHER SCIENTIFIC UK LTD,5100334427,467.15
UNITED KINGDOM ATOMIC ENERGY AUTHORITY,UNITED KINGDOM ATOMIC ENERGY AUTHORITY,22/02/2016,PLANT & EQUIPMENT,FUSION,FISHER SCIENTIFIC UK LTD,5100332860,450.50
UNITED KINGDOM ATOMIC ENERGY AUTHORITY,UNITED KINGDOM ATOMIC ENERGY AUTHORITY,21/03/2016,PLANT & EQUIPMENT,FUSION,FISHER SCIENTIFIC UK LTD,5100334234,248.22
UNITED KINGDOM ATOMIC ENERGY AUTHORITY,UNITED KINGDOM ATOMIC ENERGY AUTHORITY,14/03/2016,PLANT & EQUIPMENT,FUSION,FISHER SCIENTIFIC UK LTD,5100333671,211.19
UNITED KINGDOM ATOMIC ENERGY AUTHORITY,UNITED KINGDOM ATOMIC ENERGY AUTHORITY,29/03/2016,PLANT & EQUIPMENT,FUSION,FISHER SCIENTIFIC UK LTD,5100334517,183.44
UNITED KINGDOM ATOMIC ENERGY AUTHORITY,UNITED KINGDOM ATOMIC ENERGY AUTHORITY,29/02/2016,PLANT & EQUIPMENT,FUSION,FISHER SCIENTIFIC UK LTD,5100333020,137.58
UNITED KINGDOM ATOMIC ENERGY AUTHORITY,UNITED KINGDOM ATOMIC ENERGY AUTHORITY,21/03/2016,PLANT & EQUIPMENT,SUPPORT SERVICES,FISHER SCIENTIFIC UK LTD,5100334021,135.36
UNITED KINGDOM ATOMIC ENERGY AUTHORITY,UNITED KINGDOM ATOMIC ENERGY AUTHORITY,23/03/2016,PLANT & EQUIPMENT,FUSION,FISHER SCIENTIFIC UK LTD,5100334405,30.36
UNITED KINGDOM ATOMIC ENERGY AUTHORITY,UNITED KINGDOM ATOMIC ENERGY AUTHORITY,29/02/2016,PLANT & EQUIPMENT,FUSION,FISHER SCIENTIFIC UK LTD,5100333149,26.82
UNITED KINGDOM ATOMIC ENERGY AUTHORITY,UNITED KINGDOM ATOMIC ENERGY AUTHORITY,14/03/2016,PLANT & EQUIPMENT,FUSION,FISHER SCIENTIFIC UK LTD,5100333756,19.65
UNITED KINGDOM ATOMIC ENERGY AUTHORITY,UNITED KINGDOM ATOMIC ENERGY AUTHORITY,22/02/2016,PLANT & EQUIPMENT,FUSION,FISHER SCIENTIFIC UK LTD,5100332858,12.70
UNITED KINGDOM ATOMIC ENERGY AUTHORITY,UNITED KINGDOM ATOMIC ENERGY AUTHORITY,21/03/2016,PLANT & EQUIPMENT,FUSION,FISHER SCIENTIFIC UK LTD,5100334020,11.97
UNITED KINGDOM ATOMIC ENERGY AUTHORITY,UNITED KINGDOM ATOMIC ENERGY AUTHORITY,14/03/2016,PLANT & EQUIPMENT,FUSION,FISHER SCIENTIFIC UK LTD,5100333712,8.76
UNITED KINGDOM ATOMIC ENERGY AUTHORITY,UNITED KINGDOM ATOMIC ENERGY AUTHORITY,22/02/2016,PLANT & EQUIPMENT,FUSION,FISHER SCIENTIFIC UK LTD,5100332861,7.44
UNITED KINGDOM ATOMIC ENERGY AUTHORITY,UNITED KINGDOM ATOMIC ENERGY AUTHORITY,17/03/2016,PLANT & EQUIPMENT,FUSION,FLOWQUIP LIMITED,1900061405,862.80
UNITED KINGDOM ATOMIC ENERGY AUTHORITY,UNITED KINGDOM ATOMIC ENERGY AUTHORITY,25/02/2016,MATERIALS & SPARES,FUSION,FORGEWELD LTD,5100332964,463.45
UNITED KINGDOM ATOMIC ENERGY AUTHORITY,UNITED KINGDOM ATOMIC ENERGY AUTHORITY,14/03/2016,MATERIALS & SPARES,FUSION,FORGEWELD LTD,5100333747,249.75
UNITED KINGDOM ATOMIC ENERGY AUTHORITY,UNITED KINGDOM ATOMIC ENERGY AUTHORITY,14/03/2016,MATERIALS & SPARES,FUSION,FORGEWELD LTD,5100333748,220.32
UNITED KINGDOM ATOMIC ENERGY AUTHORITY,UNITED KINGDOM ATOMIC ENERGY AUTHORITY,21/03/2016,MATERIALS & SPARES,FUSION,FORGEWELD LTD,5100333995,175.69
UNITED KINGDOM ATOMIC ENERGY AUTHORITY,UNITED KINGDOM ATOMIC ENERGY AUTHORITY,21/03/2016,MATERIALS & SPARES,FUSION,FORGEWELD LTD,5100334271,90.36
UNITED KINGDOM ATOMIC ENERGY AUTHORITY,UNITED KINGDOM ATOMIC ENERGY AUTHORITY,21/03/2016,PROFESSIONAL SERVICES,FUSION,FORTRESS INTERLOCKS LTD,5100334065,356.54
UNITED KINGDOM ATOMIC ENERGY AUTHORITY,UNITED KINGDOM ATOMIC ENERGY AUTHORITY,21/03/2016,PROFESSIONAL SERVICES,FUSION,FORTRESS INTERLOCKS LTD,5100333743,355.68
UNITED KINGDOM ATOMIC ENERGY AUTHORITY,UNITED KINGDOM ATOMIC ENERGY AUTHORITY,14/03/2016,PROFESSIONAL SERVICES,FUSION,FORTRESS INTERLOCKS LTD,5100333922,88.40
UNITED KINGDOM ATOMIC ENERGY AUTHORITY,UNITED KINGDOM ATOMIC ENERGY AUTHORITY,29/02/2016,MATERIALS & SPARES,FUSION,FORWARD 2000 LTD,5100333176,383.00
UNITED KINGDOM ATOMIC ENERGY AUTHORITY,UNITED KINGDOM ATOMIC ENERGY AUTHORITY,29/02/2016,MATERIALS & SPARES,PROPERTY,FORWARD 2000 LTD,5100332918,321.30
UNITED KINGDOM ATOMIC ENERGY AUTHORITY,UNITED KINGDOM ATOMIC ENERGY AUTHORITY,22/02/2016,MATERIALS & SPARES,FUSION,FORWARD 2000 LTD,5100332919,286.00
UNITED KINGDOM ATOMIC ENERGY AUTHORITY,UNITED KINGDOM ATOMIC ENERGY AUTHORITY,29/02/2016,MATERIALS & SPARES,FUSION,FORWARD 2000 LTD,5100333051,286.00
UNITED KINGDOM ATOMIC ENERGY AUTHORITY,UNITED KINGDOM ATOMIC ENERGY AUTHORITY,29/02/2016,MATERIALS & SPARES,FUSION,FORWARD 2000 LTD,5100333052,122.50
UNITED KINGDOM ATOMIC ENERGY AUTHORITY,UNITED KINGDOM ATOMIC ENERGY AUTHORITY,22/02/2016,MATERIALS & SPARES,FUSION,FORWARD 2000 LTD,5100332916,111.29
UNITED KINGDOM ATOMIC ENERGY AUTHORITY,UNITED KINGDOM ATOMIC ENERGY AUTHORITY,14/03/2016,MATERIALS & SPARES,FUSION,FORWARD 2000 LTD,5100333812,100.00
UNITED KINGDOM ATOMIC ENERGY AUTHORITY,UNITED KINGDOM ATOMIC ENERGY AUTHORITY,16/03/2016,MATERIALS & SPARES,FUSION,FOXX SPECTRUM LTD,1900061391,"1,260.00"
UNITED KINGDOM ATOMIC ENERGY AUTHORITY,UNITED KINGDOM ATOMIC ENERGY AUTHORITY,14/03/2016,MATERIALS & SPARES,FUSION,FTI LTD,5100333659,634.10
UNITED KINGDOM ATOMIC ENERGY AUTHORITY,UNITED KINGDOM ATOMIC ENERGY AUTHORITY,17/03/2016,PROFESSIONAL SUBSCRIPTION,FUSION,FUSENET ASSOCIATION,1900061400,"2,357.38"
UNITED KINGDOM ATOMIC ENERGY AUTHORITY,UNITED KINGDOM ATOMIC ENERGY AUTHORITY,24/02/2016,MATERIALS & SPARES,FUSION,GARNER OSBORNE CIRCUITS LTD,5100332954,593.24
UNITED KINGDOM ATOMIC ENERGY AUTHORITY,UNITED KINGDOM ATOMIC ENERGY AUTHORITY,07/03/2016,MATERIALS & SPARES,FUSION,GARNER OSBORNE CIRCUITS LTD,5100333171,482.00
UNITED KINGDOM ATOMIC ENERGY AUTHORITY,UNITED KINGDOM ATOMIC ENERGY AUTHORITY,29/02/2016,MATERIALS & SPARES,FUSION,GARNER OSBORNE CIRCUITS LTD,5100333011,428.40
UNITED KINGDOM ATOMIC ENERGY AUTHORITY,UNITED KINGDOM ATOMIC ENERGY AUTHORITY,14/03/2016,MATERIALS & SPARES,FUSION,GARNER OSBORNE CIRCUITS LTD,5100333318,403.40
UNITED KINGDOM ATOMIC ENERGY AUTHORITY,UNITED KINGDOM ATOMIC ENERGY AUTHORITY,22/02/2016,MATERIALS & SPARES,FUSION,GARNER OSBORNE CIRCUITS LTD,5100332634,343.90
UNITED KINGDOM ATOMIC ENERGY AUTHORITY,UNITED KINGDOM ATOMIC ENERGY AUTHORITY,14/03/2016,MATERIALS & SPARES,FUSION,GARNER OSBORNE CIRCUITS LTD,5100333170,298.50
UNITED KINGDOM ATOMIC ENERGY AUTHORITY,UNITED KINGDOM ATOMIC ENERGY AUTHORITY,29/02/2016,MATERIALS & SPARES,FUSION,GARNER OSBORNE CIRCUITS LTD,5100333068,225.00
UNITED KINGDOM ATOMIC ENERGY AUTHORITY,UNITED KINGDOM ATOMIC ENERGY AUTHORITY,22/02/2016,MATERIALS & SPARES,FUSION,GEAR CUTTING LTD,5100332804,"6,461.00"
UNITED KINGDOM ATOMIC ENERGY AUTHORITY,UNITED KINGDOM ATOMIC ENERGY AUTHORITY,07/03/2016,MATERIALS & SPARES,FUSION,GEAR CUTTING LTD,5100333454,"4,906.00"
UNITED KINGDOM ATOMIC ENERGY AUTHORITY,UNITED KINGDOM ATOMIC ENERGY AUTHORITY,07/03/2016,MATERIALS & SPARES,FUSION,GEAR CUTTING LTD,5100333411,"4,724.50"
UNITED KINGDOM ATOMIC ENERGY AUTHORITY,UNITED KINGDOM ATOMIC ENERGY AUTHORITY,22/02/2016,MATERIALS & SPARES,FUSION,GEAR CUTTING LTD,5100332357,"4,329.50"
UNITED KINGDOM ATOMIC ENERGY AUTHORITY,UNITED KINGDOM ATOMIC ENERGY AUTHORITY,14/03/2016,MATERIALS & SPARES,FUSION,GEAR CUTTING LTD,5100333818,75.00
UNITED KINGDOM ATOMIC ENERGY AUTHORITY,UNITED KINGDOM ATOMIC ENERGY AUTHORITY,30/03/2016,PLANT & EQUIPMENT,FUSION,GEM CABLE SOLUTIONS LTD,1900061432,"3,737.20"
UNITED KINGDOM ATOMIC ENERGY AUTHORITY,UNITED KINGDOM ATOMIC ENERGY AUTHORITY,24/02/2016,MATERIALS & SPARES,FUSION,GENERAL DYNAMICS GLOBAL IMAGING,5100332589,"19,203.98"
UNITED KINGDOM ATOMIC ENERGY AUTHORITY,UNITED KINGDOM ATOMIC ENERGY AUTHORITY,24/02/2016,MATERIALS & SPARES,FUSION,GENERAL DYNAMICS GLOBAL IMAGING,5100332588,"18,832.23"
UNITED KINGDOM ATOMIC ENERGY AUTHORITY,UNITED KINGDOM ATOMIC ENERGY AUTHORITY,24/02/2016,MATERIALS & SPARES,FUSION,GENERAL DYNAMICS GLOBAL IMAGING,5100332587,"11,972.78"
UNITED KINGDOM ATOMIC ENERGY AUTHORITY,UNITED KINGDOM ATOMIC ENERGY AUTHORITY,24/02/2016,MATERIALS & SPARES,FUSION,GENERAL DYNAMICS GLOBAL IMAGING,5100332591,"3,677.45"
UNITED KINGDOM ATOMIC ENERGY AUTHORITY,UNITED KINGDOM ATOMIC ENERGY AUTHORITY,29/03/2016,PROFESSIONAL SERVICES,PROPERTY,GERALD HONEY PARTNERSHIP,5100334483,"7,980.00"
UNITED KINGDOM ATOMIC ENERGY AUTHORITY,UNITED KINGDOM ATOMIC ENERGY AUTHORITY,21/03/2016,MATERIALS & SPARES,FUSION,GILBERTS BLACKPOOL LTD,5100334015,174.50
UNITED KINGDOM ATOMIC ENERGY AUTHORITY,UNITED KINGDOM ATOMIC ENERGY AUTHORITY,29/02/2016,PROFESSIONAL SERVICES,FUSION,GLANVILLE CONSULTANTS,5100332386,"1,585.79"
UNITED KINGDOM ATOMIC ENERGY AUTHORITY,UNITED KINGDOM ATOMIC ENERGY AUTHORITY,22/02/2016,PROFESSIONAL SERVICES,PROPERTY,GLANVILLE CONSULTANTS,5100332907,817.75
UNITED KINGDOM ATOMIC ENERGY AUTHORITY,UNITED KINGDOM ATOMIC ENERGY AUTHORITY,07/03/2016,PROFESSIONAL SERVICES,PROPERTY,GLANVILLE CONSULTANTS,5100332385,176.33
UNITED KINGDOM ATOMIC ENERGY AUTHORITY,UNITED KINGDOM ATOMIC ENERGY AUTHORITY,29/02/2016,PROFESSIONAL SERVICES,PROPERTY,GLANVILLE CONSULTANTS,5100332387,126.27
UNITED KINGDOM ATOMIC ENERGY AUTHORITY,UNITED KINGDOM ATOMIC ENERGY AUTHORITY,29/02/2016,PROFESSIONAL SERVICES,PROPERTY,GLANVILLE CONSULTANTS,5100333004,105.80
UNITED KINGDOM ATOMIC ENERGY AUTHORITY,UNITED KINGDOM ATOMIC ENERGY AUTHORITY,21/03/2016,PLANT & EQUIPMENT,FUSION,GOODFELLOW CAMBRIDGE LTD,5100334145,242.00
UNITED KINGDOM ATOMIC ENERGY AUTHORITY,UNITED KINGDOM ATOMIC ENERGY AUTHORITY,07/03/2016,PROFESSIONAL SERVICES,SUPPORT SERVICES,GOVERNMENT ACTUARY'S DEPARTMENT,5100332043,"57,719.17"
UNITED KINGDOM ATOMIC ENERGY AUTHORITY,UNITED KINGDOM ATOMIC ENERGY AUTHORITY,07/03/2016,PROFESSIONAL SERVICES,SUPPORT SERVICES,GOVERNMENT ACTUARY'S DEPARTMENT,5100333531,"57,437.30"
UNITED KINGDOM ATOMIC ENERGY AUTHORITY,UNITED KINGDOM ATOMIC ENERGY AUTHORITY,21/03/2016,PROFESSIONAL SERVICES,FUSION,GRAFX,5100334248,500.00
UNITED KINGDOM ATOMIC ENERGY AUTHORITY,UNITED KINGDOM ATOMIC ENERGY AUTHORITY,21/03/2016,PROFESSIONAL SERVICES,PROPERTY,GRUNDON WASTE MANAGEMENT LTD,5100334274,727.08
UNITED KINGDOM ATOMIC ENERGY AUTHORITY,UNITED KINGDOM ATOMIC ENERGY AUTHORITY,29/02/2016,PROFESSIONAL SERVICES,PROPERTY,GRUNDON WASTE MANAGEMENT LTD,5100333131,727.08
UNITED KINGDOM ATOMIC ENERGY AUTHORITY,UNITED KINGDOM ATOMIC ENERGY AUTHORITY,29/02/2016,PROFESSIONAL SERVICES,PROPERTY,GRUNDON WASTE MANAGEMENT LTD,5100333135,561.84
UNITED KINGDOM ATOMIC ENERGY AUTHORITY,UNITED KINGDOM ATOMIC ENERGY AUTHORITY,21/03/2016,PROFESSIONAL SERVICES,PROPERTY,GRUNDON WASTE MANAGEMENT LTD,5100334278,561.84
UNITED KINGDOM ATOMIC ENERGY AUTHORITY,UNITED KINGDOM ATOMIC ENERGY AUTHORITY,29/02/2016,PROFESSIONAL SERVICES,PROPERTY,GRUNDON WASTE MANAGEMENT LTD,5100333133,248.88
UNITED KINGDOM ATOMIC ENERGY AUTHORITY,UNITED KINGDOM ATOMIC ENERGY AUTHORITY,29/02/2016,PROFESSIONAL SERVICES,PROPERTY,GRUNDON WASTE MANAGEMENT LTD,5100333134,248.88
UNITED KINGDOM ATOMIC ENERGY AUTHORITY,UNITED KINGDOM ATOMIC ENERGY AUTHORITY,21/03/2016,PROFESSIONAL SERVICES,PROPERTY,GRUNDON WASTE MANAGEMENT LTD,5100334273,248.88
UNITED KINGDOM ATOMIC ENERGY AUTHORITY,UNITED KINGDOM ATOMIC ENERGY AUTHORITY,21/03/2016,PROFESSIONAL SERVICES,PROPERTY,GRUNDON WASTE MANAGEMENT LTD,5100334275,225.20
UNITED KINGDOM ATOMIC ENERGY AUTHORITY,UNITED KINGDOM ATOMIC ENERGY AUTHORITY,29/02/2016,PROFESSIONAL SERVICES,PROPERTY,GRUNDON WASTE MANAGEMENT LTD,5100333132,111.44
UNITED KINGDOM ATOMIC ENERGY AUTHORITY,UNITED KINGDOM ATOMIC ENERGY AUTHORITY,29/02/2016,PROFESSIONAL SERVICES,PROPERTY,GRUNDON WASTE MANAGEMENT LTD,5100333138,111.44
UNITED KINGDOM ATOMIC ENERGY AUTHORITY,UNITED KINGDOM ATOMIC ENERGY AUTHORITY,21/03/2016,PROFESSIONAL SERVICES,PROPERTY,GRUNDON WASTE MANAGEMENT LTD,5100334281,111.44
UNITED KINGDOM ATOMIC ENERGY AUTHORITY,UNITED KINGDOM ATOMIC ENERGY AUTHORITY,21/03/2016,PROFESSIONAL SERVICES,PROPERTY,GRUNDON WASTE MANAGEMENT LTD,5100334286,111.44
UNITED KINGDOM ATOMIC ENERGY AUTHORITY,UNITED KINGDOM ATOMIC ENERGY AUTHORITY,21/03/2016,PROFESSIONAL SERVICES,PROPERTY,GRUNDON WASTE MANAGEMENT LTD,5100334276,110.00
UNITED KINGDOM ATOMIC ENERGY AUTHORITY,UNITED KINGDOM ATOMIC ENERGY AUTHORITY,21/03/2016,PROFESSIONAL SERVICES,PROPERTY,GRUNDON WASTE MANAGEMENT LTD,5100334277,110.00
UNITED KINGDOM ATOMIC ENERGY AUTHORITY,UNITED KINGDOM ATOMIC ENERGY AUTHORITY,29/02/2016,PROFESSIONAL SERVICES,PROPERTY,GRUNDON WASTE MANAGEMENT LTD,5100333136,85.44
UNITED KINGDOM ATOMIC ENERGY AUTHORITY,UNITED KINGDOM ATOMIC ENERGY AUTHORITY,21/03/2016,PROFESSIONAL SERVICES,PROPERTY,GRUNDON WASTE MANAGEMENT LTD,5100334279,85.44
UNITED KINGDOM ATOMIC ENERGY AUTHORITY,UNITED KINGDOM ATOMIC ENERGY AUTHORITY,29/02/2016,PROFESSIONAL SERVICES,PROPERTY,GRUNDON WASTE MANAGEMENT LTD,5100333137,68.72
UNITED KINGDOM ATOMIC ENERGY AUTHORITY,UNITED KINGDOM ATOMIC ENERGY AUTHORITY,21/03/2016,PROFESSIONAL SERVICES,PROPERTY,GRUNDON WASTE MANAGEMENT LTD,5100334280,68.72
UNITED KINGDOM ATOMIC ENERGY AUTHORITY,UNITED KINGDOM ATOMIC ENERGY AUTHORITY,21/03/2016,PROFESSIONAL SERVICES,PROPERTY,GRUNDON WASTE MANAGEMENT LTD,5100334287,10.68
UNITED KINGDOM ATOMIC ENERGY AUTHORITY,UNITED KINGDOM ATOMIC ENERGY AUTHORITY,21/03/2016,PROFESSIONAL SERVICES,PROPERTY,GRUNDON WASTE MANAGEMENT LTD,5100334288,10.68
UNITED KINGDOM ATOMIC ENERGY AUTHORITY,UNITED KINGDOM ATOMIC ENERGY AUTHORITY,29/02/2016,MATERIALS & SPARES,FUSION,GUNNEBO UK LTD,5100332406,"3,723.00"
UNITED KINGDOM ATOMIC ENERGY AUTHORITY,UNITED KINGDOM ATOMIC ENERGY AUTHORITY,21/03/2016,MATERIALS & SPARES,FUSION,GUNNEBO UK LTD,5100334105,85.00
UNITED KINGDOM ATOMIC ENERGY AUTHORITY,UNITED KINGDOM ATOMIC ENERGY AUTHORITY,23/03/2016,PLANT & EQUIPMENT,FUSION,H L HYDRAULIK GMBH,5100333799,"1,775.52"
UNITED KINGDOM ATOMIC ENERGY AUTHORITY,UNITED KINGDOM ATOMIC ENERGY AUTHORITY,07/03/2016,TAXIS,SUPPORT SERVICES,HAROLDS CARS,5100332267,"3,886.68"
UNITED KINGDOM ATOMIC ENERGY AUTHORITY,UNITED KINGDOM ATOMIC ENERGY AUTHORITY,23/03/2016,TAXIS,SUPPORT SERVICES,HAROLDS CARS,5100333577,"3,885.30"
UNITED KINGDOM ATOMIC ENERGY AUTHORITY,UNITED KINGDOM ATOMIC ENERGY AUTHORITY,29/02/2016,MATERIALS & SPARES,FUSION,HARTING LTD,5100333056,213.80
UNITED KINGDOM ATOMIC ENERGY AUTHORITY,UNITED KINGDOM ATOMIC ENERGY AUTHORITY,29/02/2016,PLANT & EQUIPMENT,FUSION,HEWDEN,5100332897,"1,094.50"
UNITED KINGDOM ATOMIC ENERGY AUTHORITY,UNITED KINGDOM ATOMIC ENERGY AUTHORITY,22/02/2016,DESIGN & CONSTRUCTION,PROPERTY,HILLMOORE FIRE PROTECTION LIMITED,5100332851,"10,434.00"
UNITED KINGDOM ATOMIC ENERGY AUTHORITY,UNITED KINGDOM ATOMIC ENERGY AUTHORITY,07/03/2016,PROFESSIONAL SERVICES,FUSION,HILLS WASTE SOLUTIONS LTD,5100332149,"3,499.82"
UNITED KINGDOM ATOMIC ENERGY AUTHORITY,UNITED KINGDOM ATOMIC ENERGY AUTHORITY,14/03/2016,PROFESSIONAL SERVICES,FUSION,HILLS WASTE SOLUTIONS LTD,5100333483,"2,483.77"
UNITED KINGDOM ATOMIC ENERGY AUTHORITY,UNITED KINGDOM ATOMIC ENERGY AUTHORITY,07/03/2016,PROFESSIONAL SERVICES,FUSION,HILLS WASTE SOLUTIONS LTD,5100332152,471.20
UNITED KINGDOM ATOMIC ENERGY AUTHORITY,UNITED KINGDOM ATOMIC ENERGY AUTHORITY,29/03/2016,PROFESSIONAL SERVICES,FUSION,HILLS WASTE SOLUTIONS LTD,5100334609,261.10
UNITED KINGDOM ATOMIC ENERGY AUTHORITY,UNITED KINGDOM ATOMIC ENERGY AUTHORITY,07/03/2016,PROFESSIONAL SERVICES,FUSION,HILLS WASTE SOLUTIONS LTD,5100332151,25.00
UNITED KINGDOM ATOMIC ENERGY AUTHORITY,UNITED KINGDOM ATOMIC ENERGY AUTHORITY,14/03/2016,PROFESSIONAL SERVICES,FUSION,HILLS WASTE SOLUTIONS LTD,5100333484,25.00
UNITED KINGDOM ATOMIC ENERGY AUTHORITY,UNITED KINGDOM ATOMIC ENERGY AUTHORITY,07/03/2016,PROFESSIONAL SERVICES,FUSION,HILLS WASTE SOLUTIONS LTD,5100332156,15.00
UNITED KINGDOM ATOMIC ENERGY AUTHORITY,UNITED KINGDOM ATOMIC ENERGY AUTHORITY,14/03/2016,PROFESSIONAL SERVICES,FUSION,HILLS WASTE SOLUTIONS LTD,5100333487,15.00
UNITED KINGDOM ATOMIC ENERGY AUTHORITY,UNITED KINGDOM ATOMIC ENERGY AUTHORITY,07/03/2016,PROFESSIONAL SERVICES,FUSION,HILLS WASTE SOLUTIONS LTD,5100332154,10.00
UNITED KINGDOM ATOMIC ENERGY AUTHORITY,UNITED KINGDOM ATOMIC ENERGY AUTHORITY,14/03/2016,PROFESSIONAL SERVICES,FUSION,HILLS WASTE SOLUTIONS LTD,5100333486,10.00
UNITED KINGDOM ATOMIC ENERGY AUTHORITY,UNITED KINGDOM ATOMIC ENERGY AUTHORITY,24/02/2016,PLANT SPARES,FUSION,HILTI GB LTD,5100331619,955.99
UNITED KINGDOM ATOMIC ENERGY AUTHORITY,UNITED KINGDOM ATOMIC ENERGY AUTHORITY,16/03/2016,TRAVEL,SUPPORT SERVICES,HOGG ROBINSON(TRAVEL)LTD T/A HRG UK,5100333614,"18,044.69"
UNITED KINGDOM ATOMIC ENERGY AUTHORITY,UNITED KINGDOM ATOMIC ENERGY AUTHORITY,30/03/2016,PROFESSIONAL SERVICES,PROPERTY,HONEYWELL ANALYTICS (SALES &SERVICE,5100333800,"1,855.00"
UNITED KINGDOM ATOMIC ENERGY AUTHORITY,UNITED KINGDOM ATOMIC ENERGY AUTHORITY,03/03/2016,PROFESSIONAL SERVICES,FUSION,HONEYWELL ANALYTICS (SALES &SERVICE,5100332195,225.00
UNITED KINGDOM ATOMIC ENERGY AUTHORITY,UNITED KINGDOM ATOMIC ENERGY AUTHORITY,29/03/2016,MATERIALS & SPARES,FUSION,HOTCHKISS AIR SUPPLY,5100334614,454.77
UNITED KINGDOM ATOMIC ENERGY AUTHORITY,UNITED KINGDOM ATOMIC ENERGY AUTHORITY,07/03/2016,MATERIALS & SPARES,FUSION,HOTCHKISS AIR SUPPLY,5100333211,156.85
UNITED KINGDOM ATOMIC ENERGY AUTHORITY,UNITED KINGDOM ATOMIC ENERGY AUTHORITY,14/03/2016,MATERIALS & SPARES,PROPERTY,HOTCHKISS AIR SUPPLY,5100333760,31.98
UNITED KINGDOM ATOMIC ENERGY AUTHORITY,UNITED KINGDOM ATOMIC ENERGY AUTHORITY,22/02/2016,PLANT & EQUIPMENT,FUSION,HT SERVO LTD,5100332876,"3,738.00"
UNITED KINGDOM ATOMIC ENERGY AUTHORITY,UNITED KINGDOM ATOMIC ENERGY AUTHORITY,22/02/2016,PROFESSIONAL SERVICES,FUSION,HUTTON ENGINEERING (PRECISION) LTD,5100332857,"2,663.20"
UNITED KINGDOM ATOMIC ENERGY AUTHORITY,UNITED KINGDOM ATOMIC ENERGY AUTHORITY,23/03/2016,MATERIALS & SPARES,FUSION,HV WOODING LIMITED,5100334410,"1,015.74"
UNITED KINGDOM ATOMIC ENERGY AUTHORITY,UNITED KINGDOM ATOMIC ENERGY AUTHORITY,23/03/2016,MATERIALS & SPARES,FUSION,HV WOODING LIMITED,5100334409,374.07
UNITED KINGDOM ATOMIC ENERGY AUTHORITY,UNITED KINGDOM ATOMIC ENERGY AUTHORITY,23/03/2016,MATERIALS & SPARES,FUSION,HV WOODING LIMITED,5100334412,304.15
UNITED KINGDOM ATOMIC ENERGY AUTHORITY,UNITED KINGDOM ATOMIC ENERGY AUTHORITY,23/03/2016,MATERIALS & SPARES,FUSION,HV WOODING LIMITED,5100334411,263.96
UNITED KINGDOM ATOMIC ENERGY AUTHORITY,UNITED KINGDOM ATOMIC ENERGY AUTHORITY,21/03/2016,MATERIALS & SPARES,FUSION,HV WOODING LIMITED,5100334095,188.78
UNITED KINGDOM ATOMIC ENERGY AUTHORITY,UNITED KINGDOM ATOMIC ENERGY AUTHORITY,02/03/2016,MATERIALS & SPARES,FUSION,HV WOODING LIMITED,5100333048,165.76
UNITED KINGDOM ATOMIC ENERGY AUTHORITY,UNITED KINGDOM ATOMIC ENERGY AUTHORITY,29/03/2016,CLEANING,FUSION,HYDROBLAST,5100334000,"1,075.00"
UNITED KINGDOM ATOMIC ENERGY AUTHORITY,UNITED KINGDOM ATOMIC ENERGY AUTHORITY,29/03/2016,CLEANING,FUSION,HYDROBLAST,5100333999,350.00
UNITED KINGDOM ATOMIC ENERGY AUTHORITY,UNITED KINGDOM ATOMIC ENERGY AUTHORITY,23/03/2016,CLEANING,FUSION,HYDROBLAST,5100332795,260.00
UNITED KINGDOM ATOMIC ENERGY AUTHORITY,UNITED KINGDOM ATOMIC ENERGY AUTHORITY,02/03/2016,PROFESSIONAL SERVICES,FUSION,HYTEC ELECTRONICS LTD,5100333099,"3,153.90"
UNITED KINGDOM ATOMIC ENERGY AUTHORITY,UNITED KINGDOM ATOMIC ENERGY AUTHORITY,09/03/2016,PROFESSIONAL SERVICES,PROPERTY,I2 SECURITY SERVICES,5100333492,"16,509.00"
UNITED KINGDOM ATOMIC ENERGY AUTHORITY,UNITED KINGDOM ATOMIC ENERGY AUTHORITY,29/02/2016,STATIONERY,PROPERTY,IDENTILAM PLC,5100333094,"2,180.00"
UNITED KINGDOM ATOMIC ENERGY AUTHORITY,UNITED KINGDOM ATOMIC ENERGY AUTHORITY,14/03/2016,MATERIALS: NON-HAZARDOUS,FUSION,ILF LTD,5100333826,"8,639.88"
UNITED KINGDOM ATOMIC ENERGY AUTHORITY,UNITED KINGDOM ATOMIC ENERGY AUTHORITY,29/03/2016,MATERIALS: NON-HAZARDOUS,FUSION,ILF LTD,5100334232,162.50
UNITED KINGDOM ATOMIC ENERGY AUTHORITY,UNITED KINGDOM ATOMIC ENERGY AUTHORITY,07/03/2016,MEDICAL EXPENSES,FUSION,IMASS LTD,5100331945,"4,562.50"
UNITED KINGDOM ATOMIC ENERGY AUTHORITY,UNITED KINGDOM ATOMIC ENERGY AUTHORITY,07/03/2016,MEDICAL EXPENSES,FUSION,IMASS LTD,5100333305,"4,562.50"
UNITED KINGDOM ATOMIC ENERGY AUTHORITY,UNITED KINGDOM ATOMIC ENERGY AUTHORITY,21/03/2016,MATERIALS & SPARES,FUSION,INDUSTRIAL TECHNICAL LTD,5100334294,211.25
UNITED KINGDOM ATOMIC ENERGY AUTHORITY,UNITED KINGDOM ATOMIC ENERGY AUTHORITY,21/03/2016,MATERIALS & SPARES,FUSION,INDUSTRIAL TECHNICAL LTD,5100334292,165.00
UNITED KINGDOM ATOMIC ENERGY AUTHORITY,UNITED KINGDOM ATOMIC ENERGY AUTHORITY,21/03/2016,MATERIALS & SPARES,FUSION,INDUSTRIAL TECHNICAL LTD,5100334291,30.95
UNITED KINGDOM ATOMIC ENERGY AUTHORITY,UNITED KINGDOM ATOMIC ENERGY AUTHORITY,29/03/2016,MATERIALS & SPARES,PROPERTY,INDUSTRIAL TECHNICAL LTD,5100334293,22.14
UNITED KINGDOM ATOMIC ENERGY AUTHORITY,UNITED KINGDOM ATOMIC ENERGY AUTHORITY,18/03/2016,CONFERENCES/MEETINGS,FUSION,INFN-LNF CONGRESSI E FORESTERIE,1900061409,236.44
UNITED KINGDOM ATOMIC ENERGY AUTHORITY,UNITED KINGDOM ATOMIC ENERGY AUTHORITY,09/03/2016,PLANT & EQUIPMENT,FUSION,INNOLAS UK LTD,5100333321,"3,267.00"
UNITED KINGDOM ATOMIC ENERGY AUTHORITY,UNITED KINGDOM ATOMIC ENERGY AUTHORITY,02/03/2016,PLANT & EQUIPMENT,FUSION,INSIGHT DIRECT LTD,5100333216,"3,158.70"
UNITED KINGDOM ATOMIC ENERGY AUTHORITY,UNITED KINGDOM ATOMIC ENERGY AUTHORITY,07/03/2016,PLANT & EQUIPMENT,FUSION,INSIGHT DIRECT LTD,5100333352,"1,799.62"
UNITED KINGDOM ATOMIC ENERGY AUTHORITY,UNITED KINGDOM ATOMIC ENERGY AUTHORITY,07/03/2016,PLANT & EQUIPMENT,FUSION,INSIGHT DIRECT LTD,5100333256,"1,279.93"
UNITED KINGDOM ATOMIC ENERGY AUTHORITY,UNITED KINGDOM ATOMIC ENERGY AUTHORITY,24/02/2016,PLANT & EQUIPMENT,FUSION,INSIGHT DIRECT LTD,5100332960,570.80
UNITED KINGDOM ATOMIC ENERGY AUTHORITY,UNITED KINGDOM ATOMIC ENERGY AUTHORITY,22/02/2016,PLANT & EQUIPMENT,FUSION,INSIGHT DIRECT LTD,5100332807,505.64
UNITED KINGDOM ATOMIC ENERGY AUTHORITY,UNITED KINGDOM ATOMIC ENERGY AUTHORITY,16/03/2016,TRAINING COURSE FEES,FUSION,INSTITUTE OF CHEMICAL ENGINEERS,1900061386,"2,094.00"
UNITED KINGDOM ATOMIC ENERGY AUTHORITY,UNITED KINGDOM ATOMIC ENERGY AUTHORITY,29/02/2016,TRAINING COURSE FEES,SUPPORT SERVICES,INSTITUTE OF MECHANICAL ENGINEERS,5100333008,300.00
UNITED KINGDOM ATOMIC ENERGY AUTHORITY,UNITED KINGDOM ATOMIC ENERGY AUTHORITY,14/03/2016,MATERIALS & SPARES,PROPERTY,INSULATION CONTRACTING SERVICES,5100333741,"37,043.25"
UNITED KINGDOM ATOMIC ENERGY AUTHORITY,UNITED KINGDOM ATOMIC ENERGY AUTHORITY,14/03/2016,MATERIALS & SPARES,PROPERTY,INSULATION CONTRACTING SERVICES,5100333488,"15,247.65"
UNITED KINGDOM ATOMIC ENERGY AUTHORITY,UNITED KINGDOM ATOMIC ENERGY AUTHORITY,02/03/2016,MATERIALS & SPARES,FUSION,INTELLIGENT MOTION CONTROL LTD,1900061360,"1,010.52"
UNITED KINGDOM ATOMIC ENERGY AUTHORITY,UNITED KINGDOM ATOMIC ENERGY AUTHORITY,23/03/2016,INTERVIEW EXPENSES,SUPPORT SERVICES,INTERVIEW EXPENSES,1900061426,244.10
UNITED KINGDOM ATOMIC ENERGY AUTHORITY,UNITED KINGDOM ATOMIC ENERGY AUTHORITY,23/03/2016,INTERVIEW EXPENSES,SUPPORT SERVICES,INTERVIEW EXPENSES,1900061422,229.99
UNITED KINGDOM ATOMIC ENERGY AUTHORITY,UNITED KINGDOM ATOMIC ENERGY AUTHORITY,29/03/2016,INTERVIEW EXPENSES,SUPPORT SERVICES,INTERVIEW EXPENSES,1900061428,103.75
UNITED KINGDOM ATOMIC ENERGY AUTHORITY,UNITED KINGDOM ATOMIC ENERGY AUTHORITY,23/03/2016,INTERVIEW EXPENSES,SUPPORT SERVICES,INTERVIEW EXPENSES,1900061419,65.80
UNITED KINGDOM ATOMIC ENERGY AUTHORITY,UNITED KINGDOM ATOMIC ENERGY AUTHORITY,23/03/2016,INTERVIEW EXPENSES,SUPPORT SERVICES,INTERVIEW EXPENSES,1900061420,56.20
UNITED KINGDOM ATOMIC ENERGY AUTHORITY,UNITED KINGDOM ATOMIC ENERGY AUTHORITY,23/03/2016,INTERVIEW EXPENSES,SUPPORT SERVICES,INTERVIEW EXPENSES,1900061424,55.00
UNITED KINGDOM ATOMIC ENERGY AUTHORITY,UNITED KINGDOM ATOMIC ENERGY AUTHORITY,23/03/2016,INTERVIEW EXPENSES,SUPPORT SERVICES,INTERVIEW EXPENSES,1900061418,52.80
UNITED KINGDOM ATOMIC ENERGY AUTHORITY,UNITED KINGDOM ATOMIC ENERGY AUTHORITY,23/03/2016,INTERVIEW EXPENSES,SUPPORT SERVICES,INTERVIEW EXPENSES,1900061421,32.80
UNITED KINGDOM ATOMIC ENERGY AUTHORITY,UNITED KINGDOM ATOMIC ENERGY AUTHORITY,23/03/2016,INTERVIEW EXPENSES,SUPPORT SERVICES,INTERVIEW EXPENSES,1900061425,22.50
UNITED KINGDOM ATOMIC ENERGY AUTHORITY,UNITED KINGDOM ATOMIC ENERGY AUTHORITY,23/03/2016,INTERVIEW EXPENSES,SUPPORT SERVICES,INTERVIEW EXPENSES,1900061423,20.25
